Department Family,Entity,Transaction Date,Expense Type,Expense Area,SupplierName,Transaction Number, amount 
DFID,DFID,01/04/2011,Technical and Advisory Services,DFID Democratic Republic of Congo,PRICEWATERHOUSECOOPERS,400152748,"-250,000.00"
DFID,DFID,27/04/2011,FCO shared service charges,DFID Iraq,FOREIGN AND COMMONWEALTH OFFICE,400156063,"-42,136.54"
DFID,DFID,12/04/2011,Facilities Management payments,DFID Kenya,David Mungai Mbugua,400153803,"-1,270.63"
DFID,DFID,14/04/2011,Technical and Advisory Services,Growth and Investment Group,HEALTH PARTNERS INTERNATIONAL,400154382,"-12,643.62"
DFID,DFID,27/04/2011,Postage Costs,Abercrombie House (UK Office),ROYAL MAIL,400156325,205.76
DFID,DFID,12/04/2011,Other Building Costs,Abercrombie House (UK Office),MITIE Technical Facilities Management Ltd,400153333,666.28
DFID,DFID,12/04/2011,Other Building Costs,Abercrombie House (UK Office),MITIE Technical Facilities Management Ltd,400153319,686.4
DFID,DFID,12/04/2011,Other Building Costs,Abercrombie House (UK Office),MITIE Technical Facilities Management Ltd,400153602,686.4
DFID,DFID,12/04/2011,Other Building Costs,Abercrombie House (UK Office),MITIE Technical Facilities Management Ltd,400153460,801.43
DFID,DFID,12/04/2011,Other Building Costs,Abercrombie House (UK Office),MITIE Technical Facilities Management Ltd,400153579,871.13
DFID,DFID,12/04/2011,Removal & waste disposal services,Abercrombie House (UK Office),SHANKS WASTE MANAGMENT LIMITED,400153691,934.51
DFID,DFID,12/04/2011,Other Building Costs,Abercrombie House (UK Office),MITIE Technical Facilities Management Ltd,400153322,950.4
DFID,DFID,12/04/2011,Other Building Costs,Abercrombie House (UK Office),MITIE Technical Facilities Management Ltd,400153478,"1,037.57"
DFID,DFID,12/04/2011,Other Building Costs,Abercrombie House (UK Office),MITIE Technical Facilities Management Ltd,400153418,"1,082.40"
DFID,DFID,12/04/2011,Other Building Costs,Abercrombie House (UK Office),MITIE Technical Facilities Management Ltd,400153184,"1,267.20"
DFID,DFID,27/04/2011,Reproduction & Printing Materials,Abercrombie House (UK Office),BANNER BUSINESS SUPPLIES LTD,400156235,"1,306.56"
DFID,DFID,12/04/2011,Other Building Costs,Abercrombie House (UK Office),MITIE Technical Facilities Management Ltd,400153593,"1,485.00"
DFID,DFID,27/04/2011,Postage Costs,Abercrombie House (UK Office),ROYAL MAIL,400156325,"1,841.60"
DFID,DFID,12/04/2011,Other Building Costs,Abercrombie House (UK Office),MITIE Technical Facilities Management Ltd,400153318,"2,059.20"
DFID,DFID,12/04/2011,Other Building Costs,Abercrombie House (UK Office),MITIE Technical Facilities Management Ltd,400153346,"2,084.50"
DFID,DFID,12/04/2011,Other Building Costs,Abercrombie House (UK Office),MITIE Technical Facilities Management Ltd,400153459,"2,610.93"
DFID,DFID,12/04/2011,Other Building Costs,Abercrombie House (UK Office),MITIE Technical Facilities Management Ltd,400153606,"2,970.00"
DFID,DFID,12/04/2011,Other Building Costs,Abercrombie House (UK Office),MITIE Technical Facilities Management Ltd,400153582,"3,088.80"
DFID,DFID,12/04/2011,Other Building Costs,Abercrombie House (UK Office),MITIE Technical Facilities Management Ltd,400153455,"4,432.56"
DFID,DFID,12/04/2011,Other Building Costs,Abercrombie House (UK Office),MITIE Technical Facilities Management Ltd,400153569,"4,601.60"
DFID,DFID,12/04/2011,Other Building Costs,Abercrombie House (UK Office),MITIE Technical Facilities Management Ltd,400153590,"4,608.38"
DFID,DFID,12/04/2011,Other Building Costs,Abercrombie House (UK Office),MITIE Technical Facilities Management Ltd,400153229,"12,140.00"
DFID,DFID,12/04/2011,Other Building Costs,Abercrombie House (UK Office),MITIE Technical Facilities Management Ltd,400153353,"65,218.02"
DFID,DFID,20/04/2011,Technical and Advisory Services,Africa Directorate,OPTIONS CONSULTANCY SERVICES LIMITED,400154744,"-57,624.00"
DFID,DFID,14/04/2011,Technical and Advisory Services,Africa Directorate,recipient withheld,400151139,"1,012.50"
DFID,DFID,14/04/2011,Consultancy Services,Africa Directorate,recipient withheld,400151139,"3,610.20"
DFID,DFID,07/04/2011,Aid Programme - Accountable Grant Payments,Africa Directorate,CONCERN UNIVERSAL,400149742,"4,223.00"
DFID,DFID,05/04/2011,Technical and Advisory Services,Africa Directorate,CAMBRIDGE EDUCATION CONSUL,400152404,"11,295.27"
DFID,DFID,20/04/2011,Technical and Advisory Services,Africa Directorate,OPTIONS CONSULTANCY SERVICES LIMITED,400154744,"20,944.86"
DFID,DFID,12/04/2011,Technical and Advisory Services,Africa Directorate,OPTIONS CONSULTANCY SERVICES LIMITED,400153177,"25,305.95"
DFID,DFID,20/04/2011,Technical and Advisory Services,Africa Directorate,OPTIONS CONSULTANCY SERVICES LIMITED,400154744,"57,624.00"
DFID,DFID,05/04/2011,Technical and Advisory Services,Africa Directorate,ATOS CONSULTING LIMITED,400150110,"67,449.00"
DFID,DFID,07/04/2011,Aid Programme - Accountable Grant Payments,Africa Directorate,CONCERN UNIVERSAL,400149742,"90,033.00"
DFID,DFID,05/04/2011,Technical and Advisory Services,Africa Directorate,ATOS CONSULTING LIMITED,400147598,"306,203.00"
DFID,DFID,12/04/2011,House rentals,Africa Regional Department,Yaya Towers Limited,400154017,"1,814.75"
DFID,DFID,14/04/2011,House rentals,Africa Regional Department,Yaya Towers Limited,400154547,"1,828.29"
DFID,DFID,24/04/2011,House rentals,Africa Regional Department,Yaya Towers Limited,400155787,"1,887.34"
DFID,DFID,12/04/2011,Technical and Advisory Services,Africa Regional Department,SOCIAL DEVELOPMENT DIRECT LTD,400154247,"3,400.00"
DFID,DFID,13/04/2011,Technical and Advisory Services,Africa Regional Department,PLW DEVELOPMENT SOLUTIONS LTD,400154243,"5,142.46"
DFID,DFID,15/04/2011,Technical and Advisory Services,Africa Regional Department,NATURAL RESOURCES INSTITUTE,400154182,"9,024.00"
DFID,DFID,27/04/2011,Aid Programme - Accountable Grant Payments,Africa Regional Department,OVERSEAS DEVELOPMENT INSTITUTE,400156136,"10,682.82"
DFID,DFID,13/04/2011,Technical and Advisory Services,Africa Regional Department,THE CROWN AGENTS,400152915,"11,731.20"
DFID,DFID,08/04/2011,Technical and Advisory Services,Africa Regional Department,COFFEY INTERNATIONAL DEVELOPMENT LTD,400152964,"51,703.78"
DFID,DFID,19/04/2011,Aid Programme - Humanitarian Material Relief Assistance and Services,Africa Regional Department, UNICEF,400155104,"1,000,000.00"
DFID,DFID,08/04/2011,"Conferences, Seminars & Meeting/Event Resource",Asia Directors Office,MARTIN MIDDLEBROOK,400153085,"4,793.00"
DFID,DFID,12/04/2011,Technical and Advisory Services,Central Department Division,THE CROWN AGENTS,400153782,"36,250.00"
DFID,DFID,19/04/2011,Technical and Advisory Services,Civil Society Department,Triple Line Consulting Limited,400154740,"3,758.86"
DFID,DFID,19/04/2011,Technical and Advisory Services,Civil Society Department,Triple Line Consulting Limited,400155201,"16,308.54"
DFID,DFID,19/04/2011,Technical and Advisory Services,Civil Society Department,Triple Line Consulting Limited,400155201,"19,486.08"
DFID,DFID,19/04/2011,Technical and Advisory Services,Civil Society Department,TRIPLE LINE CONSULTING LTD,400155117,"57,661.79"
DFID,DFID,15/04/2011,Technical and Advisory Services,Civil Society Department,COFFEY INTERNATIONAL DEVELOPMENT LTD,400154746,"72,527.90"
DFID,DFID,04/04/2011,Aid Programme - Challenge Fund payments,Civil Society Department,Triple Line Consulting Limited,400153018,"142,587.75"
DFID,DFID,20/04/2011,Aid Programme - Challenge Fund payments,Civil Society Department,Triple Line Consulting Limited,400155394,"147,399.13"
DFID,DFID,12/04/2011,Technical and Advisory Services,Civil Society Department,TRIPLE LINE CONSULTING LTD,400154217,"155,076.34"
DFID,DFID,13/04/2011,Aid Programme - Accountable Grant Payments,Civil Society Department,KPMG DEVELOPMENT SERVICE,400154422,"213,638.00"
DFID,DFID,04/04/2011,Aid Programme - Accountable Grant Payments,Civil Society Department,KPMG DEVELOPMENT SERVICE,400153009,"481,179.11"
DFID,DFID,01/04/2011,Aid Programme - Accountable Grant Payments,Civil Society Department,KPMG DEVELOPMENT SERVICE,400152875,"664,627.34"
DFID,DFID,04/04/2011,Aid Programme - Accountable Grant Payments,Civil Society Department,KPMG DEVELOPMENT SERVICE,400153008,"843,443.95"
DFID,DFID,27/04/2011,Aid Programme - Partnership Programme Arrangements,Civil Society Department,COMIC RELIEF,400156148,"942,000.00"
DFID,DFID,28/04/2011,Facilities Management payments,Climate and Environment Group,John Sanday Associates Pvt. Ltd,400156341,12.84
DFID,DFID,12/04/2011,Hotels - Accommodation only,Climate and Environment Group,Department of Energy and Climate Change (DECC),400150450,50.83
DFID,DFID,12/04/2011,Hotels - Accommodation only,Climate and Environment Group,Department of Energy and Climate Change (DECC),400150450,55.94
DFID,DFID,12/04/2011,Hotels - Accommodation only,Climate and Environment Group,Department of Energy and Climate Change (DECC),400150450,82.07
DFID,DFID,18/04/2011,Property & Construction Services,Climate and Environment Group,SAFECON Electro Mechanical Works PLC,400154992,214.77
DFID,DFID,18/04/2011,Property & Construction Services,Climate and Environment Group,SAFECON Electro Mechanical Works PLC,400154991,271.57
DFID,DFID,05/04/2011,Technical and Advisory Services,Climate and Environment Group,JOHN HUDSON,400152856,"1,861.85"
DFID,DFID,15/04/2011,Technical and Advisory Services,Climate and Environment Group,IDLS Partners Ltd,400153813,"2,340.72"
DFID,DFID,12/04/2011,Hotels - Accommodation only,Climate and Environment Group,Department of Energy and Climate Change (DECC),400150450,"3,061.52"
DFID,DFID,12/04/2011,Hotels - Accommodation only,Climate and Environment Group,Department of Energy and Climate Change (DECC),400150450,"3,061.52"
DFID,DFID,12/04/2011,Hotels - Accommodation only,Climate and Environment Group,Department of Energy and Climate Change (DECC),400150450,"3,061.52"
DFID,DFID,12/04/2011,Technical and Advisory Services,Climate and Environment Group,Responsible Recruitment,400153725,"6,000.00"
DFID,DFID,12/04/2011,Technical and Advisory Services,Climate and Environment Group,GBRW LIMITED,400153500,"7,665.00"
DFID,DFID,14/04/2011,Technical and Advisory Services,Climate and Environment Group,OVERSEAS DEVELOPMENT INSTITUTE (ODI),400154228,"8,900.00"
DFID,DFID,20/04/2011,Technical and Advisory Services,Climate and Environment Group,PRICEWATERHOUSECOOPERS,400155519,"9,645.63"
DFID,DFID,08/04/2011,Technical and Advisory Services,Climate and Environment Group,recipient withheld,400153161,"11,922.10"
DFID,DFID,13/04/2011,Technical and Advisory Services,Climate and Environment Group,HAREWELLE INTERNATIONAL LIMITED,400152920,"14,700.00"
DFID,DFID,05/04/2011,Technical and Advisory Services,Climate and Environment Group,ANDREW ROBY,400153068,"17,565.00"
DFID,DFID,18/04/2011,Technical and Advisory Services,Climate and Environment Group,MOTT MACDONALD LTD,400154936,"20,063.73"
DFID,DFID,20/04/2011,Technical and Advisory Services,Climate and Environment Group,Nathan Associates London Ltd,400154932,"21,178.19"
DFID,DFID,18/04/2011,Technical and Advisory Services,Climate and Environment Group,ANDREW ROBY,400154618,"21,592.00"
DFID,DFID,12/04/2011,Technical and Advisory Services,Climate and Environment Group,THE IDL GROUP,400154131,"42,066.65"
DFID,DFID,19/04/2011,Technical and Advisory Services,Climate and Environment Group,PRICEWATERHOUSECOOPERS,400154750,"43,320.00"
DFID,DFID,20/04/2011,Technical and Advisory Services,Climate and Environment Group,PRICEWATERHOUSECOOPERS,400155517,"52,509.08"
DFID,DFID,07/04/2011,Aid Programme - Voluntary contributions,Climate and Environment Group,   THE WORLD BANK,400153370,"54,000.00"
DFID,DFID,18/04/2011,Aid Programme - Accountable Grant Payments,Climate and Environment Group,Royal Institute for Int. Affairs,400154224,"61,858.44"
DFID,DFID,19/04/2011,Technical and Advisory Services,Climate and Environment Group,PRICEWATERHOUSECOOPERS,400155085,"121,463.39"
DFID,DFID,19/04/2011,Technical and Advisory Services,Climate and Environment Group,PRICEWATERHOUSECOOPERS,400155088,"447,171.00"
DFID,DFID,18/04/2011,Training Providers/Facilitation Services,"Conflict, Humanitarian and Security Department",SOAS Language Centre,400153163,"1,950.00"
DFID,DFID,15/04/2011,Aid Programme - Humanitarian Material Relief Assistance and Services,"Conflict, Humanitarian and Security Department",THE CROWN AGENTS,400152907,"2,820.00"
DFID,DFID,06/04/2011,Training Providers/Facilitation Services,"Conflict, Humanitarian and Security Department",ATKINSON EXECUTIVE DEVELOPMENT LTD,400152864,"4,300.00"
DFID,DFID,08/04/2011,Print Services,"Conflict, Humanitarian and Security Department",TEMPO GRAPHIC DESIGN LTD,400153162,"4,981.00"
DFID,DFID,05/04/2011,Technical and Advisory Services,"Conflict, Humanitarian and Security Department",Crown Agents Bank,400153035,"6,293.00"
DFID,DFID,12/04/2011,Aid Programme - Humanitarian Material Relief Assistance and Services,"Conflict, Humanitarian and Security Department",THE CROWN AGENTS,400152905,"13,354.80"
DFID,DFID,27/04/2011,Aid Programme - Voluntary contributions,"Conflict, Humanitarian and Security Department",CHIEF FIRE OFFICERS ASSOCIATION,400156203,"19,900.59"
DFID,DFID,12/04/2011,Technical and Advisory Services,"Conflict, Humanitarian and Security Department",MINES ADVISORY GROUP,400153567,"24,271.00"
DFID,DFID,12/04/2011,Technical and Advisory Services,"Conflict, Humanitarian and Security Department",MINES ADVISORY GROUP,400153566,"25,792.00"
DFID,DFID,12/04/2011,Technical and Advisory Services,"Conflict, Humanitarian and Security Department",MINES ADVISORY GROUP,400153564,"54,568.00"
DFID,DFID,07/04/2011,Aid Programme - Strategic Grant Arrangement payments,"Conflict, Humanitarian and Security Department",UNIVERSITY OF ESSEX,400153385,"100,000.00"
DFID,DFID,26/04/2011,Aid Programme - Humanitarian Material Relief Assistance and Services,"Conflict, Humanitarian and Security Department", UNICEF,400155943,"130,000.00"
DFID,DFID,12/04/2011,Technical and Advisory Services,"Conflict, Humanitarian and Security Department",MINES ADVISORY GROUP,400153017,"211,000.00"
DFID,DFID,26/04/2011,Aid Programme - Strategic Grant Arrangement payments,"Conflict, Humanitarian and Security Department",INTERNATIONAL ALERT,400155923,"225,000.00"
DFID,DFID,13/04/2011,Aid Programme - Humanitarian Material Relief Assistance and Services,"Conflict, Humanitarian and Security Department",PLAN INTERNATIONAL UK,400153831,"397,243.00"
DFID,DFID,18/04/2011,Aid Programme - Voluntary contributions,"Conflict, Humanitarian and Security Department",UNICEF,400154982,"2,000,000.00"
DFID,DFID,25/04/2011,Office Equipment - Purchases,DFID Afghanistan,SUPPLIER NAME WITHELD,400155802,155.66
DFID,DFID,25/04/2011,Office Equipment - Purchases,DFID Afghanistan,SUPPLIER NAME WITHELD,400155802,577.83
DFID,DFID,20/04/2011,Technical and Advisory Services,DFID Afghanistan,SUPPLIER NAME WITHELD,400155431,"1,022.17"
DFID,DFID,26/04/2011,Technical and Advisory Services,DFID Afghanistan,SUPPLIER NAME WITHELD,400155874,"1,350.00"
DFID,DFID,20/04/2011,Technical and Advisory Services,DFID Afghanistan,SUPPLIER NAME WITHELD,400155447,"1,810.35"
DFID,DFID,11/04/2011,Technical and Advisory Services,DFID Afghanistan,SUPPLIER NAME WITHELD,400149712,"2,340.00"
DFID,DFID,11/04/2011,Technical and Advisory Services,DFID Afghanistan,SUPPLIER NAME WITHELD,400149702,"3,145.77"
DFID,DFID,08/04/2011,Technical and Advisory Services,DFID Afghanistan,SUPPLIER NAME WITHELD,400153656,"4,000.00"
DFID,DFID,08/04/2011,Technical and Advisory Services,DFID Afghanistan,SUPPLIER NAME WITHELD,400151090,"5,215.00"
DFID,DFID,26/04/2011,House rentals,DFID Afghanistan,SUPPLIER NAME WITHELD,400155904,"7,984.24"
DFID,DFID,21/04/2011,House rentals,DFID Afghanistan,SUPPLIER NAME WITHELD,400155542,"9,427.57"
DFID,DFID,26/04/2011,Technical and Advisory Services,DFID Afghanistan,SUPPLIER NAME WITHELD,400155430,"10,137.00"
DFID,DFID,14/04/2011,Technical and Advisory Services,DFID Afghanistan,SUPPLIER NAME WITHELD,400154615,"10,550.00"
DFID,DFID,26/04/2011,Technical and Advisory Services,DFID Afghanistan,SUPPLIER NAME WITHELD,400156071,"11,890.13"
DFID,DFID,20/04/2011,Technical and Advisory Services,DFID Afghanistan,SUPPLIER NAME WITHELD,400155453,"16,510.70"
DFID,DFID,18/04/2011,Technical and Advisory Services,DFID Afghanistan,SUPPLIER NAME WITHELD,400153695,"22,764.24"
DFID,DFID,07/04/2011,Technical and Advisory Services,DFID Afghanistan,SUPPLIER NAME WITHELD,400153084,"24,447.66"
DFID,DFID,13/04/2011,Technical and Advisory Services,DFID Afghanistan,SUPPLIER NAME WITHELD,400154143,"29,152.44"
DFID,DFID,26/04/2011,House rentals,DFID Afghanistan,SUPPLIER NAME WITHELD,400155904,"29,174.23"
DFID,DFID,21/04/2011,House rentals,DFID Afghanistan,SUPPLIER NAME WITHELD,400155542,"34,448.11"
DFID,DFID,26/04/2011,Technical and Advisory Services,DFID Afghanistan,SUPPLIER NAME WITHELD,400156084,"36,099.96"
DFID,DFID,14/04/2011,Technical and Advisory Services,DFID Afghanistan,SUPPLIER NAME WITHELD,400154624,"44,362.18"
DFID,DFID,21/04/2011,Technical and Advisory Services,DFID Afghanistan,SUPPLIER NAME WITHELD,400155587,"113,613.99"
DFID,DFID,26/04/2011,Technical and Advisory Services,DFID Afghanistan,SUPPLIER NAME WITHELD,400156067,"114,965.14"
DFID,DFID,26/04/2011,Technical and Advisory Services,DFID Afghanistan,SUPPLIER NAME WITHELD,400156065,"233,090.52"
DFID,DFID,14/04/2011,Aid Programme - Accountable Grant Payments,DFID Afghanistan,SUPPLIER NAME WITHELD,400153515,"435,333.00"
DFID,DFID,20/04/2011,Office Equipment - Purchases,DFID Bangladesh, FCO SERVICES,400155388,"-6,230.29"
DFID,DFID,27/04/2011,Technical and Advisory Services,DFID Bangladesh,EMERGING MARKETS GROUP,400156310,"1,900.00"
DFID,DFID,25/04/2011,Auditors Remuneration & Expenses,DFID Bangladesh,A Wahab and Co.,400155800,"3,320.60"
DFID,DFID,18/04/2011,Technical and Advisory Services,DFID Bangladesh,SHOAIB SIDDIQUI,400155002,"3,545.00"
DFID,DFID,06/04/2011,Technical and Advisory Services,DFID Bangladesh,Wyke Consultancy Limited,400153228,"4,626.78"
DFID,DFID,21/04/2011,Technical and Advisory Services,DFID Bangladesh,Shahina Akter Lubna,400155568,"4,997.49"
DFID,DFID,13/04/2011,Hardware - desktop PCs,DFID Bangladesh,THE CROWN AGENTS,400154505,"5,861.93"
DFID,DFID,05/04/2011,Technical and Advisory Services,DFID Bangladesh,Wyke Consultancy Limited,400153197,"6,648.99"
DFID,DFID,20/04/2011,Office Equipment - Purchases,DFID Bangladesh, FCO SERVICES,400155388,"12,460.58"
DFID,DFID,27/04/2011,Technical and Advisory Services,DFID Bangladesh,EMERGING MARKETS GROUP,400156297,"28,864.57"
DFID,DFID,21/04/2011,Technical and Advisory Services,DFID Bangladesh,TRIBAL HELM CORPORATION LTD,400155711,"50,510.00"
DFID,DFID,21/04/2011,Technical and Advisory Services,DFID Bangladesh,TRIBAL HELM CORPORATION LTD,400155712,"54,695.00"
DFID,DFID,21/04/2011,Technical and Advisory Services,DFID Bangladesh,TRIBAL HELM CORPORATION LTD,400155710,"58,845.00"
DFID,DFID,21/04/2011,Technical and Advisory Services,DFID Bangladesh,TRIBAL HELM CORPORATION LTD,400155713,"59,303.50"
DFID,DFID,21/04/2011,Technical and Advisory Services,DFID Bangladesh,TRIBAL HELM CORPORATION LTD,400155715,"62,270.00"
DFID,DFID,13/04/2011,Aid Programme - Challenge Fund payments,DFID Bangladesh,Harewelle International Limited.,400154439,"71,621.25"
DFID,DFID,12/04/2011,Technical and Advisory Services,DFID Bangladesh,EMERGING MARKETS GROUP,400153685,"110,187.00"
DFID,DFID,13/04/2011,Technical and Advisory Services,DFID Bangladesh,Harewelle International Limited.,400154439,"114,495.95"
DFID,DFID,21/04/2011,Technical and Advisory Services,DFID Bangladesh,MAXWELL STAMP PLC,400155656,"144,232.47"
DFID,DFID,21/04/2011,Aid Programme - Programme Refunds,DFID Bangladesh,MAXWELL STAMP PLC,400155666,"200,219.14"
DFID,DFID,12/04/2011,Technical and Advisory Services,DFID Bangladesh,TRIBAL HELM CORPORATION LTD,400153680,"340,132.39"
DFID,DFID,15/04/2011,Aid Programme - Trust Funds contributions,DFID Bangladesh,IBRD HSBC T,400153749,"500,000.00"
DFID,DFID,11/04/2011,Aid Programme - Other Financial Aid to Government,DFID Bangladesh,THE CROWN AGENTS,400153623,"1,300,000.00"
DFID,DFID,21/04/2011,Technical and Advisory Services,DFID Burma,BRITISH COUNCIL,400155622,"186,056.99"
DFID,DFID,28/04/2011,Aid Programme - Voluntary contributions,DFID Burma,UNDP CONTRIBUTIONS ACCOUNT,400156356,"3,500,000.00"
DFID,DFID,27/04/2011,Aid Programme - Accountable Grant Payments,DFID Burundi,OVERSEAS DEVELOPMENT INSTITUTE (ODI),400156138,"3,076.60"
DFID,DFID,26/04/2011,Aid Programme - Accountable Grant Payments,DFID China,International Institute for Environment and Development (IIED),400156025,"7,770.00"
DFID,DFID,28/04/2011,Aid Programme - Accountable Grant Payments,DFID China,University Of Durham,400156544,"12,763.99"
DFID,DFID,15/04/2011,Technical and Advisory Services,DFID China,CAMBRIDGE EDUCATION CONSUL,400153746,"24,782.56"
DFID,DFID,20/04/2011,Technical and Advisory Services,DFID China,CONSTELLA FUTURES,400155407,"71,576.05"
DFID,DFID,14/04/2011,Technical and Advisory Services,DFID China,HEALTH PARTNERS INTERNATIONAL,400153502,"87,136.63"
DFID,DFID,19/04/2011,Technical and Advisory Services,DFID Democratic Republic of Congo,DAI EUROPE LIMITED,400155189,"-156,926.85"
DFID,DFID,21/04/2011,Technical and Advisory Services,DFID Democratic Republic of Congo,THE CROWN AGENTS,400153004,"-49,799.82"
DFID,DFID,21/04/2011,Technical and Advisory Services,DFID Democratic Republic of Congo,THE CROWN AGENTS,400153004,"-16,286.40"
DFID,DFID,18/04/2011,Hotels - Accommodation only,DFID Democratic Republic of Congo,Grands Hotels du Congo,400154902,600.74
DFID,DFID,27/04/2011,Air fares,DFID Democratic Republic of Congo,Jeffery Travels,400156199,606.08
DFID,DFID,27/04/2011,Air fares,DFID Democratic Republic of Congo,Jeffery Travels,400156259,634.65
DFID,DFID,27/04/2011,Air fares,DFID Democratic Republic of Congo,UNHAS - WFP (DRC),400156254,675.08
DFID,DFID,18/04/2011,Hotels - Accommodation only,DFID Democratic Republic of Congo,Grands Hotels du Congo,400154904,878.72
DFID,DFID,08/04/2011,Training - Travel & Subsistence,DFID Democratic Republic of Congo,Jeffery Travels,400153619,949.11
DFID,DFID,20/04/2011,DFID Learning Events,DFID Democratic Republic of Congo,Jeffery Travels,400155462,957.72
DFID,DFID,18/04/2011,Hotels - Accommodation only,DFID Democratic Republic of Congo,Grands Hotels du Congo,400155005,"1,041.81"
DFID,DFID,20/04/2011,Vehicle Repairs & Maintenance,DFID Democratic Republic of Congo,CFAO Motors,400155465,"1,085.64"
DFID,DFID,18/04/2011,Technical and Advisory Services,DFID Democratic Republic of Congo,BEST CONFERENCE SERVICES B.C.S,400154943,"2,288.78"
DFID,DFID,18/04/2011,Building Plant - Air Conditioners,DFID Democratic Republic of Congo,Electro Cool Sprl,400154940,"3,008.46"
DFID,DFID,20/04/2011,Oil - Other Utilities,DFID Democratic Republic of Congo,ENGEN DRC,400155354,"3,083.58"
DFID,DFID,15/04/2011,Data Network - land lines,DFID Democratic Republic of Congo,Standard Telecom,400154679,"4,400.98"
DFID,DFID,12/04/2011,Other rentals,DFID Democratic Republic of Congo,Safricas Congo SARL,400154162,"6,523.49"
DFID,DFID,13/04/2011,Furniture & Fittings,DFID Democratic Republic of Congo,Detox Products Limited,400154478,"9,316.00"
DFID,DFID,08/04/2011,House rentals,DFID Democratic Republic of Congo,NKWEBE KOOTO VERONIQUE,400153650,"11,404.05"
DFID,DFID,08/04/2011,House rentals,DFID Democratic Republic of Congo,NKWEBE KOOTO VERONIQUE,400153651,"11,404.05"
DFID,DFID,12/04/2011,House rentals,DFID Democratic Republic of Congo,AKSEL IMMO,400154167,"12,802.62"
DFID,DFID,21/04/2011,Technical and Advisory Services,DFID Democratic Republic of Congo,THE CROWN AGENTS,400153004,"16,286.40"
DFID,DFID,13/04/2011,House rentals,DFID Democratic Republic of Congo,ETS PRELUDE,400154386,"18,450.18"
DFID,DFID,12/04/2011,House rentals,DFID Democratic Republic of Congo,Parkland,400154172,"36,607.69"
DFID,DFID,21/04/2011,Technical and Advisory Services,DFID Democratic Republic of Congo,THE CROWN AGENTS,400153004,"63,701.82"
DFID,DFID,19/04/2011,Technical and Advisory Services,DFID Democratic Republic of Congo,DAI EUROPE LIMITED,400155189,"290,481.62"
DFID,DFID,19/04/2011,Technical and Advisory Services,DFID Democratic Republic of Congo,PRICEWATERHOUSECOOPERS,400155155,"348,018.00"
DFID,DFID,18/04/2011,Property & Construction Services,DFID Ethiopia,SAFECON Electro Mechanical Works PLC,400154992,9.01
DFID,DFID,11/04/2011,Air fares,DFID Ethiopia,The Express Travel Group,400153703,141.63
DFID,DFID,27/04/2011,Office Supplies,DFID Ethiopia,GENERAL Stationary Merchandise & Computer Accessories,400156141,245.08
DFID,DFID,27/04/2011,Office Supplies,DFID Ethiopia,GENERAL Stationary Merchandise & Computer Accessories,400156141,318.6
DFID,DFID,13/04/2011,Training - Course Fees,DFID Ethiopia,Wossenu Demissie,400154488,507.18
DFID,DFID,14/04/2011,Vehicle Repairs & Maintenance,DFID Ethiopia,Ethio Lakes General Authomotive Trading PLC,400154599,536.33
DFID,DFID,14/04/2011,Vehicle Repairs & Maintenance,DFID Ethiopia,Ethio Lakes General Authomotive Trading PLC,400154599,536.33
DFID,DFID,18/04/2011,Other Building Costs,DFID Ethiopia,SAFECON Electro Mechanical Works PLC,400154992,564.24
DFID,DFID,18/04/2011,Other Building Costs,DFID Ethiopia,SAFECON Electro Mechanical Works PLC,400154992,564.24
DFID,DFID,08/04/2011,Vehicle Purchase Costs,DFID Ethiopia,SAFETRA Private Limited Company,400153522,666.11
DFID,DFID,08/04/2011,Vehicle Purchase Costs,DFID Ethiopia,SAFETRA Private Limited Company,400153522,666.11
DFID,DFID,18/04/2011,Property & Construction Services,DFID Ethiopia,SAFECON Electro Mechanical Works PLC,400154991,677.71
DFID,DFID,13/04/2011,Property & Construction Services,DFID Ethiopia,SAFECON Electro Mechanical Works PLC,400154482,845.88
DFID,DFID,13/04/2011,Air fares,DFID Ethiopia,The Express Travel Group,400154485,871.66
DFID,DFID,18/04/2011,Property & Construction Services,DFID Ethiopia,SAFECON Electro Mechanical Works PLC,400154992,"1,041.65"
DFID,DFID,20/04/2011,Computer Consumables,DFID Ethiopia,Jupiter Trading,400155404,"1,517.07"
DFID,DFID,11/04/2011,Air fares,DFID Ethiopia,The Express Travel Group,400153703,"2,307.24"
DFID,DFID,12/04/2011,Furniture & Fittings,DFID Ethiopia,CHARLES KENDALL & PARTNERS LIMITED,400153751,"5,782.32"
DFID,DFID,26/04/2011,Technical and Advisory Services,DFID Ethiopia,P S GILKES,400155889,"6,000.00"
DFID,DFID,18/04/2011,Property & Construction Services,DFID Ethiopia,SAFECON Electro Mechanical Works PLC,400154990,"7,938.28"
DFID,DFID,27/04/2011,Property & Construction Services,DFID Ethiopia,SAFECON Electro Mechanical Works PLC,400156139,"8,002.78"
DFID,DFID,27/04/2011,Technical and Advisory Services,DFID Ethiopia,ATOS CONSULTING LIMITED,400151438,"8,540.26"
DFID,DFID,12/04/2011,House rentals,DFID Ethiopia,Million Terefe,400153948,"9,193.34"
DFID,DFID,12/04/2011,House rentals,DFID Ethiopia,Manekuleh Shiferaw,400153945,"11,767.47"
DFID,DFID,27/04/2011,Technical and Advisory Services,DFID Ethiopia,ATOS CONSULTING LIMITED,400155684,"30,682.17"
DFID,DFID,12/04/2011,House rentals,DFID Ethiopia,Hamza Ahmed,400153940,"44,128.02"
DFID,DFID,26/04/2011,Aid Programme - Trust Funds contributions,DFID Ethiopia,IBRD (HSBC)  C/O THE WORLD BANK,400155947,"150,000.00"
DFID,DFID,12/04/2011,Uniforms,DFID Ghana,Overseas Union Ltd,400154084,272.69
DFID,DFID,12/04/2011,Uniforms,DFID Ghana,Overseas Union Ltd,400154084,347.06
DFID,DFID,07/04/2011,Property & Construction Services,DFID Ghana,Kingdom Book and Stationery,400153448,506.69
DFID,DFID,05/04/2011,Uniforms,DFID Ghana,Macindy Enterprise,400153067,601.74
DFID,DFID,15/04/2011,Property & Construction Services,DFID Ghana,Justice K Marfo,400154676,609.51
DFID,DFID,15/04/2011,Facilities Management payments,DFID Ghana,B & D Consultancy Company Limited,400154705,"1,094.64"
DFID,DFID,14/04/2011,Technical and Advisory Services,DFID Ghana,THE IDL GROUP,400154184,"1,667.90"
DFID,DFID,06/04/2011,House rentals,DFID Ghana,Home and Garden Realty,400153330,"1,743.68"
DFID,DFID,28/04/2011,Office Equipment - Maintenance,DFID Ghana,Nyani & Co. Ltd,400156347,"1,749.76"
DFID,DFID,15/04/2011,Facilities Management payments,DFID Ghana,B & D Consultancy Company Limited,400154705,"1,781.19"
DFID,DFID,26/04/2011,Property & Construction Services,DFID Ghana,Ghana Telecommunications Company Ltd,400156081,"3,061.70"
DFID,DFID,26/04/2011,Property & Construction Services,DFID Ghana,Lambef Company Limited,400156076,"5,752.43"
DFID,DFID,08/04/2011,Property & Construction Services,DFID Ghana,TURNER & TOWNSEND,400152902,"5,752.96"
DFID,DFID,27/04/2011,Property & Construction Services,DFID Ghana,Nyani & Co. Ltd,400156156,"8,066.75"
DFID,DFID,05/04/2011,Technical and Advisory Services,DFID Ghana,DEVELOPING MARKETS ASSOCIATES LTD,400153006,"8,350.00"
DFID,DFID,26/04/2011,Contract Catering Services,DFID India,NARINDER PAL SINGH,400155932,580.5
DFID,DFID,19/04/2011,Office Equipment - Purchases,DFID India,Supertech (india) Pvt. Ltd.,400155052,598.18
DFID,DFID,18/04/2011,Facilities Management payments,DFID India,TRADE LINKS INTERNATIONAL,400154946,641.44
DFID,DFID,19/04/2011,Facilities Management payments,DFID India,INT-DEC-CON-ASSOCIATES,400155123,734.84
DFID,DFID,19/04/2011,Facilities Management payments,DFID India,CB RICHARD ELLIS SOUTH ASIA PVT LTD,400155050,756.85
DFID,DFID,18/04/2011,Books & Publications,DFID India,BRITISH HIGH COMMISSION,400154944,"1,246.62"
DFID,DFID,28/04/2011,Technical and Advisory Services,DFID India,SPC MANAGEMENT SERVICES PRIVATE LIMI,400156377,"2,150.57"
DFID,DFID,18/04/2011,Contract Catering Services,DFID India,THE GOURMET FACTORY,400154965,"2,378.76"
DFID,DFID,28/04/2011,Technical and Advisory Services,DFID India,SPC MANAGEMENT SERVICES PRIVATE LIMI,400156383,"2,494.69"
DFID,DFID,19/04/2011,Facilities Management payments,DFID India,KONE ELEVATOR INDIA PRIVATE LIMITED,400155158,"2,839.88"
DFID,DFID,19/04/2011,Other non-passenger transportation,DFID India,G4S FACILITY SERVICES (INDIA) PVT. L,400155152,"3,738.50"
DFID,DFID,21/04/2011,Technical and Advisory Services,DFID India,DELOITTE TOUCHE TOHMATSU INDIA PRIVA,400155169,"6,711.03"
DFID,DFID,12/04/2011,Technical and Advisory Services,DFID India,CARE INTERNATIONAL,400153824,"7,505.07"
DFID,DFID,19/04/2011,Facilities Management payments,DFID India,CB RICHARD ELLIS SOUTH ASIA PVT LTD,400155055,"7,997.04"
DFID,DFID,28/04/2011,Technical and Advisory Services,DFID India,"The Louis Berger Group, INC",400156395,"9,766.58"
DFID,DFID,21/04/2011,Technical and Advisory Services,DFID India,DELOITTE TOUCHE TOHMATSU INDIA PRIVA,400155180,"12,063.80"
DFID,DFID,21/04/2011,Technical and Advisory Services,DFID India,CROWN AGENTS (INDIA) PVT. LTD,400155143,"12,866.76"
DFID,DFID,19/04/2011,Technical and Advisory Services,DFID India,Pricewaterhousecoopers Pvt. Ltd.,400155061,"16,682.26"
DFID,DFID,19/04/2011,Technical and Advisory Services,DFID India,OPTIONS CONSULTANCY SERVICES LIMITED,400155012,"17,434.17"
DFID,DFID,21/04/2011,Technical and Advisory Services,DFID India,CROWN AGENTS (INDIA) PVT. LTD,400155185,"18,657.80"
DFID,DFID,12/04/2011,Technical and Advisory Services,DFID India,OPTIONS CONSULTANCY SERVICES LIMITED,400154236,"19,556.00"
DFID,DFID,21/04/2011,Technical and Advisory Services,DFID India,CROWN AGENTS (INDIA) PVT. LTD,400155187,"30,198.13"
DFID,DFID,19/04/2011,Technical and Advisory Services,DFID India,OPTIONS CONSULTANCY SERVICES LIMITED,400155015,"39,112.00"
DFID,DFID,21/04/2011,Technical and Advisory Services,DFID India,CROWN AGENTS (INDIA) PVT. LTD,400155183,"49,491.38"
DFID,DFID,12/04/2011,Technical and Advisory Services,DFID India,OPTIONS CONSULTANCY SERVICES LIMITED,400154234,"52,149.00"
DFID,DFID,19/04/2011,Technical and Advisory Services,DFID India,OPTIONS CONSULTANCY SERVICES LIMITED,400155178,"56,421.00"
DFID,DFID,13/04/2011,Aid Programme - Accountable Grant Payments,DFID India,LIVERPOOL SCHOOL OF TROPICAL MEDICINE,400154452,"57,109.66"
DFID,DFID,21/04/2011,Technical and Advisory Services,DFID India,NATURAL RESOURCES INTERN,400155424,"59,009.67"
DFID,DFID,19/04/2011,Technical and Advisory Services,DFID India,OPTIONS CONSULTANCY SERVICES LIMITED,400155174,"65,051.00"
DFID,DFID,14/04/2011,Technical and Advisory Services,DFID India,GHK CONSULTING LTD,400154451,"67,666.00"
DFID,DFID,07/04/2011,Technical and Advisory Services,DFID India,CAMBRIDGE EDUCATION LTD,400153499,"86,136.04"
DFID,DFID,12/04/2011,Technical and Advisory Services,DFID India,CARE INTERNATIONAL,400153824,"127,165.00"
DFID,DFID,19/04/2011,Property & Construction Services,DFID Jerusalem and Palestine,TURNER & TOWNSEND,400154458,"1,171.60"
DFID,DFID,05/04/2011,Aid Programme - Other Financial Aid to Government,DFID Jerusalem and Palestine,Michael O'Byrne,400152564,"1,550.00"
DFID,DFID,13/04/2011,Printer Consumables,DFID Kenya,Circuit Business Systems (K) Limited,400154545,190.95
DFID,DFID,13/04/2011,Printer Consumables,DFID Kenya,Circuit Business Systems (K) Limited,400154545,219.6
DFID,DFID,20/04/2011,Vehicle Repairs & Maintenance,DFID Kenya,Dhanjal Motor Works,400155523,508.05
DFID,DFID,17/04/2011,Facilities Management payments,DFID Kenya,Hind Construction Co Ltd,400154537,529.03
DFID,DFID,13/04/2011,Printer Consumables,DFID Kenya,Circuit Business Systems (K) Limited,400154545,544.22
DFID,DFID,20/04/2011,Vehicle Repairs & Maintenance,DFID Kenya,Dhanjal Motor Works,400155523,584.26
DFID,DFID,24/04/2011,Furniture & Fittings,DFID Kenya,Nishit and Company,400155779,646.2
DFID,DFID,24/04/2011,Technical and Advisory Services,DFID Kenya,The Standard Ltd,400155780,902.3
DFID,DFID,20/04/2011,Other travel costs,DFID Kenya,UNHCR (Kenya),400155429,919.12
DFID,DFID,20/04/2011,House rentals,DFID Kenya,Fairview Hotel,400155428,992.87
DFID,DFID,20/04/2011,Vehicle Repairs & Maintenance,DFID Kenya,Dhanjal Motor Works,400155523,"1,447.95"
DFID,DFID,20/04/2011,Technical and Advisory Services,DFID Kenya,Andrew Nyabera Nyagwencha,400155457,"1,474.46"
DFID,DFID,21/04/2011,Technical and Advisory Services,DFID Kenya,Alfred Ojwang,400155638,"1,564.21"
DFID,DFID,24/04/2011,Furniture & Fittings,DFID Kenya,Nishit and Company,400155777,"1,754.68"
DFID,DFID,12/04/2011,House rentals,DFID Kenya,Yaya Towers Limited,400154023,"1,814.75"
DFID,DFID,18/04/2011,House rentals,DFID Kenya,Yaya Towers Limited,400154786,"1,828.29"
DFID,DFID,20/04/2011,Hotels - Accommodation only,DFID Kenya,Fairview Hotel,400155428,"1,865.94"
DFID,DFID,24/04/2011,House rentals,DFID Kenya,Yaya Towers Limited,400155790,"1,868.89"
DFID,DFID,24/04/2011,House rentals,DFID Kenya,Yaya Towers Limited,400155791,"1,868.89"
DFID,DFID,13/04/2011,Furniture & Fittings,DFID Kenya,Nishit and Company,400154540,"1,874.18"
DFID,DFID,09/04/2011,House rentals,DFID Kenya,Yaya Towers Limited,400153700,"1,890.63"
DFID,DFID,09/04/2011,House rentals,DFID Kenya,Yaya Towers Limited,400153701,"1,901.42"
DFID,DFID,09/04/2011,House rentals,DFID Kenya,Yaya Towers Limited,400153702,"1,901.42"
DFID,DFID,14/04/2011,Educational Supplies/Aids,DFID Kenya,CHARLES KENDALL & PARTNERS LTD,400154511,"2,443.87"
DFID,DFID,20/04/2011,Technical and Advisory Services,DFID Kenya,Susan Amlango Aletia,400155460,"3,089.05"
DFID,DFID,20/04/2011,Technical and Advisory Services,DFID Kenya,Kairichi Consultancy Limited,400155413,"3,446.27"
DFID,DFID,21/04/2011,House rentals,DFID Kenya,Lloyd Masika Ltd,400155633,"3,917.87"
DFID,DFID,05/04/2011,House rentals,DFID Kenya,Franken Limited,400153050,"5,103.93"
DFID,DFID,05/04/2011,House rentals,DFID Kenya,Franken Limited,400153049,"5,547.75"
DFID,DFID,14/04/2011,House rentals,DFID Kenya,Knight Frank Kenya Limited,400153869,"6,739.55"
DFID,DFID,16/04/2011,House rentals,DFID Kenya,Simeon Nyachae,400154788,"7,848.84"
DFID,DFID,01/04/2011,Technical and Advisory Services,DFID Kenya,HELPAGE INTERNATIONAL,400152918,"13,826.09"
DFID,DFID,26/04/2011,Aid Programme - Other Financial Aid to Government,DFID Kenya,NATIONAL SCHOOL OF GOVERNMENT,400155729,"14,030.25"
DFID,DFID,18/04/2011,Technical and Advisory Services,DFID Kenya,MOTT MACDONALD INTERNATIONAL,400154911,"14,351.60"
DFID,DFID,01/04/2011,Technical and Advisory Services,DFID Kenya,HELPAGE INTERNATIONAL,400152919,"19,833.33"
DFID,DFID,26/04/2011,Aid Programme - Other Financial Aid to Government,DFID Kenya,NATIONAL SCHOOL OF GOVERNMENT,400155730,"31,383.47"
DFID,DFID,20/04/2011,Technical and Advisory Services,DFID Kenya,HAREWELLE INTERNATIONAL LIMITED,400155287,"34,722.18"
DFID,DFID,14/04/2011,Technical and Advisory Services,DFID Kenya,LIVERPOOL ASSOCIATES IN TROP. HEALTH,400154069,"79,795.35"
DFID,DFID,26/04/2011,Aid Programme - Other Financial Aid to Government,DFID Kenya,NATIONAL SCHOOL OF GOVERNMENT,400155719,"100,786.37"
DFID,DFID,11/04/2011,Technical and Advisory Services,DFID Kenya,OXFAM,400153735,"192,676.00"
DFID,DFID,05/04/2011,Technical and Advisory Services,DFID Kosovo,COFFEY INTERNATIONAL DEVELOPMENT LTD,400153060,"22,013.72"
DFID,DFID,20/04/2011,Technical and Advisory Services,DFID Kosovo,PRICEWATERHOUSECOOPERS,400155420,"38,027.10"
DFID,DFID,28/04/2011,Technical and Advisory Services,DFID Kosovo,COFFEY INTERNATIONAL DEVELOPMENT LTD,400156074,"45,677.11"
DFID,DFID,18/04/2011,Technical and Advisory Services,DFID Kosovo,PUBLIC ADMINISTRATION INTERN,400154985,"56,403.61"
DFID,DFID,13/04/2011,Technical and Advisory Services,DFID Kyrgyzstan,GRM INTERNATIONAL LTD,400154513,"51,289.88"
DFID,DFID,08/04/2011,Cleaning Costs,DFID Malawi,Royal Oak,400153541,196.65
DFID,DFID,08/04/2011,Vehicle Petrol & Oil,DFID Malawi,British High Commission,400153543,197.91
DFID,DFID,08/04/2011,Cleaning Costs,DFID Malawi,Royal Oak,400153541,417.88
DFID,DFID,08/04/2011,Vehicle Petrol & Oil,DFID Malawi,British High Commission,400153543,420.57
DFID,DFID,26/04/2011,Data network- remote working,DFID Malawi,Broadband Digital Solutions (BSD),400156022,560.26
DFID,DFID,08/04/2011,Training - Course Fees,DFID Malawi,KuNgoni Centre of Culture & Arts,400153550,648.05
DFID,DFID,01/04/2011,Training - Travel & Subsistence,DFID Malawi,Ulendo Safaris,400152803,"1,118.21"
DFID,DFID,26/04/2011,Training - Travel & Subsistence,DFID Mozambique,Intercontinental Nairobi,400155969,721.97
DFID,DFID,12/04/2011,Technical and Advisory Services,DFID Mozambique,"ANARKALY,LDA",400154193,"1,760.16"
DFID,DFID,19/04/2011,Technical and Advisory Services,DFID Mozambique,"Furtado,Bhikha,Loforte,Popat & Associados Advogados",400155121,"2,286.48"
DFID,DFID,20/04/2011,Technical and Advisory Services,DFID Mozambique,Benilde Graciete Garrine,400155469,"3,063.73"
DFID,DFID,26/04/2011,Auditors Other Services,DFID Mozambique,Adelino Jeque Pimpao,400155916,"5,023.49"
DFID,DFID,12/04/2011,Property & Construction Services,DFID Mozambique, FCO SERVICES,400154242,"5,460.00"
DFID,DFID,27/04/2011,Technical and Advisory Services,DFID Mozambique,Consultores HODI Lda,400156121,"5,778.88"
DFID,DFID,05/04/2011,Training Providers/Facilitation Services,DFID Mozambique,ATKINSON EXECUTIVE DEVELOPMENT LTD,400153098,"7,898.67"
DFID,DFID,13/04/2011,Technical and Advisory Services,DFID Mozambique,THE CROWN AGENTS,400154497,"18,426.60"
DFID,DFID,27/04/2011,Technical and Advisory Services,DFID Mozambique,THE CROWN AGENTS,400156293,"27,622.20"
DFID,DFID,18/04/2011,Technical and Advisory Services,DFID Mozambique,THE CROWN AGENTS,400154931,"59,301.92"
DFID,DFID,12/04/2011,Aid Programme - Humanitarian Material Relief Assistance and Services,DFID Mozambique,SAVE THE CHILDREN UK,400154233,"585,219.00"
DFID,DFID,28/04/2011,Facilities Management payments,DFID Nepal,John Sanday Associates Pvt. Ltd,400156341,22.22
DFID,DFID,28/04/2011,Facilities Management payments,DFID Nepal,John Sanday Associates Pvt. Ltd,400156341,78.54
DFID,DFID,21/04/2011,Reproduction & Printing Materials,DFID Nepal,Robin Commercial Center,400155548,292.95
DFID,DFID,28/04/2011,Facilities Management payments,DFID Nepal,John Sanday Associates Pvt. Ltd,400156341,307.48
DFID,DFID,21/04/2011,Reproduction & Printing Materials,DFID Nepal,Robin Commercial Center,400155548,544.06
DFID,DFID,12/04/2011,Hotels - Accommodation only,DFID Nepal,Shaligram Apartment-Hotel,400153864,613.61
DFID,DFID,28/04/2011,Facilities Management payments,DFID Nepal,John Sanday Associates Pvt. Ltd,400156341,890.76
DFID,DFID,26/04/2011,Training - Course Fees,DFID Nepal,NATIONAL SCHOOL OF GOVERNMENT,400155897,"1,300.00"
DFID,DFID,18/04/2011,Hotels - Accommodation only,DFID Nepal,Summit Hotel Pvt Ltd,400154868,"1,664.46"
DFID,DFID,15/04/2011,Technical and Advisory Services,DFID Nepal,HTSPE LTD,400154251,"1,791.42"
DFID,DFID,11/04/2011,Technical and Advisory Services,DFID Nepal,WSP INTERNATIONAL LIMITED,400153793,"2,934.04"
DFID,DFID,18/04/2011,Technical and Advisory Services,DFID Nepal,HTSPE LTD,400154734,"43,369.08"
DFID,DFID,18/04/2011,Technical and Advisory Services,DFID Nepal,OPTIONS CONSULTANCY SERVICES LIMITED,400154743,"93,984.19"
DFID,DFID,11/04/2011,Technical and Advisory Services,DFID Nepal,WSP INTERNATIONAL LIMITED,400153759,"173,250.03"
DFID,DFID,18/04/2011,Technical and Advisory Services,DFID Nepal,GRM INTERNATIONAL LTD,400154994,"221,023.20"
DFID,DFID,20/04/2011,Aid Programme - Trust Funds contributions,DFID Nepal,UNDP CONTRIBUTIONS GBP,400155246,"940,000.00"
DFID,DFID,18/04/2011,Aid Programme - Poverty Reduction Budget Support,DFID Nepal,THE CROWN AGENTS,400154915,"7,000,000.00"
DFID,DFID,15/04/2011,Technical and Advisory Services,DFID Nigeria,Crown Agents Bank,400154560,21.89
DFID,DFID,19/04/2011,Facilities Management payments,DFID Nigeria,Fracham Company,400155179,47.24
DFID,DFID,19/04/2011,Facilities Management payments,DFID Nigeria,Fracham Company,400155179,59.05
DFID,DFID,19/04/2011,Technical and Advisory Services,DFID Nigeria,Fracham Company,400155179,59.05
DFID,DFID,19/04/2011,Technical and Advisory Services,DFID Nigeria,Fracham Company,400155179,59.05
DFID,DFID,21/04/2011,Technical and Advisory Services,DFID Nigeria,Circuit Board (Nig) Ltd,400155690,72
DFID,DFID,21/04/2011,Facilities Management payments,DFID Nigeria,Circuit Board (Nig) Ltd,400155690,126.03
DFID,DFID,06/04/2011,Facilities Management payments,DFID Nigeria,Prime Power Ltd,400153305,135.8
DFID,DFID,21/04/2011,Technical and Advisory Services,DFID Nigeria,Circuit Board (Nig) Ltd,400155690,140.03
DFID,DFID,21/04/2011,Facilities Management payments,DFID Nigeria,Circuit Board (Nig) Ltd,400155690,157.03
DFID,DFID,20/04/2011,Facilities Management payments,DFID Nigeria,Sparklean Services Nig Ltd,400155398,162.43
DFID,DFID,21/04/2011,Technical and Advisory Services,DFID Nigeria,Circuit Board (Nig) Ltd,400155690,184.04
DFID,DFID,19/04/2011,Facilities Management payments,DFID Nigeria,Fracham Company,400155179,226.71
DFID,DFID,06/04/2011,Facilities Management payments,DFID Nigeria,Prime Power Ltd,400153305,407.42
DFID,DFID,27/04/2011,Oil - Other Utilities,DFID Nigeria,Conoil plc,400156174,498.05
DFID,DFID,27/04/2011,Oil - Other Utilities,DFID Nigeria,Conoil plc,400156174,498.05
DFID,DFID,27/04/2011,Technical and Advisory Services,DFID Nigeria,Conoil plc,400156174,498.05
DFID,DFID,27/04/2011,Technical and Advisory Services,DFID Nigeria,Conoil plc,400156174,498.05
DFID,DFID,27/04/2011,Technical and Advisory Services,DFID Nigeria,Conoil plc,400156174,498.05
DFID,DFID,20/04/2011,Facilities Management payments,DFID Nigeria,Sparklean Services Nig Ltd,400155398,567.32
DFID,DFID,07/04/2011,other information & communication technologies,DFID Nigeria,Geotech Technologies Limited,400153421,576.12
DFID,DFID,15/04/2011,Technical and Advisory Services,DFID Nigeria,Conote Services Ltd,400154704,587.42
DFID,DFID,21/04/2011,Facilities Management payments,DFID Nigeria,Circuit Board (Nig) Ltd,400155690,594.22
DFID,DFID,12/04/2011,Training - Course Fees,DFID Nigeria,Meikles Hotel,400154119,610.13
DFID,DFID,07/04/2011,other information & communication technologies,DFID Nigeria,Geotech Technologies Limited,400153421,704.14
DFID,DFID,19/04/2011,Facilities Management payments,DFID Nigeria,Fracham Company,400155179,729.81
DFID,DFID,15/04/2011,Office Equipment - Purchases,DFID Nigeria,Crown Agents Bank,400154560,754.76
DFID,DFID,06/04/2011,Facilities Management payments,DFID Nigeria,Conote Services Ltd,400153286,869.29
DFID,DFID,14/04/2011,Training Providers/Facilitation Services,DFID Nigeria,NATIONAL SCHOOL OF GOVERNMENT,400154221,925
DFID,DFID,13/04/2011,Office Equipment - Maintenance,DFID Nigeria,Power Systems Technology limited,400154416,"1,165.94"
DFID,DFID,06/04/2011,Technical and Advisory Services,DFID Nigeria,Conote Services Ltd,400153299,"1,193.15"
DFID,DFID,13/04/2011,Office Equipment - Maintenance,DFID Nigeria,Power Systems Technology limited,400154416,"1,425.04"
DFID,DFID,11/04/2011,Medicines & Drugs,DFID Nigeria,THE CROWN AGENTS,400153737,"1,862.29"
DFID,DFID,21/04/2011,Facilities Management payments,DFID Nigeria,Circuit Board (Nig) Ltd,400155690,"1,938.29"
DFID,DFID,18/04/2011,Technical and Advisory Services,DFID Nigeria,THE CROWN AGENTS,400154494,"4,754.36"
DFID,DFID,27/04/2011,Oil - Other Utilities,DFID Nigeria,Conoil plc,400156174,"5,752.50"
DFID,DFID,21/04/2011,Technical and Advisory Services,DFID Nigeria,HLSP LTD,400155000,"5,806.54"
DFID,DFID,19/04/2011,Technical and Advisory Services,DFID Nigeria,Mr Xavier Lecacheur,400155296,"6,494.57"
DFID,DFID,08/04/2011,Technical and Advisory Services,DFID Nigeria,Mr Xavier Lecacheur,400153629,"7,314.56"
DFID,DFID,27/04/2011,Technical and Advisory Services,DFID Nigeria,Chris Ifeanyi Onodugo,400156167,"7,517.06"
DFID,DFID,06/04/2011,Printer Consumables,DFID Nigeria,Christec Computer Ltd,400153230,"7,676.63"
DFID,DFID,21/04/2011,Technical and Advisory Services,DFID Nigeria,HLSP LTD,400154998,"7,986.45"
DFID,DFID,07/04/2011,Facilities Management payments,DFID Nigeria,DIPLOMATIC MISSION SUPPLIES,400152906,"7,989.87"
DFID,DFID,18/04/2011,Technical and Advisory Services,DFID Nigeria,Pannell Kerr Forster Chartered Acc,400154937,"9,050.04"
DFID,DFID,14/04/2011,Technical and Advisory Services,DFID Nigeria,K B ROBSON,400154551,"9,232.00"
DFID,DFID,27/04/2011,Oil - Other Utilities,DFID Nigeria,Conoil plc,400156174,"10,185.16"
DFID,DFID,06/04/2011,Printer Consumables,DFID Nigeria,Christec Computer Ltd,400153230,"10,515.37"
DFID,DFID,07/04/2011,Facilities Management payments,DFID Nigeria,DIPLOMATIC MISSION SUPPLIES,400152906,"16,781.79"
DFID,DFID,05/04/2011,Office Equipment - Purchases,DFID Nigeria,THE CROWN AGENTS,400151732,"19,469.72"
DFID,DFID,14/04/2011,Facilities Management payments,DFID Nigeria,THE CROWN AGENTS,400153158,"22,134.59"
DFID,DFID,19/04/2011,Technical and Advisory Services,DFID Nigeria,THE CROWN AGENTS,400154929,"22,482.60"
DFID,DFID,28/04/2011,Technical and Advisory Services,DFID Nigeria,OXFORD POLICY MANAGEMENT,400156276,"27,379.18"
DFID,DFID,21/04/2011,Technical and Advisory Services,DFID Nigeria,Policy. and Legal Advocacy Centre,400155692,"74,605.59"
DFID,DFID,07/04/2011,Medicines & Drugs,DFID Nigeria,THE CROWN AGENTS,400153088,"79,607.02"
DFID,DFID,26/04/2011,Technical and Advisory Services,DFID Nigeria,COFFEY INTERNATIONAL DEVELOPMENT LTD,400156078,"85,729.31"
DFID,DFID,11/04/2011,Technical and Advisory Services,DFID Nigeria,GRM INTERNATIONAL LTD,400153743,"91,016.82"
DFID,DFID,07/04/2011,Facilities Management payments,DFID Nigeria,DIPLOMATIC MISSION SUPPLIES,400152904,"96,767.13"
DFID,DFID,27/04/2011,Technical and Advisory Services,DFID Nigeria,GRM INTERNATIONAL LTD,400156222,"111,613.88"
DFID,DFID,19/04/2011,Technical and Advisory Services,DFID Nigeria,THE CROWN AGENTS,400155288,"141,384.59"
DFID,DFID,12/04/2011,Technical and Advisory Services,DFID Nigeria,HTSPE LTD,400154245,"150,000.00"
DFID,DFID,18/04/2011,Office Equipment - Purchases,DFID Nigeria,THE CROWN AGENTS,400154494,"156,667.18"
DFID,DFID,04/04/2011,Technical and Advisory Services,DFID Nigeria,ADAM SMITH INTERNATIONAL  LTD,400152476,"292,386.82"
DFID,DFID,19/04/2011,Technical and Advisory Services,DFID Nigeria,GRM INTERNATIONAL LTD,400155281,"293,928.75"
DFID,DFID,12/04/2011,Technical and Advisory Services,DFID Nigeria,Cambridge  Education Limited,400154195,"588,005.96"
DFID,DFID,07/04/2011,Technical and Advisory Services,DFID Nigeria,ADAM SMITH INTERNATIONAL  LTD,400152482,"641,384.62"
DFID,DFID,14/04/2011,Technical and Advisory Services,DFID Nigeria,HTSPE LTD,400154461,"696,800.08"
DFID,DFID,19/04/2011,Contraceptives,DFID Nigeria,THE CROWN AGENTS,400154929,"805,815.43"
DFID,DFID,12/04/2011,Technical and Advisory Services,DFID Nigeria,Cambridge  Education Limited,400154195,"1,515,591.67"
DFID,DFID,27/04/2011,Technical and Advisory Services,DFID Nigeria,MALARIA CONSORTIUM,400156161,"1,881,125.00"
DFID,DFID,27/04/2011,Office Equipment - Purchases,DFID Pakistan,"Metro Cash & Carry, Pakistan, Islamabad",400156178,266.26
DFID,DFID,27/04/2011,Office Supplies,DFID Pakistan,"Metro Cash & Carry, Pakistan, Islamabad",400156178,427.28
DFID,DFID,13/04/2011,Recruitment costs,DFID Pakistan,ASYIA KAZMI,400154487,519.26
DFID,DFID,12/04/2011,Cleaning Costs,DFID Pakistan,PIONEER Human Resources Management,400154099,520.68
DFID,DFID,27/04/2011,Technical and Advisory Services,DFID Pakistan,Sher Shah Khan,400156098,531.09
DFID,DFID,21/04/2011,Technical and Advisory Services,DFID Pakistan,Pervez Iqbal,400155676,553.42
DFID,DFID,12/04/2011,Air fares,DFID Pakistan,BONDS TRAVEL BUREAU,400154083,581.57
DFID,DFID,28/04/2011,Consultancy Services,DFID Pakistan, IOD PARC,400156533,650
DFID,DFID,19/04/2011,Aid Programme - Humanitarian Material Relief Assistance and Services,DFID Pakistan,British Deputy High Commission (BDHC),400155043,666.39
DFID,DFID,27/04/2011,Air fares,DFID Pakistan,AEG Travel Services (pvt) Ltd,400156095,784.26
DFID,DFID,26/04/2011,Recruitment costs,DFID Pakistan,ASYIA KAZMI,400155965,855.8
DFID,DFID,12/04/2011,Aid Programme - Humanitarian Material Relief Assistance and Services,DFID Pakistan,PHOENIX SECURITY SERVICES (PVT.) LTD,400154087,"1,128.13"
DFID,DFID,29/04/2011,Technical and Advisory Services,DFID Pakistan,Shahab Younis,400156568,"1,292.58"
DFID,DFID,21/04/2011,Vehicle Petrol & Oil,DFID Pakistan,Shell Pakistan Limited,400155682,"1,568.01"
DFID,DFID,21/04/2011,Technical and Advisory Services,DFID Pakistan,Pervez Iqbal,400155680,"1,802.58"
DFID,DFID,12/04/2011,Technical and Advisory Services,DFID Pakistan,Pervez Iqbal,400154072,"2,168.76"
DFID,DFID,07/04/2011,Technical and Advisory Services,DFID Pakistan,THE CROWN AGENTS,400152910,"2,635.20"
DFID,DFID,19/04/2011,Computer Consumables,DFID Pakistan,HB COMPUTERS,400155044,"2,723.83"
DFID,DFID,12/04/2011,Technical and Advisory Services,DFID Pakistan,British Council Pakistan,400154063,"6,209.61"
DFID,DFID,27/04/2011,Technical and Advisory Services,DFID Pakistan,RIVER PATH ASSOCIATES,400156226,"6,761.34"
DFID,DFID,27/04/2011,Consultancy Services,DFID Pakistan,recipient withheld,400156225,"7,421.67"
DFID,DFID,12/04/2011,Technical and Advisory Services,DFID Pakistan,British Council Pakistan,400154066,"7,796.77"
DFID,DFID,27/04/2011,Technical and Advisory Services,DFID Pakistan,Sher Shah Khan,400156099,"12,030.31"
DFID,DFID,14/04/2011,Technical and Advisory Services,DFID Pakistan,THE CROWN AGENTS,400154557,"12,121.17"
DFID,DFID,27/04/2011,Aid Programme - Humanitarian Material Relief Assistance and Services,DFID Pakistan,British Deputy High Commission (BDHC),400156107,"15,044.84"
DFID,DFID,13/04/2011,House rentals,DFID Pakistan,Dr Tasneem Javed Ghani,400154278,"17,032.65"
DFID,DFID,07/04/2011,Technical and Advisory Services,DFID Pakistan,THE CROWN AGENTS,400152910,"17,856.00"
DFID,DFID,27/04/2011,Aid Programme - Humanitarian Material Relief Assistance and Services,DFID Pakistan,British Deputy High Commission (BDHC),400156109,"19,601.84"
DFID,DFID,08/04/2011,Technical and Advisory Services,DFID Pakistan,RIVER PATH ASSOCIATES,400153498,"19,725.00"
DFID,DFID,06/04/2011,Technical and Advisory Services,DFID Pakistan,THE CROWN AGENTS,400152912,"23,796.10"
DFID,DFID,19/04/2011,Technical and Advisory Services,DFID Pakistan,THE CROWN AGENTS,400154742,"27,945.57"
DFID,DFID,08/04/2011,Technical and Advisory Services,DFID Pakistan,THE CROWN AGENTS,400152954,"35,397.93"
DFID,DFID,18/04/2011,Technical and Advisory Services,DFID Pakistan,HTSPE LTD,400154710,"36,327.67"
DFID,DFID,12/04/2011,Technical and Advisory Services,DFID Pakistan,HLSP LIMITED,400153501,"38,705.47"
DFID,DFID,27/04/2011,Technical and Advisory Services,DFID Pakistan,THE CROWN AGENTS,400154733,"43,406.61"
DFID,DFID,07/04/2011,Technical and Advisory Services,DFID Pakistan,THE CROWN AGENTS,400152953,"45,209.70"
DFID,DFID,15/04/2011,Technical and Advisory Services,DFID Pakistan,British Council,400154702,"61,452.69"
DFID,DFID,20/04/2011,Technical and Advisory Services,DFID Pakistan,MOTT MACDONALD LTD,400155286,"71,125.37"
DFID,DFID,12/04/2011,Technical and Advisory Services,DFID Pakistan,HLSP (Mott MacDonald),400154106,"76,833.25"
DFID,DFID,07/04/2011,Technical and Advisory Services,DFID Pakistan,THE CROWN AGENTS,400152908,"92,367.60"
DFID,DFID,15/04/2011,Technical and Advisory Services,DFID Pakistan,HLSP (Mott MacDonald),400154697,"131,425.48"
DFID,DFID,13/04/2011,Aid Programme - Accountable Grant Payments,DFID Pakistan,CONCERN WORLDWIDE,400154360,"1,500,000.00"
DFID,DFID,13/04/2011,Air fares,DFID Rwanda,ITT (International Tours & Travel Ltd),400154368,832.72
DFID,DFID,19/04/2011,Air fares,DFID Rwanda,African (Wings) Travels Ltd,400155098,"1,328.05"
DFID,DFID,13/04/2011,Hotels - Accommodation only,DFID Rwanda,SORAS,400154365,"1,814.27"
DFID,DFID,05/04/2011,Property & Construction Services,DFID Rwanda,Super Design Limited,400150920,"1,843.10"
DFID,DFID,19/04/2011,Property & Construction Services,DFID Rwanda,Solutions General s.a.r.l,400155260,"3,810.16"
DFID,DFID,19/04/2011,Technical and Advisory Services,DFID Rwanda,Hitimana Stephen,400155257,"4,074.07"
DFID,DFID,08/04/2011,House rentals,DFID Rwanda,Mrs Gatete,400153598,"6,621.70"
DFID,DFID,08/04/2011,House rentals,DFID Rwanda,Kambali Emmanuel/Kanyange Therese,400153573,"7,357.45"
DFID,DFID,08/04/2011,House rentals,DFID Rwanda,Dr. JEAN DAMASCENE N,400153574,"7,357.45"
DFID,DFID,08/04/2011,House rentals,DFID Rwanda,MR. Omende Djamba Kambilo Tony,400153581,"7,357.45"
DFID,DFID,08/04/2011,House rentals,DFID Rwanda,OCTA K. MUHIRWA,400153585,"7,357.45"
DFID,DFID,08/04/2011,House rentals,DFID Rwanda,Joshua Mbaraga,400153610,"8,093.19"
DFID,DFID,08/04/2011,House rentals,DFID Rwanda,MUKAYUHI JOY,400153572,"8,462.91"
DFID,DFID,08/04/2011,House rentals,DFID Rwanda,Eugenie Kabageni,400153583,"12,875.54"
DFID,DFID,07/04/2011,Technical and Advisory Services,DFID Rwanda,INSTITUTE OF DEV  STUDIES UNIVER,400153490,"15,645.73"
DFID,DFID,28/04/2011,Vehicle Petrol & Oil,DFID Sierra Leone and Liberia,British High Commission,400156368,326.79
DFID,DFID,28/04/2011,Vehicle Petrol & Oil,DFID Sierra Leone and Liberia,British High Commission,400156368,490.18
DFID,DFID,27/04/2011,Technical and Advisory Services,DFID Sierra Leone and Liberia,HENRY VAGG,400156264,500
DFID,DFID,21/04/2011,Training - Course Fees,DFID Sierra Leone and Liberia,Golden Jubilee Ltd,400155605,539.24
DFID,DFID,21/04/2011,Training - Course Fees,DFID Sierra Leone and Liberia,Golden Jubilee Ltd,400155607,539.24
DFID,DFID,28/04/2011,Facilities Management payments,DFID Sierra Leone and Liberia,Heckmet Joseph & Sons Ltd,400156420,571.24
DFID,DFID,28/04/2011,Technical and Advisory Services,DFID Sierra Leone and Liberia,Ilara Mahdi,400156454,733.88
DFID,DFID,13/04/2011,Facilities Management payments,DFID Sierra Leone and Liberia,Raju's Electricals,400154444,776.17
DFID,DFID,13/04/2011,Other Building Costs,DFID Sierra Leone and Liberia,Siaka Dumbuya,400154440,865.97
DFID,DFID,13/04/2011,Training - Course Fees,DFID Sierra Leone and Liberia,Tokeair Limited,400154430,"1,116.24"
DFID,DFID,28/04/2011,Training - Course Fees,DFID Sierra Leone and Liberia,Tokeair Limited,400156446,"1,119.85"
DFID,DFID,15/04/2011,Other Building Costs,DFID Sierra Leone and Liberia,Clayton Manly-Spain,400154782,"2,521.07"
DFID,DFID,27/04/2011,Technical and Advisory Services,DFID Sierra Leone and Liberia,HENRY VAGG,400156264,"3,500.00"
DFID,DFID,26/04/2011,Training - Course Fees,DFID Sierra Leone and Liberia,Nicola Jane Shearer,400155996,"4,614.33"
DFID,DFID,11/04/2011,Technical and Advisory Services,DFID Sierra Leone and Liberia,TRIPLE LINE CONSULTING LTD,400153699,"12,031.76"
DFID,DFID,27/04/2011,Technical and Advisory Services,DFID Sierra Leone and Liberia,Sue Newport Consulting,400155745,"12,844.00"
DFID,DFID,01/04/2011,Technical and Advisory Services,DFID Sierra Leone and Liberia,ADAM SMITH INTERNATIONAL  LTD,400152539,"12,925.08"
DFID,DFID,19/04/2011,House rentals,DFID Sierra Leone and Liberia,HASSAN HIJAZI,400155274,"22,000.00"
DFID,DFID,13/04/2011,Technical and Advisory Services,DFID Sierra Leone and Liberia,THE CROWN AGENTS,400154489,"127,025.77"
DFID,DFID,13/04/2011,Technical and Advisory Services,DFID Sierra Leone and Liberia,OPTIONS CONSULTANCY SERVICES LIMITED,400154237,"241,823.75"
DFID,DFID,28/04/2011,Aid Programme - Pooled/Basket funding,DFID Sierra Leone and Liberia,UNDP CONTRIBUTIONS ACCOUNT,400156342,"2,500,000.00"
DFID,DFID,12/04/2011,Technical and Advisory Services,DFID Southern Africa,TTT On the Mover Courier & Catering,400153906,564.53
DFID,DFID,26/04/2011,Technical and Advisory Services,DFID Southern Africa,OXFORD EVIDENTIA LTD,400155612,"1,830.17"
DFID,DFID,19/04/2011,Technical and Advisory Services,DFID Southern Africa,Dynamo Development Services,400155068,"6,349.14"
DFID,DFID,26/04/2011,Technical and Advisory Services,DFID Southern Africa,OXFORD EVIDENTIA LTD,400155612,"11,700.00"
DFID,DFID,15/04/2011,Technical and Advisory Services,DFID Southern Africa,HLSP LIMITED,400154760,"45,785.00"
DFID,DFID,12/04/2011,Technical and Advisory Services,DFID Southern Africa,Masdar (UK) Limited,400154059,"139,283.04"
DFID,DFID,20/04/2011,Consultancy Services,DFID Sudan,HLSP LIMITED,400155382,"20,540.03"
DFID,DFID,18/04/2011,Aid Programme - Accountable Grant Payments,DFID Sudan,GOAL,400154625,"169,987.00"
DFID,DFID,21/04/2011,Technical and Advisory Services,DFID Sudan,ATOS CONSULTING LIMITED,400155679,"351,506.39"
DFID,DFID,18/04/2011,Aid Programme - Accountable Grant Payments,DFID Sudan,GOAL,400154625,"469,604.00"
DFID,DFID,18/04/2011,Aid Programme - Joint programme contribution,DFID Sudan, UNICEF,400155013,"1,174,166.85"
DFID,DFID,13/04/2011,Air fares,DFID Tanzania,Bon Voyage Travel Centre Ltd(USD),400154326,"1,571.34"
DFID,DFID,28/04/2011,Consultancy Services,DFID Tanzania,Joshua T. Ndabiti,400156391,"3,138.01"
DFID,DFID,27/04/2011,Consultancy Services,DFID Tanzania,The Chartered Institute of Logistics & Transport-Tanzania (USD),400156223,"9,544.80"
DFID,DFID,27/04/2011,Facilities Management payments,DFID Uganda,K.B.M Investments Ltd,400156277,60.57
DFID,DFID,27/04/2011,Facilities Management payments,DFID Uganda,K.B.M Investments Ltd,400156277,126.2
DFID,DFID,26/04/2011,Training - Travel & Subsistence,DFID Uganda,Intercontinental Nairobi,400155968,510.93
DFID,DFID,21/04/2011,Facilities Management payments,DFID Uganda,A & M Executive Cleaning services Co. Ltd,400155625,512.34
DFID,DFID,26/04/2011,Training - Travel & Subsistence,DFID Uganda,Intercontinental Nairobi,400155974,515.03
DFID,DFID,26/04/2011,Training - Travel & Subsistence,DFID Uganda,Intercontinental Nairobi,400155966,548.26
DFID,DFID,21/04/2011,Facilities Management payments,DFID Uganda,A & M Executive Cleaning services Co. Ltd,400155625,555.04
DFID,DFID,15/04/2011,Technical and Advisory Services,DFID Uganda,COFFEY INTERNATIONAL DEVELOPMENT LTD,400153057,561.28
DFID,DFID,27/04/2011,Facilities Management payments,DFID Uganda,K.B.M Investments Ltd,400156277,949
DFID,DFID,19/04/2011,Technical and Advisory Services,DFID Uganda, NATASHA SHARMA,400155244,"2,800.00"
DFID,DFID,21/04/2011,Facilities Management payments,DFID Uganda,Crown Agents Bank,400155749,"3,983.68"
DFID,DFID,19/04/2011,Technical and Advisory Services,DFID Uganda,EMMANUEL SSEWANKAMBO,400155049,"6,621.11"
DFID,DFID,21/04/2011,House rentals,DFID Uganda,M. Kassam Property Management,400155634,"11,029.41"
DFID,DFID,28/04/2011,Office Equipment - Purchases,DFID Uganda,THE CROWN AGENTS,400156541,"13,401.75"
DFID,DFID,27/04/2011,Office Equipment - Purchases,DFID Uganda,THE CROWN AGENTS,400156205,"19,161.96"
DFID,DFID,27/04/2011,Office Equipment - Purchases,DFID Uganda,THE CROWN AGENTS,400156207,"24,738.80"
DFID,DFID,18/04/2011,Technical and Advisory Services,DFID Uganda,PRICEWATERHOUSECOOPERS,400154924,"29,615.20"
DFID,DFID,27/04/2011,Office Equipment - Purchases,DFID Uganda,THE CROWN AGENTS,400156209,"64,066.23"
DFID,DFID,26/04/2011,Technical and Advisory Services,DFID Uganda,MAXWELL STAMP PLC,400156090,"133,635.01"
DFID,DFID,18/04/2011,Technical and Advisory Services,DFID Vietnam,Ms Nguyen Thanh Tam,400154839,585.6
DFID,DFID,18/04/2011,House rentals,DFID Vietnam,Vu Hung,400154893,"5,524.62"
DFID,DFID,20/04/2011,House rentals,DFID Vietnam,Water View Corporation,400155302,"6,255.76"
DFID,DFID,18/04/2011,House rentals,DFID Vietnam,Hoang Thi Thuan,400154885,"6,445.40"
DFID,DFID,18/04/2011,House rentals,DFID Vietnam,Ngo Van Hien,400154889,"6,445.40"
DFID,DFID,06/04/2011,Technical and Advisory Services,DFID Vietnam,William Burnett,400153328,"7,543.12"
DFID,DFID,15/04/2011,Technical and Advisory Services,DFID Zambia,Mpala Nkonkomalimba,400154719,234.41
DFID,DFID,11/04/2011,Office Equipment - Purchases,DFID Zambia,Office Machine Services Ltd,400153747,337.16
DFID,DFID,11/04/2011,Office Equipment - Purchases,DFID Zambia,Office Machine Services Ltd,400153747,485.18
DFID,DFID,27/04/2011,Hotels - Accommodation only,DFID Zambia,InterContinental Hotel,400156115,571.13
DFID,DFID,24/04/2011,Training - Travel & Subsistence,DFID Zambia,Intercontinental Nairobi,400155775,635.16
DFID,DFID,15/04/2011,Furniture & Fittings,DFID Zambia,Carnival Furnishers,400154737,638.7
DFID,DFID,07/04/2011,Furniture & Fittings,DFID Zambia,Universal Fire Fighting Equipment Limited (ZMK),400153394,713.33
DFID,DFID,12/04/2011,Other Building Costs,DFID Zambia,Romeo Kitchens,400153978,980.44
DFID,DFID,26/04/2011,Medical/Health Services,DFID Zambia,THE CROWN AGENTS,400156085,"1,512.28"
DFID,DFID,07/04/2011,Technical and Advisory Services,DFID Zambia,Mpala Nkonkomalimba,400153387,"2,057.23"
DFID,DFID,07/04/2011,Furniture & Fittings,DFID Zambia,Southgate Investments Limited,400153392,"2,129.14"
DFID,DFID,12/04/2011,Technical and Advisory Services,DFID Zambia,Mr C Peters,400154169,"2,725.00"
DFID,DFID,08/04/2011,Other Building Costs,DFID Zambia, FCO SERVICES,400151813,"2,925.00"
DFID,DFID,15/04/2011,Technical and Advisory Services,DFID Zambia,Mpala Nkonkomalimba,400154719,"3,094.24"
DFID,DFID,21/04/2011,House rentals,DFID Zambia,SUPPLIER NAME WITHELD,400155663,"4,500.00"
DFID,DFID,21/04/2011,Technical and Advisory Services,DFID Zambia,InterContinental Hotel,400155674,"4,989.27"
DFID,DFID,21/04/2011,House rentals,DFID Zambia,SUPPLIER NAME WITHELD,400155659,"5,118.00"
DFID,DFID,21/04/2011,House rentals,DFID Zambia,SUPPLIER NAME WITHELD,400155664,"5,250.00"
DFID,DFID,12/04/2011,Technical and Advisory Services,DFID Zambia,THE CROWN AGENTS,400154152,"26,384.61"
DFID,DFID,26/04/2011,Medical/Health Services,DFID Zambia,THE CROWN AGENTS,400156085,"52,147.53"
DFID,DFID,20/04/2011,Research & Development costs,DFID Zambia,HEALTH PARTNERS INTERNATIONAL,400155439,"52,698.48"
DFID,DFID,20/04/2011,Research & Development costs,DFID Zambia,HEALTH PARTNERS INTERNATIONAL,400155443,"65,800.20"
DFID,DFID,13/04/2011,Office Equipment - Purchases,DFID Zimbabwe,DAETA INTERNATIONAL,400154402,301.17
DFID,DFID,13/04/2011,Office Equipment - Purchases,DFID Zimbabwe,DAETA INTERNATIONAL,400154402,387.22
DFID,DFID,12/04/2011,Mobile telephones & accessories,DFID Zimbabwe,ECONET,400154129,594.15
DFID,DFID,12/04/2011,Mobile telephones & accessories,DFID Zimbabwe,ECONET,400154129,763.9
DFID,DFID,26/04/2011,Generators & spares,DFID Zimbabwe,S  Koronka Manufacturing Ltd,400153494,"23,204.39"
DFID,DFID,21/04/2011,Technical and Advisory Services,DFID Zimbabwe,THE CROWN AGENTS,400155618,"54,917.59"
DFID,DFID,15/04/2011,Technical and Advisory Services,DFID Zimbabwe,HEALTH PARTNERS INTERNATIONAL,400154766,"60,291.38"
DFID,DFID,14/04/2011,Technical and Advisory Services,DFID Zimbabwe,GRM INTERNATIONAL LTD,400154464,"104,072.25"
DFID,DFID,19/04/2011,Technical and Advisory Services,DFID Zimbabwe,LIVERPOOL ASSOCIATES IN TROP. HEALTH,400155193,"123,131.20"
DFID,DFID,11/04/2011,Aid Programme - Trust Funds contributions,Director Asia and Regional Team,IBRD HSBC T,400153791,"200,000.00"
DFID,DFID,12/04/2011,Training - Course Fees,Europe Department,GATEWAY LANGUAGE SERVICES LTD,400153107,675.75
DFID,DFID,13/04/2011,Operating Lease rental of buildings,Europe Department,Madzimure Michael,400154399,"3,321.03"
DFID,DFID,11/04/2011,Technical and Advisory Services,Evaluation Department,NATIONAL AUDIT OFFICE,400153848,"8,891.52"
DFID,DFID,07/04/2011,Technical and Advisory Services,Evaluation Department,RS DREW LTD,400153189,"19,539.41"
DFID,DFID,04/04/2011,Aid Programme - Core contributions,Global Funds Department,IBRD-IFFIm,400152927,"20,437,900.00"
DFID,DFID,11/04/2011,Mobile telephones & accessories,Governance and Social Development Group,VODAFONE CORPORATE,400153199,223.65
DFID,DFID,11/04/2011,Mobile telephones & accessories,Governance and Social Development Group,VODAFONE CORPORATE,400153199,337.1
DFID,DFID,11/04/2011,Training - Course Fees,Governance and Social Development Group,WESTMINSTER EXPLAINED,400153721,480
DFID,DFID,11/04/2011,Mobile telephones & accessories,Governance and Social Development Group,VODAFONE CORPORATE,400153199,527.29
DFID,DFID,12/04/2011,House rentals,Governance and Social Development Group,Mr Emmanuel Mudidi,400153990,"7,321.54"
DFID,DFID,12/04/2011,Technical and Advisory Services,Growth and Investment Group,HTSPE LTD,400154121,"1,749.45"
DFID,DFID,14/04/2011,Technical and Advisory Services,Growth and Investment Group,ROSEMARY STEVENSON,400153715,"1,760.00"
DFID,DFID,15/04/2011,Technical and Advisory Services,Growth and Investment Group,LONDON SCHOOL OF ECONOMICS AND POLITICAL SCIENCE,400154495,"3,100.06"
DFID,DFID,05/04/2011,Technical and Advisory Services,Growth and Investment Group,RACHEL PHILLIPSON,400151848,"7,720.00"
DFID,DFID,14/04/2011,Technical and Advisory Services,Growth and Investment Group,HEALTH PARTNERS INTERNATIONAL,400154246,"10,059.42"
DFID,DFID,15/04/2011,Technical and Advisory Services,Growth and Investment Group,WSP INTERNATIONAL LIMITED,400154417,"17,766.46"
DFID,DFID,14/04/2011,Technical and Advisory Services,Growth and Investment Group,HEALTH PARTNERS INTERNATIONAL,400153153,"19,402.52"
DFID,DFID,05/04/2011,Aid Programme - Accountable Grant Payments,Growth and Investment Group,OVERSEAS DEVELOPMENT INSTITUTE (ODI),400153044,"20,089.85"
DFID,DFID,19/04/2011,Aid Programme - Accountable Grant Payments,Growth and Investment Group,THE CO-OPERATIVE COLLEGE,400154914,"34,718.92"
DFID,DFID,11/04/2011,Aid Programme - Accountable Grant Payments,Growth and Investment Group,NATURAL RESOURCES INSTITUTE,400153841,"89,261.06"
DFID,DFID,13/04/2011,Aid Programme - Accountable Grant Payments,Growth and Investment Group,Institute of Development Studies.,400154428,"89,410.00"
DFID,DFID,28/04/2011,Aid Programme - Accountable Grant Payments,Growth and Investment Group,OVERSEAS DEVELOPMENT INSTITUTE,400156407,"149,136.52"
DFID,DFID,15/04/2011,Technical and Advisory Services,Growth and Investment Group,LONDON SCHOOL OF ECONOMICS AND POLITICAL SCIENCE,400154495,"168,566.60"
DFID,DFID,15/04/2011,Technical and Advisory Services,Growth and Investment Group,LONDON SCHOOL OF ECONOMICS AND POLITICAL SCIENCE,400154495,"374,236.06"
DFID,DFID,12/04/2011,Training Providers/Facilitation Services,HR Advisory Group,XAFINITY PAYMASTER,400154127,"2,450.00"
DFID,DFID,21/04/2011,Hotels - Accommodation only,HR DFID Initiatives,Silver Springs Hotel,400155608,711.75
DFID,DFID,27/04/2011,Recruitment costs,HR DFID Initiatives,SHL Group LTD,400155202,795.6
DFID,DFID,12/04/2011,Training Providers/Facilitation Services,HR DFID Initiatives,XAFINITY PAYMASTER,400154127,"1,285.50"
DFID,DFID,11/04/2011,Air fares,HR DFID Initiatives,The Express Travel Group,400153703,"1,308.95"
DFID,DFID,15/04/2011,Air fares,HR DFID Initiatives,Lamar Travel Agency,400154779,"1,754.28"
DFID,DFID,11/04/2011,House rentals,HR DFID Initiatives,Yaya Towers Limited,400153816,"1,888.85"
DFID,DFID,05/04/2011,Technical and Advisory Services,HR DFID Initiatives,XAFINITY PAYMASTER,400153171,"5,807.20"
DFID,DFID,28/04/2011,Technical and Advisory Services,HR DFID Initiatives,XAFINITY PAYMASTER,400156489,"5,807.21"
DFID,DFID,14/04/2011,Technical and Advisory Services,HR Operations,PRICEWATERHOUSECOOPERS,400153800,"54,314.56"
DFID,DFID,20/04/2011,Technical and Advisory Services,Human Development Group,IMPERIAL COLLEGE LONDON,400155455,"-64,738.59"
DFID,DFID,12/04/2011,Technical and Advisory Services,Human Development Group,HLSP LIMITED,400154116,"4,052.18"
DFID,DFID,05/04/2011,Technical and Advisory Services,Human Development Group,ASSOCIATION OF COMMONWEALTH UNIVER,400153090,"5,357.75"
DFID,DFID,19/04/2011,Technical and Advisory Services,Human Development Group,HLSP LIMITED,400155241,"7,380.00"
DFID,DFID,15/04/2011,Technical and Advisory Services,Human Development Group,HLSP LIMITED,400154490,"14,495.00"
DFID,DFID,20/04/2011,Technical and Advisory Services,Human Development Group,BRITISH COUNCIL,400155403,"22,840.10"
DFID,DFID,18/04/2011,Aid Programme - Accountable Grant Payments,Human Development Group,THE INSTITUTE OF DEVELOPMENT STUDIE,400155026,"23,009.00"
DFID,DFID,01/04/2011,Aid Programme - Accountable Grant Payments,Human Development Group,UK FORUM ON INT. EDUC. AND TRAINING,400152876,"27,480.61"
DFID,DFID,13/04/2011,Technical and Advisory Services,Human Development Group,IMPERIAL COLLEGE LONDON,400153696,"52,197.07"
DFID,DFID,12/04/2011,Technical and Advisory Services,Human Development Group,TROPICAL HEALTH EDUCATION TRUST,400153693,"77,986.54"
DFID,DFID,20/04/2011,Technical and Advisory Services,Human Development Group,IMPERIAL COLLEGE LONDON,400155455,"109,607.96"
DFID,DFID,15/04/2011,Technical and Advisory Services,Human Development Group,TROPICAL HEALTH EDUCATION TRUST,400154713,"121,327.66"
DFID,DFID,20/04/2011,Aid Programme - Accountable Grant Payments,Human Development Group,LIVERPOOL SCHOOL OF TROPICAL MEDICINE,400155023,"302,293.18"
DFID,DFID,05/04/2011,Aid Programme - Accountable Grant Payments,Human Development Group,LIVERPOOL SCHOOL OF TROPICAL MEDICINE,400153047,"843,223.47"
DFID,DFID,26/04/2011,Training - Course Fees,Information Systems Department,ASSURIX LIMITED,400155748,185.67
DFID,DFID,26/04/2011,Training - Course Fees,Information Systems Department,ASSURIX LIMITED,400155748,373.4
DFID,DFID,05/04/2011,Technical and Advisory Services,Information Systems Department,ALLEGIS GROUP LIMITED,400153087,444
DFID,DFID,14/04/2011,Technical and Advisory Services,Information Systems Department,ASPEN  SOLUTIONS LTD,400153114,663.94
DFID,DFID,05/04/2011,Technical and Advisory Services,Information Systems Department,ALLEGIS GROUP LIMITED,400153087,740
DFID,DFID,14/04/2011,Technical and Advisory Services,Information Systems Department,Conway Consultancy Services Limited,400153021,810.68
DFID,DFID,26/04/2011,Data Network - land lines,Information Systems Department,Subisu Cable Net Pvt Ltd,400155813,962.28
DFID,DFID,20/04/2011,Data Network - land lines,Information Systems Department,Subisu Cable Net Pvt Ltd,400155322,971.29
DFID,DFID,08/04/2011,AV Conferencing systems -hardware,Information Systems Department,OPEN REALITY LTD,400153093,"1,024.80"
DFID,DFID,13/04/2011,Technical and Advisory Services,Information Systems Department,ALLEGIS GROUP LIMITED,400153157,"1,332.00"
DFID,DFID,13/04/2011,Computer hardware maintenance,Information Systems Department,FCO SERVICES,400153020,"1,400.00"
DFID,DFID,18/04/2011,Data network- remote working,Information Systems Department,IPNX Nigeria Ltd,400154925,"1,762.65"
DFID,DFID,21/04/2011,Computer software maintenance,Information Systems Department,NORTHGATE HR LIMITED,400155163,"2,636.98"
DFID,DFID,19/04/2011,Computer software maintenance,Information Systems Department,NORTHGATE HR LIMITED,400155164,"2,636.98"
DFID,DFID,21/04/2011,Computer software maintenance,Information Systems Department,NORTHGATE HR LIMITED,400155168,"2,636.98"
DFID,DFID,19/04/2011,Computer software maintenance,Information Systems Department,NORTHGATE HR LIMITED,400155172,"2,636.98"
DFID,DFID,21/04/2011,Computer software maintenance,Information Systems Department,NORTHGATE HR LIMITED,400155177,"2,636.98"
DFID,DFID,19/04/2011,Computer software maintenance,Information Systems Department,NORTHGATE HR LIMITED,400155181,"2,636.98"
DFID,DFID,05/04/2011,Technical and Advisory Services,Information Systems Department,Networkers Recruitment Services Ltd,400153066,"3,600.00"
DFID,DFID,05/04/2011,Technical and Advisory Services,Information Systems Department,ALLEGIS GROUP LIMITED,400153166,"3,711.51"
DFID,DFID,26/04/2011,Computer Software Licenses,Information Systems Department,INTERACTIVE DATA,400155950,"3,924.00"
DFID,DFID,05/04/2011,Technical and Advisory Services,Information Systems Department,OPIN SYSTEMS LIMITED,400153142,"4,905.44"
DFID,DFID,20/04/2011,Data network- remote working,Information Systems Department,Suburban Broadband Ltd,400155408,"8,112.53"
DFID,DFID,12/04/2011,Computer software maintenance,Information Systems Department,VTEQ LIMITED,400153697,"8,844.48"
DFID,DFID,12/04/2011,Computer software maintenance,Information Systems Department,VTEQ LIMITED,400153802,"10,038.36"
DFID,DFID,06/04/2011,Technical and Advisory Services,Information Systems Department,OPIN SYSTEMS LIMITED,400153115,"12,880.00"
DFID,DFID,07/04/2011,Technical and Advisory Services,Information Systems Department,OPIN SYSTEMS LIMITED,400153117,"12,917.40"
DFID,DFID,14/04/2011,Technical and Advisory Services,Information Systems Department,Conway Consultancy Services Limited,400153021,"12,950.00"
DFID,DFID,07/04/2011,AV Conferencing systems -hardware,Information Systems Department,COMPUTACENTER (UK) LTD,400153156,"13,052.40"
DFID,DFID,19/04/2011,Computer software maintenance,Information Systems Department,GSS Professional Services LTD,400155182,"39,995.00"
DFID,DFID,13/04/2011,Computer hardware maintenance,Information Systems Department,HEWLETT PACKARD,400153753,"46,114.56"
DFID,DFID,18/04/2011,Computer software maintenance,Information Systems Department,GSS Professional Services LTD,400154392,"84,480.00"
DFID,DFID,19/04/2011,Computer software maintenance,Information Systems Department,ASSURIX LIMITED,400154934,"113,500.00"
DFID,DFID,20/04/2011,Data Network -Satellite Communication,Information Systems Department,FCO RECOVERIES UNIT,400153698,"400,000.00"
DFID,DFID,20/04/2011,Data Network -Satellite Communication,Information Systems Department,FCO RECOVERIES UNIT,400153698,"650,649.59"
DFID,DFID,15/04/2011,Hotels - Accommodation only,Internal Audit Department,Grands Hotels du Congo,400154680,718.83
DFID,DFID,18/04/2011,Hotels - Accommodation only,Internal Audit Department,Grands Hotels du Congo,400154898,721.03
DFID,DFID,12/04/2011,Technical and Advisory Services,International Directors Office,OVERSEAS DEVELOPMENT INSTITUTE,400154120,"10,000.00"
DFID,DFID,12/04/2011,Technical and Advisory Services,International Financial Institutions  Admin,GBRW LIMITED,400153014,"3,285.00"
DFID,DFID,15/04/2011,Technical and Advisory Services,Knowledge and Information Management,PROGRESSIVE,400153785,714.52
DFID,DFID,15/04/2011,Training - Course Fees,Knowledge and Information Management,ATTENDA LIMITED,400152558,723
DFID,DFID,15/04/2011,Computer software maintenance,Knowledge and Information Management,Rufus Leonard Ltd,400154501,850
DFID,DFID,15/04/2011,Technical and Advisory Services,Knowledge and Information Management,PROGRESSIVE,400153034,925.76
DFID,DFID,15/04/2011,Technical and Advisory Services,Knowledge and Information Management,Rufus Leonard Ltd,400154503,"2,412.00"
DFID,DFID,26/04/2011,Operating Lease rental of buildings,Natural Resources Institute,LLOYDS TSB LEASING LTD,400155901,"2,181,603.74"
DFID,DFID,18/04/2011,Technical and Advisory Services,News Team,THE PRESS ASSOCIATION,400154146,530.48
DFID,DFID,26/04/2011,Technical and Advisory Services,News Team,FACTIVA,400155757,"1,500.00"
DFID,DFID,15/04/2011,Technical and Advisory Services,News Team,Precise Media,400153810,"2,923.27"
DFID,DFID,27/04/2011,Print Services,Online Content Team,COG DESIGN LTD,400155750,516.56
DFID,DFID,28/04/2011,Print Services,Online Content Team,PITNEY BOWES LIMITED,400156319,"4,628.00"
DFID,DFID,11/04/2011,Consultancy Services,Outreach and Stakeholder Relationships,TRIPLE LINE CONSULTING LTD,400153756,"1,351.75"
DFID,DFID,11/04/2011,Technical and Advisory Services,Outreach and Stakeholder Relationships,TRIPLE LINE CONSULTING LTD,400153756,"5,914.25"
DFID,DFID,18/04/2011,Technical and Advisory Services,Outreach and Stakeholder Relationships,CHRISTIAN AID,400154456,"22,513.96"
DFID,DFID,15/04/2011,Aid Programme - Accountable Grant Payments,Outreach and Stakeholder Relationships,MALARIA NO MORE UK,400153842,"38,833.00"
DFID,DFID,18/04/2011,Aid Programme - Development Awareness Fund payments,Outreach and Stakeholder Relationships,THE CROWN AGENTS,400155029,"61,841.86"
DFID,DFID,18/04/2011,Aid Programme - Development Awareness Fund payments,Outreach and Stakeholder Relationships,THE CROWN AGENTS,400155030,"65,961.09"
DFID,DFID,18/04/2011,Technical and Advisory Services,Outreach and Stakeholder Relationships,CHRISTIAN AID,400154456,"88,524.89"
DFID,DFID,18/04/2011,Aid Programme - Accountable Grant Payments,Outreach and Stakeholder Relationships,DEVELOPMENT EDUCATION ASSOCI,400154910,"101,850.00"
DFID,DFID,13/04/2011,Aid Programme - Accountable Grant Payments,Outreach and Stakeholder Relationships,Damaris Global Learning,400154425,"105,539.00"
DFID,DFID,26/04/2011,Aid Programme - Accountable Grant Payments,Outreach and Stakeholder Relationships,INTERN DEVEL EDUC ASSOC OF SCOTLAND,400155882,"117,767.00"
DFID,DFID,15/04/2011,Other passenger transport,Overseas Territories Department,ANDREW WEIR SHIPPING LTD,400154421,"1,362.24"
DFID,DFID,15/04/2011,Other passenger transport,Overseas Territories Department,ANDREW WEIR SHIPPING LTD,400154423,"1,362.24"
DFID,DFID,15/04/2011,Other passenger transport,Overseas Territories Department,ANDREW WEIR SHIPPING LTD,400154424,"1,362.24"
DFID,DFID,15/04/2011,Other passenger transport,Overseas Territories Department,ANDREW WEIR SHIPPING LTD,400154683,"1,362.24"
DFID,DFID,19/04/2011,Technical and Advisory Services,Overseas Territories Department,JOHN WARWICK,400153789,"5,670.00"
DFID,DFID,07/04/2011,Technical and Advisory Services,Overseas Territories Department,PKF (UK) LLP,400152914,"14,250.00"
DFID,DFID,07/04/2011,Technical and Advisory Services,Overseas Territories Department,Focused Consulting Ltd,400153110,"15,319.23"
DFID,DFID,26/04/2011,Technical and Advisory Services,Overseas Territories Department,Stephanie Murray,400156039,"16,727.57"
DFID,DFID,19/04/2011,Technical and Advisory Services,Overseas Territories Department,En Consulting Ltd,400154629,"18,851.01"
DFID,DFID,12/04/2011,Technical and Advisory Services,Overseas Territories Department,COFFEY INTERNATIONAL DEVELOPMENT LTD,400153055,"19,411.24"
DFID,DFID,20/04/2011,Technical and Advisory Services,Overseas Territories Department,JOHN WARWICK,400153787,"19,634.30"
DFID,DFID,07/04/2011,Aid Programme - Other Financial Aid to Government,Overseas Territories Department,THE CROWN AGENTS,400151480,"22,931.25"
DFID,DFID,27/04/2011,Technical and Advisory Services,Overseas Territories Department,WSP INTERNATIONAL LIMITED,400156126,"42,664.30"
DFID,DFID,08/04/2011,Technical and Advisory Services,Overseas Territories Department,OPTIONS CONSULTANCY SERVICES LIMITED,400153173,"53,131.98"
DFID,DFID,08/04/2011,Aid Programme - Other Financial Aid to Government,Overseas Territories Department,THE CROWN AGENTS,400153627,"71,920.12"
DFID,DFID,15/04/2011,Other Building Costs,Palace Street (UK Office),MITIE Technical Facilities Management Ltd,400153246,53.56
DFID,DFID,13/04/2011,Other Building Costs,Palace Street (UK Office),MITIE Technical Facilities Management Ltd,400153414,93.7
DFID,DFID,12/04/2011,Other Building Costs,Palace Street (UK Office),MITIE Technical Facilities Management Ltd,400153243,416.9
DFID,DFID,12/04/2011,Other Building Costs,Palace Street (UK Office),MITIE Technical Facilities Management Ltd,400153352,486.92
DFID,DFID,12/04/2011,Other Building Costs,Palace Street (UK Office),MITIE Technical Facilities Management Ltd,400153203,519.75
DFID,DFID,15/04/2011,Other Building Costs,Palace Street (UK Office),MITIE Technical Facilities Management Ltd,400153246,535.57
DFID,DFID,12/04/2011,Other Building Costs,Palace Street (UK Office),MITIE Technical Facilities Management Ltd,400153240,583
DFID,DFID,13/04/2011,Removal & waste disposal services,Palace Street (UK Office),BYWATERS,400153832,606
DFID,DFID,12/04/2011,Removal & waste disposal services,Palace Street (UK Office),BYWATERS,400153840,666
DFID,DFID,12/04/2011,Other Building Costs,Palace Street (UK Office),MITIE Technical Facilities Management Ltd,400153325,735.56
DFID,DFID,12/04/2011,Other Building Costs,Palace Street (UK Office),MITIE Technical Facilities Management Ltd,400153293,757.35
DFID,DFID,15/04/2011,Postage Costs,Palace Street (UK Office),PITNEY BOWES (RECREDIT FRANKING M/C),400154761,"1,000.00"
DFID,DFID,11/04/2011,Other Building Costs,Palace Street (UK Office),MITIE Technical Facilities Management Ltd,400153356,"1,242.10"
DFID,DFID,12/04/2011,Other Building Costs,Palace Street (UK Office),MITIE Technical Facilities Management Ltd,400153242,"1,294.38"
DFID,DFID,13/04/2011,Removal & waste disposal services,Palace Street (UK Office),BYWATERS,400153827,"1,297.20"
DFID,DFID,13/04/2011,Other Building Costs,Palace Street (UK Office),MITIE Technical Facilities Management Ltd,400153414,"1,307.80"
DFID,DFID,13/04/2011,Removal & waste disposal services,Palace Street (UK Office),BYWATERS,400153828,"1,309.90"
DFID,DFID,12/04/2011,Office Equipment - Purchases,Palace Street (UK Office),MITIE Technical Facilities Management Ltd,400153601,"1,727.40"
DFID,DFID,12/04/2011,Other Building Costs,Palace Street (UK Office),MITIE Technical Facilities Management Ltd,400153350,"2,020.80"
DFID,DFID,12/04/2011,Other Building Costs,Palace Street (UK Office),MITIE Technical Facilities Management Ltd,400153313,"2,204.60"
DFID,DFID,12/04/2011,Other Building Costs,Palace Street (UK Office),MITIE Technical Facilities Management Ltd,400153354,"2,820.70"
DFID,DFID,12/04/2011,Reproduction & Printing Materials,Palace Street (UK Office),RICOH UK LTD,400153663,"2,865.08"
DFID,DFID,11/04/2011,Other Building Costs,Palace Street (UK Office),MITIE Technical Facilities Management Ltd,400153758,"2,940.30"
DFID,DFID,12/04/2011,Other Building Costs,Palace Street (UK Office),MITIE Technical Facilities Management Ltd,400153457,"3,043.80"
DFID,DFID,15/04/2011,Other Building Costs,Palace Street (UK Office),GDC Mechanical Building Services Ltd,400154756,"3,260.64"
DFID,DFID,12/04/2011,Contract & Agency Staff,Palace Street (UK Office),MITIE Technical Facilities Management Ltd,400153596,"3,623.98"
DFID,DFID,15/04/2011,Other Building Costs,Palace Street (UK Office),GDC Mechanical Building Services Ltd,400154757,"3,706.00"
DFID,DFID,12/04/2011,Other Building Costs,Palace Street (UK Office),MITIE Technical Facilities Management Ltd,400153495,"5,890.20"
DFID,DFID,12/04/2011,Office Equipment - Purchases,Palace Street (UK Office),INCEPTION BUSINESS TECHNOLOGY LTD,400153028,"6,760.80"
DFID,DFID,12/04/2011,Office Equipment - Purchases,Palace Street (UK Office),MITIE Technical Facilities Management Ltd,400153601,"8,621.44"
DFID,DFID,11/04/2011,Other Building Costs,Palace Street (UK Office),PLANNED MAINTENANCE ENGINEERING LTD,400151492,"21,168.20"
DFID,DFID,13/04/2011,Other Building Costs,Palace Street (UK Office),MITIE Technical Facilities Management Ltd,400153480,"21,609.60"
DFID,DFID,13/04/2011,Other Building Costs,Palace Street (UK Office),MITIE Technical Facilities Management Ltd,400154222,"27,382.30"
DFID,DFID,21/04/2011,Training Providers/Facilitation Services,Policy and Research Division Cabinet,Government Knowledge Training Ltd,400155735,445
DFID,DFID,19/04/2011,Technical and Advisory Services,Private Sector Department,THE CROWN AGENTS,400154623,18.05
DFID,DFID,19/04/2011,Technical and Advisory Services,Private Sector Department,THE CROWN AGENTS,400154623,"1,232.62"
DFID,DFID,12/04/2011,Technical and Advisory Services,Private Sector Department,John Churchill,400154122,"3,047.00"
DFID,DFID,21/04/2011,Technical and Advisory Services,Private Sector Department,EMERGING MARKETS GROUP,400155647,"7,200.00"
DFID,DFID,08/04/2011,Technical and Advisory Services,Private Sector Department,EMERGING MARKETS GROUP,400153688,"9,600.00"
DFID,DFID,12/04/2011,Technical and Advisory Services,Private Sector Department,Nathan Associates London Ltd,400154141,"10,529.42"
DFID,DFID,06/04/2011,Training Providers/Facilitation Services,Private Sector Department,INSTITUTE OF DIRECTORS,400153154,"14,160.00"
DFID,DFID,26/04/2011,Aid Programme - Accountable Grant Payments,Private Sector Department,INTERNATIONAL BUSINESS LEADERS FORUM,400155945,"25,020.00"
DFID,DFID,13/04/2011,Technical and Advisory Services,Private Sector Department,HAWKPOINT,400154518,"25,286.66"
DFID,DFID,19/04/2011,Aid Programme - Accountable Grant Payments,Private Sector Department,NATURAL RESOURCES INSTITUTE,400155232,"30,121.24"
DFID,DFID,21/04/2011,Technical and Advisory Services,Private Sector Department,EMERGING MARKETS GROUP,400155643,"33,784.18"
DFID,DFID,14/04/2011,Aid Programme - Core contributions,Private Sector Department,"Department for Business, Innovation & Skills",400154621,"50,000.00"
DFID,DFID,27/04/2011,Technical and Advisory Services,Procurement Department,MICHAEL PAGE INTERNATIONAL RECRUITMENT LIMITED,400156197,927.88
DFID,DFID,19/04/2011,Technical and Advisory Services,Procurement Department,MICHAEL PAGE INTERNATIONAL RECRUITMENT LIMITED,400155290,"1,159.85"
DFID,DFID,20/04/2011,Technical and Advisory Services,Procurement Department,MICHAEL PAGE INTERNATIONAL RECRUITMENT LIMITED,400155292,"1,159.85"
DFID,DFID,14/04/2011,Research & Development costs,Research and Evidence,TRL LTD,400154504,"-29,000.00"
DFID,DFID,19/04/2011,Training Providers/Facilitation Services,Research and Evidence,NATIONAL SCHOOL OF GOVERNMENT,400153141,"1,045.00"
DFID,DFID,07/04/2011,Training - Course Fees,Research and Evidence,NATIONAL SCHOOL OF GOVERNMENT,400152573,"1,180.00"
DFID,DFID,27/04/2011,Training Providers/Facilitation Services,Research and Evidence,LONDON METROPOLITAN UNIVERSITY,400156237,"1,200.00"
DFID,DFID,08/04/2011,Training - Course Fees,Research and Evidence,NATIONAL SCHOOL OF GOVERNMENT,400153182,"1,390.00"
DFID,DFID,08/04/2011,Technical and Advisory Services,Research and Evidence,OVERSEAS DEVELOPMENT INSTITUTE,400153019,"1,460.00"
DFID,DFID,19/04/2011,Training Providers/Facilitation Services,Research and Evidence,LYNDON HUGHES,400154755,"1,584.80"
DFID,DFID,07/04/2011,Technical and Advisory Services,Research and Evidence,HLSP LIMITED,400150958,"4,080.00"
DFID,DFID,06/04/2011,Research & Development costs,Research and Evidence,Randolph Luca Bruno,400153190,"4,500.00"
DFID,DFID,28/04/2011,Technical and Advisory Services,Research and Evidence,HTSPE LTD,400156221,"5,337.02"
DFID,DFID,28/04/2011,Technical and Advisory Services,Research and Evidence,UNIVERSITY OF ABERDEEN,400156496,"5,883.46"
DFID,DFID,12/04/2011,Research & Development costs,Research and Evidence,INSTITUTE OF DEVELOPMENT STUDIES,400154101,"8,120.00"
DFID,DFID,08/04/2011,Research & Development costs,Research and Evidence,IOE University of London,400153193,"9,438.00"
DFID,DFID,20/04/2011,Technical and Advisory Services,Research and Evidence,PRICEWATERHOUSECOOPERS,400155519,"9,645.62"
DFID,DFID,12/04/2011,Research & Development costs,Research and Evidence,EDINBURGH RESEARCH AND INNOVATION LT,400153805,"11,520.00"
DFID,DFID,19/04/2011,Aid Programme - Accountable Grant Payments,Research and Evidence,INSTITUTE OF DEV  STUDIES UNIVER,400155208,"11,560.00"
DFID,DFID,13/04/2011,Research & Development costs,Research and Evidence,THE UNIVERSITY OF MANCHESTER,400154499,"14,382.73"
DFID,DFID,13/04/2011,Research & Development costs,Research and Evidence, University Of Oxford,400153687,"14,713.95"
DFID,DFID,27/04/2011,Research & Development costs,Research and Evidence,Institute of Development Studies.,400156193,"15,319.20"
DFID,DFID,21/04/2011,Research & Development costs,Research and Evidence,INSTITUTE OF DEVELOPMENT STUDIES,400155651,"17,571.50"
DFID,DFID,21/04/2011,Research & Development costs,Research and Evidence,INSTITUTE OF DEVELOPMENT STUDIES,400155651,"17,581.50"
DFID,DFID,13/04/2011,Research & Development costs,Research and Evidence,THE UNIVERSITY OF MANCHESTER,400154499,"18,035.36"
DFID,DFID,18/04/2011,Research & Development costs,Research and Evidence,LONDON SCHOOL OF HYGIENE AND TR,400154337,"23,262.35"
DFID,DFID,11/04/2011,Technical and Advisory Services,Research and Evidence,UNDP CONTRIBUTIONS GBP,400153713,"29,731.50"
DFID,DFID,21/04/2011,Technical and Advisory Services,Research and Evidence,THE CROWN AGENTS,400155629,"33,841.90"
DFID,DFID,20/04/2011,Technical and Advisory Services,Research and Evidence,PRICEWATERHOUSECOOPERS,400155517,"52,509.08"
DFID,DFID,14/04/2011,Research & Development costs,Research and Evidence,TRL LTD,400154504,"55,860.06"
DFID,DFID,08/04/2011,Research & Development costs,Research and Evidence,Crown Agents Bank,400153625,"63,657.19"
DFID,DFID,20/04/2011,Aid Programme - Accountable Grant Payments,Research and Evidence,INSTITUTE OF DEV  STUDIES UNIVER,400155520,"75,298.49"
DFID,DFID,15/04/2011,Research & Development costs,Research and Evidence,OVERSEAS DEVELOPMENT INSTITUTE (ODI),400154752,"81,324.50"
DFID,DFID,19/04/2011,Research & Development costs,Research and Evidence,INSTITUTE OF DEV  STUDIES UNIVER,400155122,"100,850.00"
DFID,DFID,26/04/2011,Research & Development costs,Research and Evidence,LIVERPOOL SCHOOL OF TROPICAL MEDICINE,400155197,"106,355.28"
DFID,DFID,26/04/2011,Research & Development costs,Research and Evidence,UNIVERSITY OF CAMBRIDGE,400154500,"115,623.66"
DFID,DFID,20/04/2011,Research & Development costs,Research and Evidence,MEDICAL RESEARCH COUNCIL,400155419,"155,138.00"
DFID,DFID,21/04/2011,Research & Development costs,Research and Evidence,LONDON SCHOOL OF HYGIENE AND TR,400155133,"219,191.63"
DFID,DFID,11/04/2011,Aid Programme - Voluntary contributions,Research and Evidence,CABI,400153783,"330,000.00"
DFID,DFID,14/04/2011,Research & Development costs,Research and Evidence,LONDON SCHOOL OF HYGIENE AND TR,400154201,"358,860.59"
DFID,DFID,26/04/2011,Research & Development costs,Research and Evidence,LIVERPOOL SCHOOL OF TROPICAL MEDICINE,400155195,"374,690.48"
DFID,DFID,19/04/2011,Technical and Advisory Services,Research and Evidence,PRICEWATERHOUSECOOPERS,400155086,"429,414.00"
DFID,DFID,11/04/2011,Aid Programme - Voluntary contributions,Research and Evidence,International Monetary Fund (GBP),400153849,"500,000.00"
DFID,DFID,27/04/2011,Aid Programme - Accountable Grant Payments,Research and Evidence,THE INSTITUTE OF DEVELOPMENT STUDIE,400155765,"642,266.63"
DFID,DFID,08/04/2011,Recruitment costs,Security Section,DISCLOSURE SCOTLAND,400153032,803
DFID,DFID,15/04/2011,Technical and Advisory Services,Stabilisation Unit,"WILSON, BRYDON & KENNEDY",400153011,700
DFID,DFID,13/04/2011,Technical and Advisory Services,Stabilisation Unit,recipient withheld,400153053,982.55
DFID,DFID,20/04/2011,Technical and Advisory Services,Stabilisation Unit,THE CROWN AGENTS,400155249,"2,222.00"
DFID,DFID,19/04/2011,Training Providers/Facilitation Services,Stabilisation Unit,COFFEY INTERNATIONAL DEVELOPMENT LTD,400153497,"5,000.00"
DFID,DFID,19/04/2011,Technical and Advisory Services,Stabilisation Unit,SUPPLIER NAME WITHELD,400152899,"5,280.00"
DFID,DFID,19/04/2011,Technical and Advisory Services,Stabilisation Unit,ROBERTSON COOPER LTD,400154751,"5,859.00"
DFID,DFID,20/04/2011,Technical and Advisory Services,Stabilisation Unit,recipient withheld,400153822,"12,090.00"
DFID,DFID,13/04/2011,Technical and Advisory Services,Stabilisation Unit,THE CROWN AGENTS,400153677,"12,530.90"
DFID,DFID,13/04/2011,Technical and Advisory Services,Stabilisation Unit,THE CROWN AGENTS,400153677,"13,846.00"
DFID,DFID,19/04/2011,Technical and Advisory Services,Stabilisation Unit,SUPPLIER NAME WITHELD,400152947,"15,216.00"
DFID,DFID,13/04/2011,Consultancy Services,Stabilisation Unit,COFFEY INTERNATIONAL DEVELOPMENT LTD,400153571,"17,000.00"
DFID,DFID,19/04/2011,Training Providers/Facilitation Services,Stabilisation Unit,COFFEY INTERNATIONAL DEVELOPMENT LTD,400153497,"20,080.00"
DFID,DFID,19/04/2011,Training Providers/Facilitation Services,Stabilisation Unit,COFFEY INTERNATIONAL DEVELOPMENT LTD,400153497,"32,525.00"
DFID,DFID,08/04/2011,Storage & Distribution costs,Strategic Communications Team,EC GROUP,400153659,"-5,764.37"
DFID,DFID,08/04/2011,Storage & Distribution costs,Strategic Communications Team,EC GROUP,400153659,-0.55
DFID,DFID,08/04/2011,Storage & Distribution costs,Strategic Communications Team,EC GROUP,400153659,1.1
DFID,DFID,08/04/2011,Storage & Distribution costs,Strategic Communications Team,EC GROUP,400153659,"11,528.74"
DFID,DFID,13/04/2011,Training Providers/Facilitation Services,Top Management Group,WESTMINSTER EXPLAINED,400152565,576
DFID,DFID,19/04/2011,Training Providers/Facilitation Services,Top Management Group,YSC,400155251,"4,920.00"
DFID,DFID,13/04/2011,Training Providers/Facilitation Services,Trade Policy Unit,NATIONAL SCHOOL OF GOVERNMENT,400153183,"1,010.00"
DFID,DFID,05/04/2011,Technical and Advisory Services,Trade Policy Unit,COFFEY INTERNATIONAL DEVELOPMENT LTD,400152967,"15,994.32"
DFID,DFID,19/04/2011,Aid Programme - Accountable Grant Payments,Trade Policy Unit,THE UNIVERSITY OF MANCHESTER,400155199,"158,755.17"
DFID,DFID,18/04/2011,Aid Programme - Voluntary contributions,United Nations and Commonwealth Dept (UNCD),BRITISH COUNCIL,400155011,"13,910.26"
DFID,DFID,18/04/2011,Aid Programme - Voluntary contributions,United Nations and Commonwealth Dept (UNCD),BRITISH COUNCIL,400155011,"377,177.55"
DFID,DFID,26/04/2011,Technical and Advisory Services,Value for Money Department,OXFORD POLICY MANAGEMENT,400155255,"2,040.00"
DFID,DFID,12/04/2011,Property & Construction Services,DFID Bangladesh,FOREIGN AND COMMONWEALTH OFFICE,400153323,562.64
DFID,DFID,13/04/2011,Oil - Other Utilities,DFID Bangladesh,FOREIGN AND COMMONWEALTH OFFICE,400153160,"1,343.20"
DFID,DFID,12/04/2011,Other Admin Costs,DFID Cambodia,FOREIGN AND COMMONWEALTH OFFICE,400153323,"1,293.55"
DFID,DFID,12/04/2011,Other Admin Costs,DFID Cambodia,FOREIGN AND COMMONWEALTH OFFICE,400153323,"1,293.56"
DFID,DFID,12/04/2011,Aid Programme - Joint programme contribution,DFID Caribbean and Nicaragua,FOREIGN AND COMMONWEALTH OFFICE,400153692,"-2,275.58"
DFID,DFID,12/04/2011,House rentals,DFID Caribbean and Nicaragua,FOREIGN AND COMMONWEALTH OFFICE,400153692,-548.61
DFID,DFID,12/04/2011,Air fares,DFID Caribbean and Nicaragua,FOREIGN AND COMMONWEALTH OFFICE,400153692,693.57
DFID,DFID,12/04/2011,Travel - Subsistence,DFID Caribbean and Nicaragua,FOREIGN AND COMMONWEALTH OFFICE,400153692,973.2
DFID,DFID,12/04/2011,Office Equipment - Purchases,DFID Caribbean and Nicaragua,FOREIGN AND COMMONWEALTH OFFICE,400153692,"1,832.48"
DFID,DFID,12/04/2011,Aid Programme - Joint programme contribution,DFID Caribbean and Nicaragua,FOREIGN AND COMMONWEALTH OFFICE,400153692,"4,811.00"
DFID,DFID,12/04/2011,Aid Programme - Joint programme contribution,DFID Caribbean and Nicaragua,FOREIGN AND COMMONWEALTH OFFICE,400153692,"4,811.00"
DFID,DFID,12/04/2011,Aid Programme - Joint programme contribution,DFID Caribbean and Nicaragua,FOREIGN AND COMMONWEALTH OFFICE,400153692,"6,109.83"
DFID,DFID,12/04/2011,Aid Programme - Joint programme contribution,DFID Caribbean and Nicaragua,FOREIGN AND COMMONWEALTH OFFICE,400153692,"10,910.21"
DFID,DFID,12/04/2011,Technical and Advisory Services,DFID Caribbean and Nicaragua,FOREIGN AND COMMONWEALTH OFFICE,400153692,"18,957.15"
DFID,DFID,13/04/2011,Technical and Advisory Services,DFID Indonesia,FOREIGN AND COMMONWEALTH OFFICE,400153160,"4,806.50"
DFID,DFID,12/04/2011,House rentals,DFID Indonesia,FOREIGN AND COMMONWEALTH OFFICE,400153323,"55,998.01"
DFID,DFID,12/04/2011,Training - Course Fees,DFID Jerusalem and Palestine,FOREIGN AND COMMONWEALTH OFFICE,400153323,520.88
DFID,DFID,13/04/2011,Training - Course Fees,DFID Jerusalem and Palestine,FOREIGN AND COMMONWEALTH OFFICE,400153160,522.65
DFID,DFID,12/04/2011,Travel - Subsistence,DFID Jerusalem and Palestine,FOREIGN AND COMMONWEALTH OFFICE,400153323,548.18
DFID,DFID,13/04/2011,Travel - Subsistence,DFID Jerusalem and Palestine,FOREIGN AND COMMONWEALTH OFFICE,400153160,587.06
DFID,DFID,13/04/2011,Aid Programme - Other Financial Aid to Government,DFID Jerusalem and Palestine,FOREIGN AND COMMONWEALTH OFFICE,400153160,"1,151.07"
DFID,DFID,12/04/2011,House rentals,DFID Jerusalem and Palestine,FOREIGN AND COMMONWEALTH OFFICE,400153323,"1,969.95"
DFID,DFID,12/04/2011,Further Education costs,DFID Moldova,FOREIGN AND COMMONWEALTH OFFICE,400153323,"1,798.99"
DFID,DFID,12/04/2011,Technical and Advisory Services,DFID Nigeria,FOREIGN AND COMMONWEALTH OFFICE,400153323,805.17
DFID,DFID,12/04/2011,Technical and Advisory Services,DFID Pakistan,FOREIGN AND COMMONWEALTH OFFICE,400153323,670.82
DFID,DFID,13/04/2011,Cleaning Costs,DFID Southern Africa,FOREIGN AND COMMONWEALTH OFFICE,400153160,"3,841.37"
DFID,DFID,12/04/2011,Hotels - Accommodation only,DFID Sudan,FOREIGN AND COMMONWEALTH OFFICE,400153323,644.64
DFID,DFID,13/04/2011,Telephone Usage & services,DFID Sudan,FOREIGN AND COMMONWEALTH OFFICE,400153160,712.89
DFID,DFID,13/04/2011,Telephone Usage & services,DFID Sudan,FOREIGN AND COMMONWEALTH OFFICE,400153160,930.76
DFID,DFID,13/04/2011,Electricity,DFID Sudan,FOREIGN AND COMMONWEALTH OFFICE,400153160,"1,043.72"
DFID,DFID,13/04/2011,Air fares,DFID Sudan,FOREIGN AND COMMONWEALTH OFFICE,400153160,"1,478.35"
DFID,DFID,12/04/2011,Property & Construction Services,DFID Sudan,FOREIGN AND COMMONWEALTH OFFICE,400153323,"1,550.40"
DFID,DFID,12/04/2011,Air fares,DFID Sudan,FOREIGN AND COMMONWEALTH OFFICE,400153323,"1,769.72"
DFID,DFID,12/04/2011,Technical and Advisory Services,DFID Tajikistan,FOREIGN AND COMMONWEALTH OFFICE,400153323,"-5,000.00"
DFID,DFID,12/04/2011,Training - Travel & Subsistence,DFID Tajikistan,FOREIGN AND COMMONWEALTH OFFICE,400153323,-631.15
DFID,DFID,13/04/2011,Vehicle Repairs & Maintenance,DFID Yemen,FOREIGN AND COMMONWEALTH OFFICE,400153335,590.41
DFID,DFID,13/04/2011,Air fares,DFID Yemen,FOREIGN AND COMMONWEALTH OFFICE,400153335,726.4
DFID,DFID,13/04/2011,Technical and Advisory Services,DFID Yemen,FOREIGN AND COMMONWEALTH OFFICE,400153335,914.96
DFID,DFID,12/04/2011,Data Network - land lines,Global Partnerships Department,FOREIGN AND COMMONWEALTH OFFICE,400153692,618.35
DFID,DFID,12/04/2011,House rentals,Global Partnerships Department,FOREIGN AND COMMONWEALTH OFFICE,400153323,"3,141.90"
DFID,DFID,13/04/2011,Hotels - Accommodation only,HR DFID Initiatives,FOREIGN AND COMMONWEALTH OFFICE,400153160,"4,265.12"
DFID,DFID,12/04/2011,Other rentals,International Directors Office,FOREIGN AND COMMONWEALTH OFFICE,400153692,"18,914.88"
DFID,DFID,13/04/2011,DFID Learning Events,"Middle East, North Africa Advisory and Corporate (MENARC)",FOREIGN AND COMMONWEALTH OFFICE,400153160,"1,054.63"
DFID,DFID,20/04/2011,Technical and Advisory Services,Overseas Territories Department,FOREIGN AND COMMONWEALTH OFFICE,400153247,"2,327.91"
DFID,DFID,20/04/2011,Technical and Advisory Services,Overseas Territories Department,FOREIGN AND COMMONWEALTH OFFICE,400153247,"3,422.32"
DFID,DFID,12/04/2011,Entertainment & Hospitality,United Nations and Commonwealth Dept (UNCD),FOREIGN AND COMMONWEALTH OFFICE,400153323,790.35
DFID,DFID,12/04/2011,House rentals,United Nations and Commonwealth Dept (UNCD),FOREIGN AND COMMONWEALTH OFFICE,400153323,"2,825.64"
DFID,DFID,14/04/2011,Travel - Subsistence,DFID Indonesia,FOREIGN AND COMMONWEALTH OFFICE,400154610,-599.59
DFID,DFID,28/04/2011,Aid Programme - Joint programme contribution,DFID Caribbean and Nicaragua,FOREIGN AND COMMONWEALTH OFFICE,400156419,-571.02
DFID,DFID,28/04/2011,Electricity,DFID Uganda,FOREIGN AND COMMONWEALTH OFFICE,400156412,-530.33
DFID,DFID,28/04/2011,Other travel costs,Overseas Territories Department,FOREIGN AND COMMONWEALTH OFFICE,400156412,530.88
DFID,DFID,14/04/2011,Travel - Subsistence,DFID Indonesia,FOREIGN AND COMMONWEALTH OFFICE,400154610,532.51
DFID,DFID,28/04/2011,Data Network - land lines,Information Systems Department,FOREIGN AND COMMONWEALTH OFFICE,400156419,535.75
DFID,DFID,28/04/2011,Data Network - land lines,DFID Indonesia,FOREIGN AND COMMONWEALTH OFFICE,400156416,582.63
DFID,DFID,11/04/2011,Office Supplies,DFID Jerusalem and Palestine,FOREIGN AND COMMONWEALTH OFFICE,400153686,600.2
DFID,DFID,28/04/2011,House rentals,DFID Jerusalem and Palestine,FOREIGN AND COMMONWEALTH OFFICE,400156416,605.48
DFID,DFID,28/04/2011,FCO shared service charges,Global Partnerships Department,FOREIGN AND COMMONWEALTH OFFICE,400156419,619.91
DFID,DFID,13/04/2011,Hotels - Accommodation only,Stabilisation Unit,FOREIGN AND COMMONWEALTH OFFICE,400154403,635.23
DFID,DFID,28/04/2011,Other rentals,DFID Indonesia,FOREIGN AND COMMONWEALTH OFFICE,400156416,674.81
DFID,DFID,28/04/2011,Aid Programme - Joint programme contribution,DFID Caribbean and Nicaragua,FOREIGN AND COMMONWEALTH OFFICE,400156419,684.25
DFID,DFID,28/04/2011,Hotels - Accommodation only,DFID Indonesia,FOREIGN AND COMMONWEALTH OFFICE,400156416,685.78
DFID,DFID,28/04/2011,Training - Travel & Subsistence,DFID Sudan,FOREIGN AND COMMONWEALTH OFFICE,400156412,690.64
DFID,DFID,28/04/2011,Electricity,DFID Southern Africa,FOREIGN AND COMMONWEALTH OFFICE,400156412,693.42
DFID,DFID,28/04/2011,Other rentals,DFID Indonesia,FOREIGN AND COMMONWEALTH OFFICE,400156416,698.14
DFID,DFID,28/04/2011,House rentals,DFID Cambodia,FOREIGN AND COMMONWEALTH OFFICE,400156416,721.4
DFID,DFID,28/04/2011,Cleaning Costs,DFID Southern Africa,FOREIGN AND COMMONWEALTH OFFICE,400156412,729.28
DFID,DFID,28/04/2011,House rentals,"Conflict, Humanitarian and Security Department",FOREIGN AND COMMONWEALTH OFFICE,400156419,734.9
DFID,DFID,28/04/2011,Technical and Advisory Services,Global Partnerships Department,FOREIGN AND COMMONWEALTH OFFICE,400156419,749.79
DFID,DFID,11/04/2011,Training - Course Fees,DFID Jerusalem and Palestine,FOREIGN AND COMMONWEALTH OFFICE,400153686,765.31
DFID,DFID,11/04/2011,Property & Construction Services,DFID Bangladesh,FOREIGN AND COMMONWEALTH OFFICE,400153686,786.28
DFID,DFID,28/04/2011,Other Admin Costs,DFID Bangladesh,FOREIGN AND COMMONWEALTH OFFICE,400156412,787.15
DFID,DFID,28/04/2011,FCO shared service charges,Global Partnerships Department,FOREIGN AND COMMONWEALTH OFFICE,400156419,833.95
DFID,DFID,28/04/2011,Travel - Subsistence,DFID Jerusalem and Palestine,FOREIGN AND COMMONWEALTH OFFICE,400156416,866.27
DFID,DFID,28/04/2011,Aid Programme - Joint programme contribution,DFID Caribbean and Nicaragua,FOREIGN AND COMMONWEALTH OFFICE,400156419,868.42
DFID,DFID,28/04/2011,House rentals,DFID Jerusalem and Palestine,FOREIGN AND COMMONWEALTH OFFICE,400156412,869.85
DFID,DFID,28/04/2011,Travel - Subsistence,DFID Jerusalem and Palestine,FOREIGN AND COMMONWEALTH OFFICE,400156416,886.57
DFID,DFID,28/04/2011,Other Admin Costs,DFID Jerusalem and Palestine,FOREIGN AND COMMONWEALTH OFFICE,400156416,942.85
DFID,DFID,28/04/2011,Air fares,HR DFID Initiatives,FOREIGN AND COMMONWEALTH OFFICE,400156419,953.14
DFID,DFID,11/04/2011,Hotels - Accommodation only,Africa Regional Department,FOREIGN AND COMMONWEALTH OFFICE,400153686,970.63
DFID,DFID,28/04/2011,Facilities Management payments,DFID Cambodia,FOREIGN AND COMMONWEALTH OFFICE,400156416,990.95
DFID,DFID,28/04/2011,Facilities Management payments,DFID Cambodia,FOREIGN AND COMMONWEALTH OFFICE,400156416,995.52
DFID,DFID,28/04/2011,Aid Programme - Joint programme contribution,DFID Caribbean and Nicaragua,FOREIGN AND COMMONWEALTH OFFICE,400156419,996.32
DFID,DFID,28/04/2011,Property & Construction Services,DFID Bangladesh,FOREIGN AND COMMONWEALTH OFFICE,400156412,"1,030.41"
DFID,DFID,28/04/2011,Aid Programme - Joint programme contribution,DFID Caribbean and Nicaragua,FOREIGN AND COMMONWEALTH OFFICE,400156419,"1,060.58"
DFID,DFID,14/04/2011,Technical and Advisory Services,DFID Sudan,FOREIGN AND COMMONWEALTH OFFICE,400154610,"1,109.03"
DFID,DFID,28/04/2011,Electricity,DFID Sudan,FOREIGN AND COMMONWEALTH OFFICE,400156416,"1,112.19"
DFID,DFID,28/04/2011,Hotels - Accommodation only,DFID Sudan,FOREIGN AND COMMONWEALTH OFFICE,400156416,"1,173.21"
DFID,DFID,28/04/2011,Air fares,DFID Sudan,FOREIGN AND COMMONWEALTH OFFICE,400156412,"1,179.07"
DFID,DFID,28/04/2011,Oil - Other Utilities,DFID Bangladesh,FOREIGN AND COMMONWEALTH OFFICE,400156412,"1,343.20"
DFID,DFID,28/04/2011,Telephone Usage & services,DFID Jerusalem and Palestine,FOREIGN AND COMMONWEALTH OFFICE,400156412,"1,442.58"
DFID,DFID,28/04/2011,Electricity,DFID Uganda,FOREIGN AND COMMONWEALTH OFFICE,400156412,"1,466.28"
DFID,DFID,28/04/2011,Furniture & Fittings,DFID Southern Africa,FOREIGN AND COMMONWEALTH OFFICE,400156412,"1,490.85"
DFID,DFID,14/04/2011,Technical and Advisory Services,DFID Indonesia,FOREIGN AND COMMONWEALTH OFFICE,400154610,"1,521.31"
DFID,DFID,28/04/2011,Technical and Advisory Services,DFID Caribbean and Nicaragua,FOREIGN AND COMMONWEALTH OFFICE,400156419,"1,524.39"
DFID,DFID,28/04/2011,FCO shared service charges,Global Partnerships Department,FOREIGN AND COMMONWEALTH OFFICE,400156419,"1,549.80"
DFID,DFID,28/04/2011,Electricity,DFID Uganda,FOREIGN AND COMMONWEALTH OFFICE,400156412,"1,564.91"
DFID,DFID,28/04/2011,Cleaning Costs,DFID Southern Africa,FOREIGN AND COMMONWEALTH OFFICE,400156412,"1,567.03"
DFID,DFID,14/04/2011,Technical and Advisory Services,DFID Indonesia,FOREIGN AND COMMONWEALTH OFFICE,400154610,"1,583.38"
DFID,DFID,14/04/2011,Technical and Advisory Services,DFID Indonesia,FOREIGN AND COMMONWEALTH OFFICE,400154610,"1,588.62"
DFID,DFID,28/04/2011,Electricity,DFID Uganda,FOREIGN AND COMMONWEALTH OFFICE,400156412,"1,616.82"
DFID,DFID,28/04/2011,Technical and Advisory Services,Climate and Environment Group,FOREIGN AND COMMONWEALTH OFFICE,400156412,"1,741.72"
DFID,DFID,14/04/2011,Technical and Advisory Services,DFID Indonesia,FOREIGN AND COMMONWEALTH OFFICE,400154610,"1,786.69"
DFID,DFID,11/04/2011,Office Equipment - Maintenance,DFID Jerusalem and Palestine,FOREIGN AND COMMONWEALTH OFFICE,400153686,"2,001.91"
DFID,DFID,28/04/2011,Property & Construction Services,DFID Bangladesh,FOREIGN AND COMMONWEALTH OFFICE,400156412,"2,048.94"
DFID,DFID,28/04/2011,Hotels - Accommodation only,DFID Sudan,FOREIGN AND COMMONWEALTH OFFICE,400156416,"2,116.46"
DFID,DFID,13/04/2011,Other travel costs,Overseas Territories Department,FOREIGN AND COMMONWEALTH OFFICE,400154403,"2,339.29"
DFID,DFID,28/04/2011,Aid Programme - Joint programme contribution,DFID Caribbean and Nicaragua,FOREIGN AND COMMONWEALTH OFFICE,400156419,"2,346.85"
DFID,DFID,13/04/2011,Technical and Advisory Services,Global Partnerships Department,FOREIGN AND COMMONWEALTH OFFICE,400154404,"2,624.28"
DFID,DFID,13/04/2011,Technical and Advisory Services,Global Partnerships Department,FOREIGN AND COMMONWEALTH OFFICE,400154404,"2,624.28"
DFID,DFID,28/04/2011,Furniture & Fittings,DFID Jerusalem and Palestine,FOREIGN AND COMMONWEALTH OFFICE,400156412,"2,685.37"
DFID,DFID,14/04/2011,Technical and Advisory Services,DFID Indonesia,FOREIGN AND COMMONWEALTH OFFICE,400154610,"2,941.57"
DFID,DFID,14/04/2011,Technical and Advisory Services,DFID Sudan,FOREIGN AND COMMONWEALTH OFFICE,400154610,"3,074.39"
DFID,DFID,28/04/2011,Property & Construction Services,DFID Bangladesh,FOREIGN AND COMMONWEALTH OFFICE,400156412,"3,084.42"
DFID,DFID,11/04/2011,DFID Learning Events,"Middle East, North Africa Advisory and Corporate (MENARC)",FOREIGN AND COMMONWEALTH OFFICE,400153686,"3,266.55"
DFID,DFID,28/04/2011,Consultancy Services,DFID Indonesia,FOREIGN AND COMMONWEALTH OFFICE,400156416,"3,733.20"
DFID,DFID,14/04/2011,Data Network -Satellite Communication,Information Systems Department,FOREIGN AND COMMONWEALTH OFFICE,400154610,"3,733.20"
DFID,DFID,28/04/2011,House rentals,DFID Southern Africa,FOREIGN AND COMMONWEALTH OFFICE,400156416,"4,341.27"
DFID,DFID,28/04/2011,House rentals,DFID Southern Africa,FOREIGN AND COMMONWEALTH OFFICE,400156416,"4,341.27"
DFID,DFID,11/04/2011,Technical and Advisory Services,DFID Cambodia,FOREIGN AND COMMONWEALTH OFFICE,400153686,"4,666.50"
DFID,DFID,14/04/2011,Technical and Advisory Services,DFID Indonesia,FOREIGN AND COMMONWEALTH OFFICE,400154610,"4,666.50"
DFID,DFID,28/04/2011,House rentals,DFID Southern Africa,FOREIGN AND COMMONWEALTH OFFICE,400156416,"4,902.74"
DFID,DFID,11/04/2011,Technical and Advisory Services,DFID Indonesia,FOREIGN AND COMMONWEALTH OFFICE,400153686,"5,277.44"
DFID,DFID,14/04/2011,Technical and Advisory Services,DFID Indonesia,FOREIGN AND COMMONWEALTH OFFICE,400154610,"5,503.83"
DFID,DFID,28/04/2011,FCO shared service charges,Global Partnerships Department,FOREIGN AND COMMONWEALTH OFFICE,400156419,"5,555.02"
DFID,DFID,28/04/2011,Technical and Advisory Services,Global Partnerships Department,FOREIGN AND COMMONWEALTH OFFICE,400156419,"6,956.82"
DFID,DFID,28/04/2011,Technical and Advisory Services,DFID Indonesia,FOREIGN AND COMMONWEALTH OFFICE,400156412,"7,036.59"
DFID,DFID,11/04/2011,Technical and Advisory Services,DFID Sudan,FOREIGN AND COMMONWEALTH OFFICE,400153686,"8,959.05"
DFID,DFID,28/04/2011,Technical and Advisory Services,Global Partnerships Department,FOREIGN AND COMMONWEALTH OFFICE,400156419,"9,250.21"
DFID,DFID,28/04/2011,House rentals,Europe Department,FOREIGN AND COMMONWEALTH OFFICE,400156419,"9,333.00"
DFID,DFID,28/04/2011,House rentals,DFID Southern Africa,FOREIGN AND COMMONWEALTH OFFICE,400156416,"9,665.50"
DFID,DFID,28/04/2011,House rentals,International Directors Office,FOREIGN AND COMMONWEALTH OFFICE,400156419,"11,199.60"
DFID,DFID,28/04/2011,Technical and Advisory Services,Climate and Environment Group,FOREIGN AND COMMONWEALTH OFFICE,400156416,"15,082.13"
DFID,DFID,28/04/2011,House rentals,DFID Southern Africa,FOREIGN AND COMMONWEALTH OFFICE,400156416,"18,943.71"
DFID,DFID,28/04/2011,House rentals,DFID Southern Africa,FOREIGN AND COMMONWEALTH OFFICE,400156416,"19,610.95"
DFID,DFID,11/04/2011,House rentals,DFID Jerusalem and Palestine,FOREIGN AND COMMONWEALTH OFFICE,400153686,"29,865.60"
DFID,DFID,28/04/2011,Technical and Advisory Services,Global Partnerships Department,FOREIGN AND COMMONWEALTH OFFICE,400156419,"43,575.00"
DFID,DFID,26/04/2011,Courier & Bag Services,Abercrombie House (UK Office),DHL EXPRESS ( UK ) LTD,400153843,33.74
DFID,DFID,13/04/2011,Other Building Costs,Abercrombie House (UK Office),Shred-It Glasgow Limited,400154356,780
DFID,DFID,27/04/2011,Postage Costs,Abercrombie House (UK Office),TNT Express (UK) Ltd,400156089,"2,422.62"
DFID,DFID,14/04/2011,Other Building Costs,Abercrombie House (UK Office),GVA Grimley Ltd,400153637,"51,000.00"
DFID,DFID,04/04/2011,Hotels - Accommodation only,Africa Regional Department,BCD Travel (USD),400152047,141.42
DFID,DFID,07/04/2011,FCO shared service charges,Central Department Division,FOREIGN AND COMMONWEALTH OFFICE,400152930,"1,160,089.00"
DFID,DFID,26/04/2011,Professional member subscriptions,Civil Society Department,Chatham House,400155701,"2,750.00"
DFID,DFID,04/04/2011,Travel documentation costs,Climate and Environment Group,FOREIGN AND COMMONWEALTH OFFICE,400151362,81.5
DFID,DFID,12/04/2011,Water charges,Climate and Environment Group,DSM Water & Sewerage Corp,400152480,442.38
DFID,DFID,20/04/2011,Technical and Advisory Services,DFID Afghanistan,SUPPLIER NAME WITHELD,400155336,49.38
DFID,DFID,27/04/2011,Technical and Advisory Services,DFID Afghanistan,SUPPLIER NAME WITHELD,400155795,147.05
DFID,DFID,30/04/2011,Contract & Agency Staff,DFID Afghanistan,SUPPLIER NAME WITHELD,400156573,172.01
DFID,DFID,27/04/2011,Technical and Advisory Services,DFID Afghanistan,SUPPLIER NAME WITHELD,400155795,220.58
DFID,DFID,27/04/2011,Technical and Advisory Services,DFID Afghanistan,SUPPLIER NAME WITHELD,400155795,294.1
DFID,DFID,21/04/2011,Legal costs,DFID Afghanistan,SUPPLIER NAME WITHELD,400153999,310.7
DFID,DFID,20/04/2011,Technical and Advisory Services,DFID Afghanistan,SUPPLIER NAME WITHELD,400155336,345.68
DFID,DFID,20/04/2011,Technical and Advisory Services,DFID Afghanistan,SUPPLIER NAME WITHELD,400155336,395.06
DFID,DFID,20/04/2011,Technical and Advisory Services,DFID Afghanistan,SUPPLIER NAME WITHELD,400153644,415.44
DFID,DFID,20/04/2011,Technical and Advisory Services,DFID Afghanistan,SUPPLIER NAME WITHELD,400155336,419.75
DFID,DFID,27/04/2011,Training - Travel & Subsistence,DFID Afghanistan,SUPPLIER NAME WITHELD,400155355,458.51
DFID,DFID,27/04/2011,Technical and Advisory Services,DFID Afghanistan,SUPPLIER NAME WITHELD,400155795,612.71
DFID,DFID,20/04/2011,Courier & Bag Services,DFID Afghanistan,SUPPLIER NAME WITHELD,400154690,632.64
DFID,DFID,20/04/2011,Technical and Advisory Services,DFID Afghanistan,SUPPLIER NAME WITHELD,400155336,691.36
DFID,DFID,27/04/2011,Air fares,DFID Afghanistan,SUPPLIER NAME WITHELD,400155355,694.54
DFID,DFID,27/04/2011,Technical and Advisory Services,DFID Afghanistan,SUPPLIER NAME WITHELD,400155795,759.76
DFID,DFID,27/04/2011,Air fares,DFID Afghanistan,SUPPLIER NAME WITHELD,400155355,"1,062.49"
DFID,DFID,13/04/2011,Training - Course Fees,DFID Afghanistan,SUPPLIER NAME WITHELD,400153491,"1,799.00"
DFID,DFID,30/04/2011,Contract & Agency Staff,DFID Afghanistan,SUPPLIER NAME WITHELD,400156574,"2,215.43"
DFID,DFID,27/04/2011,Air fares,DFID Afghanistan,SUPPLIER NAME WITHELD,400155355,"2,818.82"
DFID,DFID,04/04/2011,Furniture & Fittings,DFID Afghanistan,SUPPLIER NAME WITHELD,400152786,"7,537.64"
DFID,DFID,21/04/2011,Medical/Health Services,DFID Bangladesh,recipient withheld,400155512,18.48
DFID,DFID,26/04/2011,Air fares,DFID Bangladesh,Saimon Overseas Ltd,400155793,144.7
DFID,DFID,26/04/2011,Property & Construction Services,DFID Bangladesh,M N Khan & Co,400155798,735.51
DFID,DFID,18/04/2011,Training - Course Fees,DFID Bangladesh,British Council (Bangladesh),400154791,"1,085.88"
DFID,DFID,28/04/2011,Storage & Distribution costs,DFID Caribbean and Nicaragua,CROWN RELOCATIONS  UK,400155497,147.25
DFID,DFID,28/04/2011,Storage & Distribution costs,DFID Caribbean and Nicaragua,CROWN RELOCATIONS  UK,400155497,390
DFID,DFID,06/04/2011,Technical and Advisory Services,DFID China,Peng Yongyi,400153227,"6,197.18"
DFID,DFID,04/04/2011,Travel documentation costs,DFID Democratic Republic of Congo,FOREIGN AND COMMONWEALTH OFFICE,400151362,128
DFID,DFID,04/04/2011,Other travel costs,DFID Democratic Republic of Congo,FOREIGN AND COMMONWEALTH OFFICE,400151362,209.5
DFID,DFID,21/04/2011,Storage & Distribution costs,DFID Democratic Republic of Congo,CROWN RELOCATIONS  UK,400155475,"17,245.39"
DFID,DFID,14/04/2011,Oil - Other Utilities,DFID Ethiopia,British Embassy,400154502,14.7
DFID,DFID,14/04/2011,Oil - Other Utilities,DFID Ethiopia,British Embassy,400154502,14.7
DFID,DFID,14/04/2011,Vehicle Petrol & Oil,DFID Ethiopia,British Embassy,400154502,674.13
DFID,DFID,14/04/2011,Vehicle Petrol & Oil,DFID Ethiopia,British Embassy,400154502,674.13
DFID,DFID,19/04/2011,Computer Consumables,DFID Ethiopia,FCO SERVICES,400155091,"1,713.48"
DFID,DFID,11/04/2011,Office Supplies,DFID Ghana,Kweku Peter Afful,400153852,255.82
DFID,DFID,11/04/2011,Office Supplies,DFID Ghana,Kweku Peter Afful,400153852,325.59
DFID,DFID,19/04/2011,Technical and Advisory Services,DFID Ghana,FCO SERVICES,400155160,882.06
DFID,DFID,14/04/2011,Air fares,DFID India,KUONI BUSINESS TRAVEL INDIA PVT LTD,400153894,19.28
DFID,DFID,14/04/2011,Air fares,DFID India,KUONI BUSINESS TRAVEL INDIA PVT LTD,400153894,98.66
DFID,DFID,14/04/2011,Air fares,DFID India,KUONI BUSINESS TRAVEL INDIA PVT LTD,400153894,99.92
DFID,DFID,14/04/2011,Air fares,DFID India,KUONI BUSINESS TRAVEL INDIA PVT LTD,400153894,123.99
DFID,DFID,14/04/2011,Air fares,DFID India,KUONI BUSINESS TRAVEL INDIA PVT LTD,400153894,580.34
DFID,DFID,13/04/2011,Air fares,DFID India,A.B.C. Tours and Travels,400153893,741.54
DFID,DFID,12/04/2011,Courier & Bag Services,DFID India,BRITISH HIGH COMMISSION,400153911,965.93
DFID,DFID,12/04/2011,Vehicle Repairs & Maintenance,DFID India,QUTAB SERVICE STATION,400153897,"1,032.54"
DFID,DFID,12/04/2011,Water charges,DFID Kenya,DSM Water & Sewerage Corp,400152480,73.73
DFID,DFID,04/04/2011,Technical and Advisory Services,DFID Kenya,BCD Travel (USD),400152047,174.77
DFID,DFID,04/04/2011,Air fares,DFID Kenya,BCD Travel (USD),400152047,247.38
DFID,DFID,01/04/2011,DFID Learning Events,DFID Kenya,J.H Simex PLC/Intercontinental Hotel,400151164,554.98
DFID,DFID,15/04/2011,Relocation costs,DFID Kenya,YAYA CAR SALES (K) LTD.,400154657,"4,136.59"
DFID,DFID,14/04/2011,Technical and Advisory Services,DFID Kenya,CHARLES KENDALL & PARTNERS LIMITED88,400153729,"5,109.67"
DFID,DFID,13/04/2011,Mobile telephones & accessories,DFID Mozambique,MCell,400154405,216.58
DFID,DFID,27/04/2011,Technical and Advisory Services,DFID Mozambique,DANA Agency,400156124,284.02
DFID,DFID,13/04/2011,Mobile telephones & accessories,DFID Mozambique,MCell,400154405,315.13
DFID,DFID,13/04/2011,Hotels - Accommodation only,DFID Mozambique,Hotel Cardoso S A R L,400154352,619.02
DFID,DFID,13/04/2011,Mobile telephones & accessories,DFID Mozambique,MCell,400154405,774.13
DFID,DFID,13/04/2011,Technical and Advisory Services,DFID Mozambique,"ANARKALY,LDA",400154429,825.87
DFID,DFID,13/04/2011,Property & Construction Services,DFID Mozambique,LIFE,400154366,"1,004.62"
DFID,DFID,06/04/2011,Training - Course Fees,DFID Mozambique,"ANARKALY,LDA",400153119,"1,058.00"
DFID,DFID,06/04/2011,"Conferences, Seminars & Meeting/Event Resource",DFID Mozambique,Turvisa Girassol Indy Village,400153185,"1,178.91"
DFID,DFID,27/04/2011,Air fares,DFID Mozambique,DANA Agency,400156124,"1,420.10"
DFID,DFID,05/04/2011,FCO shared service charges,DFID Mozambique,FOREIGN AND COMMONWEALTH OFFICE,400152839,"1,455.58"
DFID,DFID,13/04/2011,Other travel costs,DFID Nigeria,Valencia Hotels,400153470,79.42
DFID,DFID,27/04/2011,Other travel costs,DFID Nigeria,Chelsea Hotel Abuja,400156295,106.14
DFID,DFID,21/04/2011,Other travel costs,DFID Nigeria,Valencia Hotels,400155358,179.07
DFID,DFID,15/04/2011,Other travel costs,DFID Nigeria,Eko Hotels and Suites,400154553,179.27
DFID,DFID,13/04/2011,Other travel costs,DFID Nigeria,Valencia Hotels,400153470,317.68
DFID,DFID,18/04/2011,Other travel costs,DFID Nigeria,Eko Hotels and Suites,400154555,358.58
DFID,DFID,18/04/2011,Other travel costs,DFID Nigeria,Eko Hotels and Suites,400154555,358.58
DFID,DFID,18/04/2011,Technical and Advisory Services,DFID Nigeria,Eko Hotels and Suites,400154555,358.58
DFID,DFID,15/04/2011,Technical and Advisory Services,DFID Nigeria,Eko Hotels and Suites,400154553,537.81
DFID,DFID,15/04/2011,Technical and Advisory Services,DFID Nigeria,Eko Hotels and Suites,400154553,537.81
DFID,DFID,11/04/2011,Other travel costs,DFID Nigeria,Protea Hotel Abuja,400153621,807.19
DFID,DFID,18/04/2011,Training - Course Fees,DFID Nigeria,David Lloyd-Davies,400154677,"1,080.38"
DFID,DFID,27/04/2011,Other travel costs,DFID Nigeria,African (Wings) Travels Ltd,400156311,"1,161.01"
DFID,DFID,04/04/2011,Further Education costs,DFID Nigeria,University Of Leicester,400152825,"1,243.64"
DFID,DFID,27/04/2011,Other travel costs,DFID Nigeria,Chelsea Hotel Abuja,400156295,"1,273.68"
DFID,DFID,13/04/2011,Other travel costs,DFID Nigeria,Valencia Hotels,400153470,"1,747.24"
DFID,DFID,07/04/2011,House rentals,DFID Nigeria,Encore Development Corporation Ltd,400153453,"4,035.96"
DFID,DFID,07/04/2011,House rentals,DFID Nigeria,Encore Development Corporation Ltd,400153453,"4,932.84"
DFID,DFID,21/04/2011,Other travel costs,DFID Nigeria,Valencia Hotels,400155358,"5,114.65"
DFID,DFID,11/04/2011,Technical and Advisory Services,DFID Nigeria,Ukoha Ukiwo,400153639,"6,057.21"
DFID,DFID,12/04/2011,Technical and Advisory Services,DFID Nigeria,The World Bank,400154024,"7,173.53"
DFID,DFID,01/04/2011,Technical and Advisory Services,DFID Pakistan,FCO SERVICES,400152782,824
DFID,DFID,06/04/2011,Furniture & Fittings,DFID Rwanda,AZ IMPEX,400153251,578.28
DFID,DFID,27/04/2011,Relocation costs,DFID Rwanda,CROWN RELOCATIONS  UK,400156013,959.09
DFID,DFID,06/04/2011,Furniture & Fittings,DFID Rwanda,AZ IMPEX,400153251,"1,349.33"
DFID,DFID,11/04/2011,Relocation costs,DFID Rwanda,CROWN RELOCATIONS  UK,400153308,"2,445.90"
DFID,DFID,12/04/2011,Legal costs,DFID Rwanda,THE CROWN AGENTS,400154181,"5,017.60"
DFID,DFID,15/04/2011,Courier & Bag Services,DFID Sierra Leone and Liberia,FCO SERVICES,400154687,740.77
DFID,DFID,15/04/2011,Courier & Bag Services,DFID Sierra Leone and Liberia,FCO SERVICES,400154687,740.77
DFID,DFID,13/04/2011,Training - Course Fees,DFID Sierra Leone and Liberia,Inst of Public Admin & Mgmt,400154480,"1,252.35"
DFID,DFID,04/04/2011,Air fares,DFID Somalia,BCD Travel (USD),400152047,484.92
DFID,DFID,20/04/2011,Other passenger transport,DFID Southern Africa,Niyibizi General Dealer,400154720,140.69
DFID,DFID,20/04/2011,Other passenger transport,DFID Southern Africa,Niyibizi General Dealer,400154720,372.93
DFID,DFID,07/04/2011,Telephone Usage & services,DFID Southern Africa,Spoc Managed Services Cc,400153256,522.23
DFID,DFID,12/04/2011,Reproduction & Printing Materials,DFID Southern Africa,Bula Document Solutions,400153778,685.38
DFID,DFID,13/04/2011,Vehicle Petrol & Oil,DFID Southern Africa,Lynnwood Motors,400153768,715.96
DFID,DFID,07/04/2011,Mobile telephones & accessories,DFID Southern Africa,VodaShop,400153329,"1,388.14"
DFID,DFID,11/04/2011,Data Network - land lines,DFID Southern Africa,Telkom SA Ltd,400153479,"1,940.68"
DFID,DFID,19/04/2011,Further Education costs,DFID Southern Africa,Staff member,400155074,"2,643.84"
DFID,DFID,11/04/2011,Operating Lease rental of buildings,DFID Southern Africa,Vukile Property Fund Ltd,400153730,"5,294.06"
DFID,DFID,11/04/2011,Operating Lease rental of buildings,DFID Southern Africa,Vukile Property Fund Ltd,400153730,"12,352.80"
DFID,DFID,26/04/2011,Courier & Bag Services,DFID Sudan,DHL EXPRESS ( UK ) LTD,400153843,22.24
DFID,DFID,12/04/2011,Water charges,DFID Tanzania,DSM Water & Sewerage Corp,400152480,73.73
DFID,DFID,13/04/2011,Vehicle Repairs & Maintenance,DFID Tanzania,SOKOINE DRIVE SERVICE STATION LTD.,400154273,189.64
DFID,DFID,27/04/2011,Office Supplies,DFID Tanzania,Pran Pen Corner Ltd,400155309,376.56
DFID,DFID,14/04/2011,Technical and Advisory Services,DFID Tanzania,Tanzania Electric supply company Ltd,400154297,403.41
DFID,DFID,13/04/2011,Vehicle Repairs & Maintenance,DFID Tanzania,SOKOINE DRIVE SERVICE STATION LTD.,400154273,442.5
DFID,DFID,27/04/2011,Office Supplies,DFID Tanzania,Pran Pen Corner Ltd,400155309,564.84
DFID,DFID,27/04/2011,Technical and Advisory Services,DFID Tanzania,British High Commission(Tsh),400155528,"1,125.98"
DFID,DFID,14/04/2011,Facilities Management payments,DFID Tanzania,Tanzania Electric supply company Ltd,400154297,"1,492.63"
DFID,DFID,21/04/2011,FCO shared service charges,DFID Tanzania,JMC Umoja House,400155530,"2,817.26"
DFID,DFID,21/04/2011,FCO shared service charges,DFID Tanzania,JMC Umoja House,400155530,"6,573.60"
DFID,DFID,27/04/2011,FCO shared service charges,DFID Tanzania,British High Commission(Tsh),400155528,"6,940.86"
DFID,DFID,13/04/2011,House rentals,DFID Tanzania,National Furnishers Limited (USD),400154294,"7,485.96"
DFID,DFID,13/04/2011,House rentals,DFID Tanzania,National Furnishers Limited (USD),400154295,"30,917.03"
DFID,DFID,13/04/2011,Electricity,DFID Zimbabwe,ZESA,400154079,43.87
DFID,DFID,13/04/2011,Relocation costs,DFID Zimbabwe,SUPPLIER NAME WITHELD,400154075,687.11
DFID,DFID,13/04/2011,Electricity,DFID Zimbabwe,ZESA,400154079,"1,455.46"
DFID,DFID,21/04/2011,Relocation costs,DFID Zimbabwe,CROWN RELOCATIONS  UK,400155479,"5,990.24"
DFID,DFID,20/04/2011,Legal costs,Evaluation Department,TREASURY SOLICITORS CASH ACC,400153668,"1,570.40"
DFID,DFID,21/04/2011,Hotels - Accommodation only,Finance and Performance Department,Saket Courtyard Hospitality,400155129,335.79
DFID,DFID,21/04/2011,Technical and Advisory Services,Global Funds Department,THE CROWN AGENTS,400153999,"1,314.50"
DFID,DFID,26/04/2011,Courier & Bag Services,Governance and Social Development Group,DHL EXPRESS ( UK ) LTD,400153843,18.11
DFID,DFID,04/04/2011,Hotels - Accommodation only,Growth and Investment Group,BCD Travel (USD),400152047,94.28
DFID,DFID,19/04/2011,Air fares,HR DFID Initiatives,Saimon Overseas Ltd,400155057,379.27
DFID,DFID,26/04/2011,Technical and Advisory Services,HR DFID Initiatives,SANTIA CONSULTING LTD,400154730,"1,287.30"
DFID,DFID,11/04/2011,Medicines & Drugs,HR DFID Initiatives,MASTA Ltd,400153652,"1,505.20"
DFID,DFID,06/04/2011,Technical and Advisory Services,HR DFID Initiatives,SANTIA CONSULTING LTD,400153276,"1,714.80"
DFID,DFID,11/04/2011,Medicines & Drugs,HR DFID Initiatives,MASTA Ltd,400153652,"3,829.00"
DFID,DFID,15/04/2011,Medical/Health Services,HR DFID Initiatives,Healix International Ltd (Expenses),400154726,"10,354.75"
DFID,DFID,06/04/2011,Recruitment costs,HR DFID Initiatives,RUSSELL REYNOLDS ASSOCIATES,400153233,"10,600.80"
DFID,DFID,04/04/2011,Medical/Health Services,HR DFID Initiatives,Healix International Ltd (Expenses),400152821,"32,438.19"
DFID,DFID,26/04/2011,Courier & Bag Services,Information Systems Department,DHL EXPRESS ( UK ) LTD,400153843,76.8
DFID,DFID,21/04/2011,Hotels - Accommodation only,Information Systems Department,Saket Courtyard Hospitality,400155129,335.79
DFID,DFID,12/04/2011,Other travel costs,Information Systems Department,J & I TAXIS,400154204,650
DFID,DFID,06/04/2011,Telephone Usage & services,Information Systems Department,BT BACS PAYMENTS,400152923,"5,041.78"
DFID,DFID,13/04/2011,Telephone Usage & services,Information Systems Department,BT BACS PAYMENTS,400154253,"17,361.44"
DFID,DFID,21/04/2011,Other Admin Costs,Overseas Pensions Department,Government Actuary's Department,400155525,"6,894.24"
DFID,DFID,21/04/2011,Legal costs,Overseas Territories Department,THE CROWN AGENTS,400153999,71.7
DFID,DFID,21/04/2011,Legal costs,Overseas Territories Department,THE CROWN AGENTS,400153999,143.4
DFID,DFID,21/04/2011,Legal costs,Overseas Territories Department,THE CROWN AGENTS,400153999,430.2
DFID,DFID,21/04/2011,Legal costs,Overseas Territories Department,THE CROWN AGENTS,400153999,525.8
DFID,DFID,21/04/2011,Legal costs,Overseas Territories Department,THE CROWN AGENTS,400153999,"1,173.00"
DFID,DFID,21/04/2011,Legal costs,Overseas Territories Department,THE CROWN AGENTS,400153999,"2,342.20"
DFID,DFID,21/04/2011,Legal costs,Overseas Territories Department,THE CROWN AGENTS,400153999,"3,513.30"
DFID,DFID,21/04/2011,Legal costs,Overseas Territories Department,THE CROWN AGENTS,400153999,"12,696.00"
DFID,DFID,18/04/2011,Other travel costs,Private Sector Department,Eko Hotels and Suites,400154555,358.58
DFID,DFID,21/04/2011,Legal costs,Private Sector Department,THE CROWN AGENTS,400153999,"1,553.50"
DFID,DFID,21/04/2011,Legal costs,Procurement Department,THE CROWN AGENTS,400153999,47.8
DFID,DFID,13/04/2011,Legal costs,Procurement Department,THE CROWN AGENTS,400154197,115
DFID,DFID,21/04/2011,Legal costs,Procurement Department,THE CROWN AGENTS,400153999,382.4
DFID,DFID,21/04/2011,Legal costs,Procurement Department,THE CROWN AGENTS,400153999,430.2
DFID,DFID,13/04/2011,Legal costs,Procurement Department,THE CROWN AGENTS,400154197,703.85
DFID,DFID,21/04/2011,Legal costs,Procurement Department,THE CROWN AGENTS,400153999,"1,195.00"
DFID,DFID,21/04/2011,Legal costs,Procurement Department,THE CROWN AGENTS,400153999,"1,338.40"
DFID,DFID,13/04/2011,Legal costs,Procurement Department,THE CROWN AGENTS,400154190,"5,745.00"
DFID,DFID,14/04/2011,Legal costs,Procurement Department,THE CROWN AGENTS,400154198,"7,424.00"
DFID,DFID,13/04/2011,Legal costs,Procurement Department,THE CROWN AGENTS,400154197,"11,814.30"
DFID,DFID,13/04/2011,Legal costs,Procurement Department,THE CROWN AGENTS,400154190,"59,142.19"
DFID,DFID,13/04/2011,Legal costs,Procurement Department,THE CROWN AGENTS,400154197,"78,193.20"
DFID,DFID,26/04/2011,Courier & Bag Services,Research and Evidence,DHL EXPRESS ( UK ) LTD,400153843,51.83
DFID,DFID,07/04/2011,Travel - Subsistence,Stabilisation Unit,SUPPLIER NAME WITHELD,400152067,8.6
DFID,DFID,21/04/2011,Medical/Health Services,Stabilisation Unit,INTERHEALTH,400153642,11.22
DFID,DFID,07/04/2011,Other travel costs,Stabilisation Unit,SUPPLIER NAME WITHELD,400152067,96.37
DFID,DFID,21/04/2011,Medical/Health Services,Stabilisation Unit,INTERHEALTH,400153642,634.95
DFID,DFID,07/04/2011,House rentals,Stabilisation Unit,SUPPLIER NAME WITHELD,400152067,"3,531.30"
DFID,DFID,15/04/2011,Print Services,Strategic Communications Team,COPYPRINT UK LTD,400153493,"1,279.20"
DFID,DFID,15/04/2011,Print Services,Strategic Communications Team,COPYPRINT UK LTD,400153549,"1,421.14"
DFID,DFID,13/04/2011,Government Car Scheme UK,Top Management Group,GOVERNMENT CAR AND DESPATCH AGENCY,400154038,465
DFID,DFID,20/04/2011,Government Car Scheme UK,Top Management Group,GOVERNMENT CAR AND DESPATCH AGENCY,400153801,531.3
DFID,DFID,19/04/2011,Government Car Scheme UK,Top Management Group,GOVERNMENT CAR AND DESPATCH AGENCY,400155099,555
DFID,DFID,13/04/2011,Government Car Scheme UK,Top Management Group,GOVERNMENT CAR AND DESPATCH AGENCY,400153336,594
DFID,DFID,15/04/2011,Government Car Scheme UK,Top Management Group,GOVERNMENT CAR AND DESPATCH AGENCY,400154703,645
DFID,DFID,13/04/2011,Government Car Scheme UK,Top Management Group,GOVERNMENT CAR AND DESPATCH AGENCY,400153355,918
DFID,DFID,12/04/2011,Government Car Scheme UK,Top Management Group,GOVERNMENT CAR AND DESPATCH AGENCY,400153820,930
DFID,DFID,13/04/2011,Government Car Scheme UK,Top Management Group,GOVERNMENT CAR AND DESPATCH AGENCY,400153812,960
DFID,DFID,27/04/2011,Government Car Scheme UK,Top Management Group,GOVERNMENT CAR AND DESPATCH AGENCY,400155151,"1,260.00"
DFID,DFID,12/04/2011,Government Car Scheme UK,Top Management Group,GOVERNMENT CAR AND DESPATCH AGENCY,400148957,"1,537.50"
DFID,DFID,01/04/2011,Government Car Scheme UK,Top Management Group,GOVERNMENT CAR AND DESPATCH AGENCY,400152544,"1,635.00"
DFID,DFID,15/04/2011,Government Car Scheme UK,Top Management Group,GOVERNMENT CAR AND DESPATCH AGENCY,400152731,"1,702.50"
DFID,DFID,01/04/2011,Government Car Scheme UK,Top Management Group,GOVERNMENT CAR AND DESPATCH AGENCY,400152738,"1,725.00"
DFID,DFID,15/04/2011,Technical and Advisory Services,Top Management Group,recipient withheld,400153556,"2,925.40"
DFID,DFID,18/04/2011,Training Providers/Facilitation Services,Trade Policy Unit,BIS,400153540,"1,415.95"
DFID,DFID,14/04/2011,Other travel costs,Trade Policy Unit,BIS,400153172,"10,537.58"
DFID,DFID,14/04/2011,House rentals,Trade Policy Unit,FOREIGN AND COMMONWEALTH OFFICE,400152847,"29,476.00"
DFID,DFID,18/04/2011,Aid Programme - Core contributions,Africa Directorate,The World  Bank IBRD,400153846,"250,022.19"
DFID,DFID,15/04/2011,Technical and Advisory Services,Africa Regional Department,Excelsior Firm LLC,400154563,"10,597.87"
DFID,DFID,20/04/2011,Aid Programme - Humanitarian Material Relief Assistance and Services,Africa Regional Department,World Food  Programme,400155100,"1,000,000.00"
DFID,DFID,20/04/2011,Technical and Advisory Services,Civil Society Department,KPMG Development Services,400155186,"-99,766.90"
DFID,DFID,20/04/2011,Technical and Advisory Services,Civil Society Department,KPMG Development Services,400155186,-2
DFID,DFID,20/04/2011,Technical and Advisory Services,Civil Society Department,KPMG Development Services,400155186,2
DFID,DFID,20/04/2011,Technical and Advisory Services,Civil Society Department,KPMG Development Services,400155186,"33,235.65"
DFID,DFID,19/04/2011,Aid Programme - Accountable Grant Payments,Civil Society Department,THE TIDES FOUNDATION,400155014,"54,439.00"
DFID,DFID,20/04/2011,Technical and Advisory Services,Civil Society Department,KPMG Development Services,400155186,"99,766.90"
DFID,DFID,01/04/2011,Aid Programme - Accountable Grant Payments,Climate and Environment Group,Clean Development Mechanism (CDM) Watch,400152676,"9,377.55"
DFID,DFID,01/04/2011,Aid Programme - Accountable Grant Payments,Climate and Environment Group,Chinese Academy of Foretry ,400152056,"20,750.00"
DFID,DFID,01/04/2011,Aid Programme - Accountable Grant Payments,Climate and Environment Group,CENTER FOR CLEAN AIR POLICY,400151993,"63,940.33"
DFID,DFID,21/04/2011,Technical and Advisory Services,"Conflict, Humanitarian and Security Department",DARA INTERNATIONAL,400155224,"7,953.33"
DFID,DFID,26/04/2011,Aid Programme - Strategic Grant Arrangement payments,"Conflict, Humanitarian and Security Department",New York University (GBP),400155767,"100,000.00"
DFID,DFID,19/04/2011,Aid Programme - Challenge Fund payments,"Conflict, Humanitarian and Security Department",NORWEGIAN REFUGEE COUNCIL,400155007,"300,000.00"
DFID,DFID,13/04/2011,Technical and Advisory Services,DFID Afghanistan,SUPPLIER NAME WITHELD,400154032,"2,022.07"
DFID,DFID,13/04/2011,Technical and Advisory Services,DFID Afghanistan,SUPPLIER NAME WITHELD,400153821,"3,667.61"
DFID,DFID,13/04/2011,Technical and Advisory Services,DFID Afghanistan,SUPPLIER NAME WITHELD,400154110,"6,185.20"
DFID,DFID,01/04/2011,Technical and Advisory Services,DFID Afghanistan,SUPPLIER NAME WITHELD,400152741,"8,069.62"
DFID,DFID,12/04/2011,Aid Programme - Trust Funds contributions,DFID Afghanistan,SUPPLIER NAME WITHELD,400153806,"11,113.20"
DFID,DFID,28/04/2011,Technical and Advisory Services,DFID Afghanistan,SUPPLIER NAME WITHELD,400155961,"20,526.11"
DFID,DFID,13/04/2011,Technical and Advisory Services,DFID Afghanistan,SUPPLIER NAME WITHELD,400154007,"21,485.48"
DFID,DFID,13/04/2011,Technical and Advisory Services,DFID Afghanistan,SUPPLIER NAME WITHELD,400153998,"21,485.52"
DFID,DFID,14/04/2011,Technical and Advisory Services,DFID Afghanistan,SUPPLIER NAME WITHELD,400154549,"24,584.00"
DFID,DFID,14/04/2011,Technical and Advisory Services,DFID Afghanistan,SUPPLIER NAME WITHELD,400154493,"26,911.78"
DFID,DFID,13/04/2011,Technical and Advisory Services,DFID Afghanistan,SUPPLIER NAME WITHELD,400153988,"30,845.00"
DFID,DFID,14/04/2011,Technical and Advisory Services,DFID Afghanistan,SUPPLIER NAME WITHELD,400154492,"35,882.37"
DFID,DFID,11/04/2011,Aid Programme - Trust Funds contributions,DFID Afghanistan,SUPPLIER NAME WITHELD,400153667,"36,846.00"
DFID,DFID,13/04/2011,Technical and Advisory Services,DFID Afghanistan,SUPPLIER NAME WITHELD,400154003,"38,472.06"
DFID,DFID,19/04/2011,Aid Programme - Accountable Grant Payments,DFID Afghanistan,SUPPLIER NAME WITHELD,400154896,"92,178.00"
DFID,DFID,06/04/2011,Technical and Advisory Services,DFID Afghanistan,SUPPLIER NAME WITHELD,400153030,"121,213.18"
DFID,DFID,12/04/2011,Technical and Advisory Services,DFID Afghanistan,SUPPLIER NAME WITHELD,400153823,"130,303.05"
DFID,DFID,13/04/2011,Technical and Advisory Services,DFID Afghanistan,SUPPLIER NAME WITHELD,400154016,"182,901.25"
DFID,DFID,12/04/2011,Technical and Advisory Services,DFID Afghanistan,SUPPLIER NAME WITHELD,400153825,"220,852.62"
DFID,DFID,27/04/2011,Aid Programme - Accountable Grant Payments,DFID Bangladesh,Transparency International (Bangladesh),400155930,"20,000.00"
DFID,DFID,19/04/2011,Technical and Advisory Services,DFID Bangladesh,BMB MOTT  MACDONALD,400155025,"67,428.95"
DFID,DFID,27/04/2011,Aid Programme - Accountable Grant Payments,DFID Bangladesh,Transparency International (Bangladesh),400155930,"174,843.57"
DFID,DFID,13/04/2011,Aid Programme - Joint programme contribution,DFID Bangladesh,Swiss Agency for Development and Cooperation SDC (Bangladesh),400153744,"391,628.75"
DFID,DFID,19/04/2011,Aid Programme - Accountable Grant Payments,DFID Bangladesh,BRAC,400154951,"500,000.00"
DFID,DFID,20/04/2011,Technical and Advisory Services,DFID Bangladesh,BMB MOTT  MACDONALD,400155031,"833,393.48"
DFID,DFID,20/04/2011,Aid Programme - Accountable Grant Payments,DFID Bangladesh,BRAC,400153417,"10,000,000.00"
DFID,DFID,19/04/2011,House rentals,DFID Burundi,CHARLES NSABIMANA,400154521,"2,312.25"
DFID,DFID,19/04/2011,Aid Programme - Accountable Grant Payments,DFID China,Chinese Academy of Foretry ,400155067,"44,250.00"
DFID,DFID,18/04/2011,Technical and Advisory Services,DFID Democratic Republic of Congo,IPA-International Procurement Agency (BV),400151688,"3,861.56"
DFID,DFID,18/04/2011,Technical and Advisory Services,DFID Democratic Republic of Congo,IPA-International Procurement Agency (BV),400154765,"5,454.34"
DFID,DFID,19/04/2011,House rentals,DFID Democratic Republic of Congo,ROBERT FRANCO,400154524,"10,173.90"
DFID,DFID,19/04/2011,House rentals,DFID Democratic Republic of Congo,Utexafrica Texaf,400154529,"10,780.20"
DFID,DFID,18/04/2011,House rentals,DFID Democratic Republic of Congo,TEXAF,400154522,"11,352.00"
DFID,DFID,18/04/2011,House rentals,DFID Democratic Republic of Congo,TEXAF,400154525,"11,352.00"
DFID,DFID,18/04/2011,House rentals,DFID Democratic Republic of Congo,TEXAF,400154527,"11,352.00"
DFID,DFID,18/04/2011,House rentals,DFID Democratic Republic of Congo,TEXAF,400154528,"11,352.00"
DFID,DFID,14/04/2011,House rentals,DFID Democratic Republic of Congo,TEXAF,400154506,"11,437.14"
DFID,DFID,20/04/2011,Technical and Advisory Services,DFID Democratic Republic of Congo,EFFECTIVE DEVELOPMENT GROUP (EDG),400155198,"220,187.62"
DFID,DFID,19/04/2011,Technical and Advisory Services,DFID Ethiopia,recipient withheld,400155021,"-4,620.00"
DFID,DFID,11/04/2011,Technical and Advisory Services,DFID Ethiopia,Dereje Feyissa Dori,400153112,"-1,052.50"
DFID,DFID,14/04/2011,Training - Course Fees,DFID Ethiopia,RIFT VALLEY INSTITUTE,400154473,"2,458.40"
DFID,DFID,14/04/2011,Training - Course Fees,DFID Ethiopia,RIFT VALLEY INSTITUTE,400154477,"2,458.80"
DFID,DFID,19/04/2011,Technical and Advisory Services,DFID Ethiopia,recipient withheld,400155021,"9,883.40"
DFID,DFID,11/04/2011,Technical and Advisory Services,DFID Ethiopia,Dereje Feyissa Dori,400153112,"16,230.00"
DFID,DFID,15/04/2011,Aid Programme - Programme Contribution,DFID Ghana,THE WORLD BANK (IBRD ACCOUNT),400154633,"61,370.00"
DFID,DFID,20/04/2011,Aid Programme - Accountable Grant Payments,DFID Indonesia,THE ASIA FOUNDATION,400155009,"17,898.48"
DFID,DFID,27/04/2011,Technical and Advisory Services,DFID Kenya,Leonard Matheka (Kenya USD),400155885,"4,239.62"
DFID,DFID,19/04/2011,Training - Course Fees,DFID Malawi,InSpirAll Greater Life Creation Ltd,400155018,"1,300.00"
DFID,DFID,13/04/2011,Training - Course Fees,DFID Malawi,ECORYS Netherlands B.V.,400153164,"10,596.55"
DFID,DFID,15/04/2011,Aid Programme - Accountable Grant Payments,DFID Malawi,Malawi Red Cross Society,400154576,"21,683.87"
DFID,DFID,05/04/2011,Aid Programme - Accountable Grant Payments,DFID Malawi, CARE INTERNATIONAL (MALAWI),400151326,"155,319.48"
DFID,DFID,14/04/2011,Aid Programme - Accountable Grant Payments,DFID Mozambique,Rensida,400153967,"35,700.00"
DFID,DFID,12/04/2011,Aid Programme - Accountable Grant Payments,DFID Mozambique,CIP (Centro de Integridade Publica),400153961,"46,312.50"
DFID,DFID,20/04/2011,Aid Programme - Accountable Grant Payments,DFID Nepal,THE GURKHA WELFARE SCHEME,400155175,"100,000.00"
DFID,DFID,20/04/2011,Aid Programme - Accountable Grant Payments,DFID Nepal,RURAL RECONSTRUCTION NEPAL,400155214,"453,106.00"
DFID,DFID,04/04/2011,Technical and Advisory Services,DFID Nigeria,CHEMONICS,400152851,"223,166.10"
DFID,DFID,13/04/2011,Technical and Advisory Services,DFID Nigeria,Society for Family  Health,400151300,"1,174,456.97"
DFID,DFID,27/04/2011,Technical and Advisory Services,DFID Pakistan,Economic Sector Reforms Unit (ESRU),400154520,"40,123.22"
DFID,DFID,01/04/2011,Aid Programme - Accountable Grant Payments,DFID Pakistan,Rural Support Programmes Network,400151269,"272,232.00"
DFID,DFID,13/04/2011,Aid Programme - Accountable Grant Payments,DFID Pakistan,  ISLAMIC RELIEF,400154208,"451,187.00"
DFID,DFID,13/04/2011,Aid Programme - Accountable Grant Payments,DFID Pakistan, Catholic Relief Services,400154174,"1,163,858.00"
DFID,DFID,27/04/2011,Aid Programme - Accountable Grant Payments,DFID Pakistan, ACTED,400155941,"1,230,445.00"
DFID,DFID,13/04/2011,Aid Programme - Accountable Grant Payments,DFID Pakistan, ACTED,400154194,"1,564,095.00"
DFID,DFID,08/04/2011,Technical and Advisory Services,DFID Sierra Leone and Liberia,David Crawford,400148456,"16,997.13"
DFID,DFID,06/04/2011,Technical and Advisory Services,DFID Sierra Leone and Liberia,Cowater International Inc.,400152553,"34,482.44"
DFID,DFID,01/04/2011,Technical and Advisory Services,DFID Somalia, John Whiteman,400152516,"17,380.86"
DFID,DFID,14/04/2011,Technical and Advisory Services,DFID Southern Africa,PHOEBE A. BWEMBYA,400154385,"4,207.83"
DFID,DFID,18/04/2011,Technical and Advisory Services,DFID Southern Africa,ONE WORLD,400150228,"40,000.00"
DFID,DFID,18/04/2011,Technical and Advisory Services,DFID Southern Africa,ONE WORLD,400150233,"41,856.00"
DFID,DFID,20/04/2011,Technical and Advisory Services,DFID Southern Africa,ONE WORLD,400150230,"55,036.00"
DFID,DFID,15/04/2011,Aid Programme - Accountable Grant Payments,DFID Southern Africa,NELSON MANDELA FOUNDATION,400154603,"58,045.67"
DFID,DFID,27/04/2011,Aid Programme - Accountable Grant Payments,DFID Southern Africa,recipient withheld,400155917,"147,699.00"
DFID,DFID,01/04/2011,Aid Programme - Accountable Grant Payments,DFID Southern Africa,Soul City,400152071,"4,800,000.00"
DFID,DFID,27/04/2011,Training - Course Fees,DFID Sudan,RIFT VALLEY INSTITUTE,400153770,"2,426.00"
DFID,DFID,26/04/2011,Training - Course Fees,DFID Sudan,RIFT VALLEY INSTITUTE,400153779,"2,435.60"
DFID,DFID,18/04/2011,Training - Course Fees,DFID Sudan,RIFT VALLEY INSTITUTE,400153781,"2,466.80"
DFID,DFID,21/04/2011,Aid Programme - Accountable Grant Payments,DFID Sudan,CONFLICT DYNAMICS INTERNATIONAL INC,400155379,"66,698.00"
DFID,DFID,14/04/2011,Technical and Advisory Services,DFID Sudan,BMB  MOTT  MACDONALD,400154449,"128,844.30"
DFID,DFID,20/04/2011,Technical and Advisory Services,DFID Sudan,BMB  MOTT  MACDONALD,400154507,"150,724.74"
DFID,DFID,21/04/2011,Aid Programme - Accountable Grant Payments,DFID Sudan, Assessment & Evaluation Commission,400155442,"214,271.00"
DFID,DFID,19/04/2011,Aid Programme - Core contributions,DFID Sudan,NETHERLANDS EMBASSY,400155069,"264,961.27"
DFID,DFID,14/04/2011,Technical and Advisory Services,DFID Sudan,BMB  MOTT  MACDONALD,400154442,"1,342,470.41"
DFID,DFID,20/04/2011,Consultancy Services,DFID Tanzania,recipient withheld,400154981,"4,782.96"
DFID,DFID,01/04/2011,Technical and Advisory Services,DFID Tanzania,  PRICEWATERHOUSECOOPERS,400151845,"48,389.44"
DFID,DFID,13/04/2011,Aid Programme - Accountable Grant Payments,DFID Tanzania,Tanzania Natural Resources Forum,400154364,"51,764.50"
DFID,DFID,21/04/2011,Aid Programme - Accountable Grant Payments,DFID Uganda, INTERNATIONAL ALERT,400155253,"61,009.02"
DFID,DFID,19/04/2011,Technical and Advisory Services,DFID Uganda,COWI A/S ,400151806,"98,409.00"
DFID,DFID,26/04/2011,Aid Programme - Accountable Grant Payments,DFID Uganda,REFUGEE LAW PROJECT,400155630,"148,495.00"
DFID,DFID,07/04/2011,Technical and Advisory Services,DFID Vietnam,PEM Consult,400151491,"23,330.00"
DFID,DFID,11/04/2011,Operating Lease rental of buildings,DFID Vietnam,CENTRAL BUILDING LTD,400153671,"44,021.22"
DFID,DFID,11/04/2011,Aid Programme - Accountable Grant Payments,DFID Vietnam,Transparency International Berlin,400153717,"60,004.42"
DFID,DFID,11/04/2011,Operating Lease rental of buildings,DFID Vietnam,CENTRAL BUILDING LTD,400153671,"102,716.18"
DFID,DFID,15/04/2011,Aid Programme - Joint programme contribution,DFID Yemen,KfW Development Bank,400154628,"750,000.00"
DFID,DFID,01/04/2011,Technical and Advisory Services,DFID Zambia,Scarsdale Solutions Inc.,400152427,"6,480.00"
DFID,DFID,21/04/2011,Technical and Advisory Services,DFID Zambia,Scarsdale Solutions Inc.,400155461,"6,480.00"
DFID,DFID,14/04/2011,Technical and Advisory Services,DFID Zambia,MS MARY JENNINGS,400154248,"11,455.60"
DFID,DFID,07/04/2011,Aid Programme - Accountable Grant Payments,DFID Zambia,Zambia Community Based Natural Resource Mgt,400153411,"22,000.00"
DFID,DFID,27/04/2011,Aid Programme - Voluntary contributions,Global Partnerships Department,   OECD,400155921,"100,000.00"
DFID,DFID,12/04/2011,Aid Programme - Trust Funds contributions,Governance and Social Development Group,United Nations General Trust Fund Account,400153738,"60,000.00"
DFID,DFID,21/04/2011,Technical and Advisory Services,Growth and Investment Group,Centre for Policy Research in India,400155294,"9,483.00"
DFID,DFID,11/04/2011,Aid Programme - Voluntary contributions,Growth and Investment Group,The World  Bank IBRD,400153710,"30,422.51"
DFID,DFID,05/04/2011,Aid Programme - Accountable Grant Payments,Growth and Investment Group,Transparency International Berlin,400153027,"245,000.00"
DFID,DFID,01/04/2011,Data Network - land lines,Information Systems Department,MTN Business Solutions,400152423,"-32,805.78"
DFID,DFID,27/04/2011,Data Network -Satellite Communication,Information Systems Department,VIZADA NETWORKS,400155295,"2,062.44"
DFID,DFID,27/04/2011,Data Network -Satellite Communication,Information Systems Department,VIZADA NETWORKS,400155297,"2,062.44"
DFID,DFID,26/04/2011,Data Network -Satellite Communication,Information Systems Department,VIZADA NETWORKS,400155717,"2,070.26"
DFID,DFID,28/04/2011,Data network- remote working,Information Systems Department,SKYVISION GLOBAL NETWORKS LLC,400155970,"4,465.27"
DFID,DFID,01/04/2011,Data Network - land lines,Information Systems Department,MTN Business Solutions,400152420,"106,541.38"
DFID,DFID,01/04/2011,Data Network - land lines,Information Systems Department,MTN Business Solutions,400152423,"109,123.70"
DFID,DFID,21/04/2011,Technical and Advisory Services,Overseas Territories Department, JOHN MURPHY,400155496,"5,836.97"
DFID,DFID,06/04/2011,Aid Programme - Accountable Grant Payments,Private Sector Department,FSD Kenya,400153031,"51,773.50"
DFID,DFID,13/04/2011,Technical and Advisory Services,Research and Evidence,LEHIGH UNIVERSITY,400153676,"11,625.36"
DFID,DFID,13/04/2011,Technical and Advisory Services,Research and Evidence,LEHIGH UNIVERSITY,400153620,"11,627.24"
DFID,DFID,19/04/2011,Technical and Advisory Services,Research and Evidence,ROYAL TROPICAL INSTITUTE,400154749,"12,955.21"
DFID,DFID,08/04/2011,Aid Programme - Voluntary contributions,Research and Evidence,UNESCO GBP Account,400152898,"19,147.00"
DFID,DFID,12/04/2011,Technical and Advisory Services,Research and Evidence,Technology and Action for Rural Advancement,400151466,"19,376.00"
DFID,DFID,11/04/2011,Technical and Advisory Services,Research and Evidence,Climate Focus North America Inc,400153100,"24,600.00"
DFID,DFID,26/04/2011,Technical and Advisory Services,Research and Evidence,PATH (USD ACCOUNT),400155654,"30,450.00"
DFID,DFID,01/04/2011,Research & Development costs,Research and Evidence,CMI MICHELSEN INSTITUTE,400152756,"32,191.00"
DFID,DFID,27/04/2011,Research & Development costs,Research and Evidence,SAFOD,400155280,"41,205.00"
DFID,DFID,21/04/2011,Research & Development costs,Research and Evidence,University of Cape Town,400153048,"51,246.33"
DFID,DFID,08/04/2011,Aid Programme - Core contributions,Research and Evidence,The Global Alliance for TB Drug Development,400153475,"500,000.00"
DFID,DFID,27/04/2011,Training - Course Fees,Stabilisation Unit,SAMI CONSULTING,400154957,"2,730.00"
DFID,DFID,28/04/2011,Aid Programme - Accountable Grant Payments,Trade Policy Unit,INTERNATIONAL INSTITUTE FOR SUSTAINABLE DEVELOPMENT ,400152935,"99,424.00"
DFID,DFID,19/04/2011,Aid Programme - Accountable Grant Payments,Trade Policy Unit,International Centre for Trade and Sustainable Development,400155010,"425,000.00"
DFID,DFID,08/04/2011,Training - Course Fees,DFID Nigeria,recipient withheld,400153630,721.5
DFID,DFID,07/04/2011,Training - Course Fees,DFID Nigeria,recipient withheld,400153340,756.55
DFID,DFID,12/04/2011,Training - Course Fees,DFID Nigeria,recipient withheld,400153991,976.49
DFID,DFID,08/04/2011,Training - Course Fees,DFID Nigeria,recipient withheld,400153634,"1,191.31"
DFID,DFID,19/04/2011,Air fares,Africa Regional Department,BCD Travel (USD),400154586,71.96
DFID,DFID,15/04/2011,Training - Course Fees,DFID India,Staff member,400154639,771.04
DFID,DFID,19/04/2011,Air fares,DFID Kenya,BCD Travel (USD),400154586,47.97
DFID,DFID,19/04/2011,Air fares,DFID Kenya,BCD Travel (USD),400154586,162.36
DFID,DFID,19/04/2011,Technical and Advisory Services,DFID Kenya,BCD Travel (USD),400154586,169.13
DFID,DFID,19/04/2011,Air fares,DFID Kenya,BCD Travel (USD),400154586,685.12
DFID,DFID,06/04/2011,Training - Course Fees,DFID Malawi,Staff member,400153223,714.33
DFID,DFID,13/04/2011,Travel - Subsistence,DFID Mozambique,Staff member,400153128,741.62
DFID,DFID,08/04/2011,Training - Travel & Subsistence,DFID Nepal,Staff member,400153529,518.25
DFID,DFID,26/04/2011,Aid Programme - Humanitarian Material Relief Assistance and Services,DFID Pakistan,Staff member,400155549,854.56
DFID,DFID,13/04/2011,Travel - Subsistence,DFID Sierra Leone and Liberia,Staff member,400154459,798.57
DFID,DFID,13/04/2011,Travel - Subsistence,DFID Tanzania,Staff member,400154280,278.65
DFID,DFID,13/04/2011,Air fares,DFID Tanzania,Staff member,400154280,"1,533.19"
DFID,DFID,20/04/2011,Training - Travel & Subsistence,DFID Zambia,Scarsdale Solutions Inc.,400154887,834.49
DFID,DFID,26/04/2011,Hotels - Accommodation only,Value for Money Department,Staff member,400152830,77.41
DFID,DFID,26/04/2011,Rail Transport,Value for Money Department,Staff member,400152830,120.91
DFID,DFID,26/04/2011,Air fares,Value for Money Department,Staff member,400152830,128.26
DFID,DFID,26/04/2011,Travel - Subsistence,Value for Money Department,Staff member,400152830,179.23
DFID,DFID,26/04/2011,Further Education costs,DFID Kenya,Summer Peacebuilding Institute,400155578,"1,986.25"
DFID,DFID,19/04/2011,Travel - Subsistence,Growth and Investment Group,Paul Stephenson,400154899,430.41
DFID,DFID,19/04/2011,Other travel costs,Growth and Investment Group,Paul Stephenson,400154899,896.11
DFID,DFID,14/04/2011,Rail Transport,Human Development Group,AMBER GOVE,400152829,3.22
DFID,DFID,14/04/2011,Travel - Subsistence,Human Development Group,AMBER GOVE,400152829,27.61
DFID,DFID,14/04/2011,Taxi costs,Human Development Group,AMBER GOVE,400152829,66.39
DFID,DFID,14/04/2011,Taxi costs,Human Development Group,AMBER GOVE,400152829,74.58
DFID,DFID,14/04/2011,Hotels - Accommodation only,Human Development Group,AMBER GOVE,400152829,173.79
DFID,DFID,14/04/2011,Air fares,Human Development Group,AMBER GOVE,400152829,601.01
DFID,DFID,12/04/2011,Gas,Abercrombie House (UK Office),CORONA ENERGY,400154235,894.74
DFID,DFID,12/04/2011,Gas,Abercrombie House (UK Office),CORONA ENERGY,400154229,"1,550.91"
DFID,DFID,12/04/2011,Electricity,Abercrombie House (UK Office),EDF ENERGY,400153149,"14,973.73"
DFID,DFID,11/04/2011,Mobile telephones & accessories,Africa Directorate,Celtel Kenya Ltd,400152123,22.95
DFID,DFID,19/04/2011,Mobile telephones & accessories,Africa Regional Department,Safaricom  Limited,400153797,16.41
DFID,DFID,19/04/2011,Mobile telephones & accessories,Africa Regional Department,Safaricom  Limited,400153797,19.59
DFID,DFID,11/04/2011,Mobile telephones & accessories,Africa Regional Department,Celtel Kenya Ltd,400152123,29.9
DFID,DFID,11/04/2011,Mobile telephones & accessories,Africa Regional Department,Celtel Kenya Ltd,400152123,32.56
DFID,DFID,11/04/2011,Mobile telephones & accessories,Africa Regional Department,Celtel Kenya Ltd,400152123,77.5
DFID,DFID,11/04/2011,Mobile telephones & accessories,Climate and Environment Group,Celtel Kenya Ltd,400152123,2.11
DFID,DFID,21/04/2011,House rentals,DFID Bangladesh,Dhaka Electric Supply Company Ltd,400155580,10.96
DFID,DFID,21/04/2011,House rentals,DFID Bangladesh,Dhaka Electric Supply Company Ltd,400155580,21.28
DFID,DFID,18/04/2011,House rentals,DFID Bangladesh,recipient withheld,400154794,125.68
DFID,DFID,18/04/2011,Property & Construction Services,DFID Bangladesh,recipient withheld,400154794,377.04
DFID,DFID,21/04/2011,Electricity,DFID Bangladesh,Dhaka Electric Supply Company Ltd,400155580,781.11
DFID,DFID,28/04/2011,Telephone Usage & services,DFID Democratic Republic of Congo,Vodacom,400156243,503.13
DFID,DFID,08/04/2011,Telephone Usage & services,DFID Democratic Republic of Congo,Vodacom,400153570,520.97
DFID,DFID,08/04/2011,Telephone Usage & services,DFID Democratic Republic of Congo,Vodacom,400153570,657.27
DFID,DFID,28/04/2011,Telephone Usage & services,DFID Democratic Republic of Congo,Vodacom,400156243,964.36
DFID,DFID,20/04/2011,Telephone Usage & services,DFID Ghana,Scancom Limited,400155330,336.35
DFID,DFID,20/04/2011,Telephone Usage & services,DFID Ghana,Scancom Limited,400155330,444.07
DFID,DFID,20/04/2011,Electricity,DFID Ghana,Electricity Company of Ghana,400155285,712.91
DFID,DFID,18/04/2011,Telephone Usage & services,DFID India,BHARTI AIRTEL LIMITED,400154735,701.29
DFID,DFID,21/04/2011,Electricity,DFID India,BSES RAJDHANI POWER LIMITED,400155554,"4,809.24"
DFID,DFID,19/04/2011,Mobile telephones & accessories,DFID Kenya,Safaricom  Limited,400153797,13.06
DFID,DFID,11/04/2011,Mobile telephones & accessories,DFID Kenya,Celtel Kenya Ltd,400152123,20.8
DFID,DFID,11/04/2011,Mobile telephones & accessories,DFID Kenya,Celtel Kenya Ltd,400152123,75.64
DFID,DFID,27/04/2011,Water charges,DFID Kenya,Kilimanjaro Beverage Company Ltd,400155948,114.73
DFID,DFID,19/04/2011,Mobile telephones & accessories,DFID Kenya,Safaricom  Limited,400153797,139.81
DFID,DFID,19/04/2011,Mobile telephones & accessories,DFID Kenya,Safaricom  Limited,400153797,154.13
DFID,DFID,19/04/2011,Mobile telephones & accessories,DFID Kenya,Safaricom  Limited,400153797,165.49
DFID,DFID,11/04/2011,Mobile telephones & accessories,DFID Kenya,Celtel Kenya Ltd,400152123,180.45
DFID,DFID,11/04/2011,Mobile telephones & accessories,DFID Kenya,Celtel Kenya Ltd,400152123,300.72
DFID,DFID,27/04/2011,Water charges,DFID Kenya,Kilimanjaro Beverage Company Ltd,400155948,458.91
DFID,DFID,21/04/2011,Telephone Usage & services,DFID Mozambique,Telecomunicacoes de Mocambique,400155637,"1,651.65"
DFID,DFID,19/04/2011,Oil - Other Utilities,DFID Nigeria,FCT Water Board,400155132,131.36
DFID,DFID,19/04/2011,Oil - Other Utilities,DFID Nigeria,FCT Water Board,400155132,262.72
DFID,DFID,06/04/2011,Oil - Other Utilities,DFID Nigeria,Power Holding co of Nigeria,400153327,345.57
DFID,DFID,06/04/2011,Oil - Other Utilities,DFID Nigeria,Power Holding co of Nigeria,400153327,422.36
DFID,DFID,19/04/2011,Facilities Management payments,DFID Nigeria,Abuja Environmental Protection Board,400155106,545.24
DFID,DFID,19/04/2011,Facilities Management payments,DFID Nigeria,Abuja Environmental Protection Board,400155106,666.4
DFID,DFID,26/04/2011,Aid Programme - Humanitarian Material Relief Assistance and Services,DFID Pakistan,PMCL,400155689,22.61
DFID,DFID,18/04/2011,Telephone Usage & services,DFID Pakistan,Telenor Pakistan ,400154827,31.22
DFID,DFID,26/04/2011,Technical and Advisory Services,DFID Pakistan,PMCL,400155689,56.98
DFID,DFID,18/04/2011,Electricity,DFID Pakistan,Islamabad Electric Supply Company (IESCO),400154825,115.39
DFID,DFID,26/04/2011,Telephone Usage & services,DFID Pakistan,PMCL,400155689,203.69
DFID,DFID,18/04/2011,Aid Programme - Humanitarian Material Relief Assistance and Services,DFID Pakistan,Telenor Pakistan ,400154827,522.36
DFID,DFID,18/04/2011,Electricity,DFID Pakistan,Islamabad Electric Supply Company (IESCO),400154825,919.16
DFID,DFID,26/04/2011,Telephone Usage & services,DFID Pakistan,PMCL,400155689,945.09
DFID,DFID,26/04/2011,Telephone Usage & services,DFID Rwanda,MTN RWANDACELL,400155265,226.87
DFID,DFID,26/04/2011,Telephone Usage & services,DFID Rwanda,MTN RWANDACELL,400155265,529.37
DFID,DFID,20/04/2011,Mobile telephones & accessories,DFID Sierra Leone and Liberia,Airtel (SL) Ltd,400155247,346.36
DFID,DFID,20/04/2011,Mobile telephones & accessories,DFID Sierra Leone and Liberia,Airtel (SL) Ltd,400155247,519.54
DFID,DFID,11/04/2011,Mobile telephones & accessories,DFID Somalia,Celtel Kenya Ltd,400152123,2.8
DFID,DFID,19/04/2011,Mobile telephones & accessories,DFID Somalia,Safaricom  Limited,400153797,14.65
DFID,DFID,11/04/2011,Mobile telephones & accessories,DFID Sudan,Celtel Kenya Ltd,400152123,8.2
DFID,DFID,14/04/2011,Other Admin Costs,DFID Uganda,Uganda Telecom,400153936,224.48
DFID,DFID,15/04/2011,Other Admin Costs,DFID Uganda,MTN Uganda Ltd,400153709,324.14
DFID,DFID,14/04/2011,Other Admin Costs,DFID Uganda,Uganda Telecom,400153936,435.75
DFID,DFID,15/04/2011,Other Admin Costs,DFID Uganda,MTN Uganda Ltd,400153709,629.9
DFID,DFID,11/04/2011,Mobile telephones & accessories,Growth and Investment Group,Celtel Kenya Ltd,400152123,21.71
DFID,DFID,19/04/2011,Mobile telephones & accessories,Growth and Investment Group,Safaricom  Limited,400153797,45.79
DFID,DFID,08/04/2011,Data Network - land lines,Information Systems Department,KUBE NETWORKS LTD,400153507,3.5
DFID,DFID,08/04/2011,Data Network - land lines,Information Systems Department,KUBE NETWORKS LTD,400153510,3.5
DFID,DFID,11/04/2011,Mobile telephones & accessories,Information Systems Department,Celtel Kenya Ltd,400152123,64.62
DFID,DFID,12/04/2011,Data Network - land lines,Information Systems Department,GLOBAL CROSSING (UK) TELECOMMS LTD,400154020,516
DFID,DFID,08/04/2011,Data Network - land lines,Information Systems Department,KUBE NETWORKS LTD,400153510,864.55
DFID,DFID,12/04/2011,Data Network - land lines,Information Systems Department,COLT TELECOMMUNICATIONS,400154240,"1,125.00"
DFID,DFID,08/04/2011,Data Network - land lines,Information Systems Department,KUBE NETWORKS LTD,400153507,"1,877.50"
DFID,DFID,14/04/2011,Gas,Palace Street (UK Office),CORONA ENERGY,400154230,"3,726.31"
DFID,DFID,20/04/2011,Air fares,East & Central Africa Directors Office,Hogg Robinson Group,6000045,"-3,246.67"
DFID,DFID,20/04/2011,Air fares,DFID Bangladesh,Hogg Robinson Group,6000045,498.72
DFID,DFID,20/04/2011,Air fares,MENAD Corporate & Regional,Hogg Robinson Group,6000045,468.45
DFID,DFID,20/04/2011,Air fares,MENAD Corporate & Regional,Hogg Robinson Group,6000045,776.33
DFID,DFID,20/04/2011,Air fares,MENAD Corporate & Regional,Hogg Robinson Group,6000045,859.73
DFID,DFID,20/04/2011,Air fares,Overseas Territories Department,Hogg Robinson Group,6000045,742.08
DFID,DFID,20/04/2011,Air fares,Overseas Territories Department,Hogg Robinson Group,6000045,165.43
DFID,DFID,20/04/2011,Air fares,Overseas Territories Department,Hogg Robinson Group,6000045,591.71
DFID,DFID,20/04/2011,Air fares,Overseas Territories Department,Hogg Robinson Group,6000045,616.38
DFID,DFID,20/04/2011,Air fares,MENAD Corporate & Regional,Hogg Robinson Group,6000045,"2,521.90"
DFID,DFID,20/04/2011,Air fares,Africa Regional Department,Hogg Robinson Group,6000045,912.63
DFID,DFID,20/04/2011,Air fares,Africa Regional Department,Hogg Robinson Group,6000045,120
DFID,DFID,20/04/2011,Air fares,Africa Regional Department,Hogg Robinson Group,6000045,789.38
DFID,DFID,20/04/2011,Air fares,Asia Directors Office,Hogg Robinson Group,6000045,729.23
DFID,DFID,20/04/2011,Air fares,Asia Directors Office,Hogg Robinson Group,6000045,146.8
DFID,DFID,20/04/2011,Air fares,DFID Afghanistan,Hogg Robinson Group,6000045,176.93
DFID,DFID,20/04/2011,Air fares,DFID Afghanistan,Hogg Robinson Group,6000045,810.48
DFID,DFID,20/04/2011,Air fares,DFID Afghanistan,Hogg Robinson Group,6000045,720.1
DFID,DFID,20/04/2011,Air fares,DFID Afghanistan,Hogg Robinson Group,6000045,"1,422.43"
DFID,DFID,20/04/2011,Air fares,DFID Afghanistan,Hogg Robinson Group,6000045,907.72
DFID,DFID,20/04/2011,Air fares,DFID Afghanistan,Hogg Robinson Group,6000045,"2,504.18"
DFID,DFID,20/04/2011,Air fares,European Union,Hogg Robinson Group,6000045,356.11
DFID,DFID,20/04/2011,Air fares,European Union,Hogg Robinson Group,6000045,-941.07
DFID,DFID,20/04/2011,Air fares,MENAD Corporate & Regional,Hogg Robinson Group,6000045,"2,012.78"
DFID,DFID,20/04/2011,Air fares,Overseas Territories Department,Hogg Robinson Group,6000045,-73.84
DFID,DFID,20/04/2011,Air fares,MENAD Corporate & Regional,Hogg Robinson Group,6000045,"-1,919.97"
DFID,DFID,20/04/2011,Air fares,Overseas Territories Department,Hogg Robinson Group,6000045,-73.84
DFID,DFID,20/04/2011,Air fares,Overseas Territories Department,Hogg Robinson Group,6000045,-73.84
DFID,DFID,20/04/2011,Air fares,IFI  Admin,Hogg Robinson Group,6000045,337.51
DFID,DFID,20/04/2011,Air fares,Trade Policy Unit,Hogg Robinson Group,6000045,61.5
DFID,DFID,20/04/2011,Air fares,Finance and Performance,Hogg Robinson Group,6000045,138.43
DFID,DFID,20/04/2011,Air fares,Finance and Performance,Hogg Robinson Group,6000045,287.28
DFID,DFID,20/04/2011,Air fares,Internal Audit Group,Hogg Robinson Group,6000045,949
DFID,DFID,20/04/2011,Air fares,Internal Audit Group,Hogg Robinson Group,6000045,36.44
DFID,DFID,20/04/2011,Air fares,Internal Audit Group,Hogg Robinson Group,6000045,53.3
DFID,DFID,20/04/2011,Air fares,Internal Audit Group,Hogg Robinson Group,6000045,218
DFID,DFID,20/04/2011,Air fares,Internal Audit Group,Hogg Robinson Group,6000045,218
DFID,DFID,20/04/2011,Air fares,Value for Money,Hogg Robinson Group,6000045,83.44
DFID,DFID,20/04/2011,Air fares,Value for Money,Hogg Robinson Group,6000045,69.98
DFID,DFID,20/04/2011,Air fares,Value for Money,Hogg Robinson Group,6000045,144.44
DFID,DFID,20/04/2011,Air fares,Finance and Performance,Hogg Robinson Group,6000045,130.03
DFID,DFID,20/04/2011,Air fares,Information Systems,Hogg Robinson Group,6000045,140.43
DFID,DFID,20/04/2011,Air fares,Information Systems,Hogg Robinson Group,6000045,60.44
DFID,DFID,20/04/2011,Air fares,Information Systems,Hogg Robinson Group,6000045,97.43
DFID,DFID,20/04/2011,Air fares,Value for Money,Hogg Robinson Group,6000045,174.51
DFID,DFID,20/04/2011,Air fares,Research and Evidence,Hogg Robinson Group,6000045,-698.2
DFID,DFID,20/04/2011,Air fares,Research and Evidence,Hogg Robinson Group,6000045,257.35
DFID,DFID,20/04/2011,Air fares,Research and Evidence,Hogg Robinson Group,6000045,82.54
DFID,DFID,20/04/2011,Air fares,Research and Evidence,Hogg Robinson Group,6000045,252.8
DFID,DFID,20/04/2011,Air fares,Research and Evidence,Hogg Robinson Group,6000045,"1,193.10"
DFID,DFID,20/04/2011,Air fares,Research and Evidence,Hogg Robinson Group,6000045,234.83
DFID,DFID,20/04/2011,Air fares,Research and Evidence,Hogg Robinson Group,6000045,44.74
DFID,DFID,20/04/2011,Air fares,Research and Evidence,Hogg Robinson Group,6000045,108.44
DFID,DFID,20/04/2011,Air fares,Research and Evidence,Hogg Robinson Group,6000045,124.44
DFID,DFID,20/04/2011,Air fares,Research and Evidence,Hogg Robinson Group,6000045,182.03
DFID,DFID,20/04/2011,Air fares,Research and Evidence,Hogg Robinson Group,6000045,564.07
DFID,DFID,20/04/2011,Air fares,Research and Evidence,Hogg Robinson Group,6000045,"1,351.29"
DFID,DFID,20/04/2011,Air fares,Research and Evidence,Hogg Robinson Group,6000045,333.31
DFID,DFID,20/04/2011,Air fares,Research and Evidence,Hogg Robinson Group,6000045,167.43
DFID,DFID,20/04/2011,Air fares,Research and Evidence,Hogg Robinson Group,6000045,45.74
DFID,DFID,20/04/2011,Air fares,Evaluation Dept,Hogg Robinson Group,6000045,344.15
DFID,DFID,20/04/2011,Air fares,Evaluation Dept,Hogg Robinson Group,6000045,-83.5
DFID,DFID,20/04/2011,Air fares,Evaluation Dept,Hogg Robinson Group,6000045,228.7
DFID,DFID,20/04/2011,Air fares,Evaluation Dept,Hogg Robinson Group,6000045,194.1
DFID,DFID,20/04/2011,Air fares,Evaluation Dept,Hogg Robinson Group,6000045,-117.24
DFID,DFID,20/04/2011,Air fares,Evaluation Dept,Hogg Robinson Group,6000045,175.43
DFID,DFID,20/04/2011,Air fares,Civil Society Team,Hogg Robinson Group,6000045,30.75
DFID,DFID,20/04/2011,Air fares,Civil Society Team,Hogg Robinson Group,6000045,35.7
DFID,DFID,20/04/2011,Air fares,Civil Society Team,Hogg Robinson Group,6000045,114.43
DFID,DFID,20/04/2011,Air fares,Civil Society Team,Hogg Robinson Group,6000045,83.44
DFID,DFID,20/04/2011,Air fares,Civil Society Team,Hogg Robinson Group,6000045,64.98
DFID,DFID,20/04/2011,Air fares,Knowledge and Information Team,Hogg Robinson Group,6000045,105.58
DFID,DFID,20/04/2011,Air fares,News Team,Hogg Robinson Group,6000045,900.4
DFID,DFID,20/04/2011,Air fares,Top Management Group,Hogg Robinson Group,6000045,"2,507.10"
DFID,DFID,20/04/2011,Air fares,Top Management Group,Hogg Robinson Group,6000045,"2,507.10"
DFID,DFID,20/04/2011,Air fares,Top Management Group,Hogg Robinson Group,6000045,"2,012.78"
DFID,DFID,20/04/2011,Air fares,Top Management Group,Hogg Robinson Group,6000045,"1,671.70"
DFID,DFID,20/04/2011,Air fares,Top Management Group,Hogg Robinson Group,6000045,224.83
DFID,DFID,20/04/2011,Air fares,Top Management Group,Hogg Robinson Group,6000045,259.83
DFID,DFID,20/04/2011,Air fares,Top Management Group,Hogg Robinson Group,6000045,113.83
DFID,DFID,20/04/2011,Air fares,Top Management Group,Hogg Robinson Group,6000045,"2,586.13"
DFID,DFID,20/04/2011,Air fares,Top Management Group,Hogg Robinson Group,6000045,"1,765.40"
DFID,DFID,20/04/2011,Air fares,Top Management Group,Hogg Robinson Group,6000045,113.83
DFID,DFID,20/04/2011,Air fares,Top Management Group,Hogg Robinson Group,6000045,272.98
DFID,DFID,20/04/2011,Air fares,Top Management Group,Hogg Robinson Group,6000045,"2,012.78"
DFID,DFID,20/04/2011,Air fares,Top Management Group,Hogg Robinson Group,6000045,"2,012.78"
DFID,DFID,20/04/2011,Air fares,Top Management Group,Hogg Robinson Group,6000045,"2,012.78"
DFID,DFID,20/04/2011,Air fares,Top Management Group,Hogg Robinson Group,6000045,"2,586.13"
DFID,DFID,20/04/2011,Air fares,Top Management Group,Hogg Robinson Group,6000045,-313.64
DFID,DFID,20/04/2011,Air fares,Top Management Group,Hogg Robinson Group,6000045,"2,521.90"
DFID,DFID,20/04/2011,Air fares,Top Management Group,Hogg Robinson Group,6000045,"2,521.90"
DFID,DFID,20/04/2011,Air fares,Top Management Group,Hogg Robinson Group,6000045,138.83
DFID,DFID,20/04/2011,Air fares,Top Management Group,Hogg Robinson Group,6000045,740.45
DFID,DFID,20/04/2011,Air fares,PRD Cabinet,Hogg Robinson Group,6000045,182.3
DFID,DFID,20/04/2011,Air fares,PRD Cabinet,Hogg Robinson Group,6000045,47.55
DFID,DFID,20/04/2011,Air fares,"Conflict, Humanitarian and Security",Hogg Robinson Group,6000045,146.97
DFID,DFID,20/04/2011,Air fares,"Conflict, Humanitarian and Security",Hogg Robinson Group,6000045,278.62
DFID,DFID,20/04/2011,Air fares,"Conflict, Humanitarian and Security",Hogg Robinson Group,6000045,274.28
DFID,DFID,20/04/2011,Air fares,Stabilisation Unit,Hogg Robinson Group,6000045,93
DFID,DFID,20/04/2011,Air fares,Stabilisation Unit,Hogg Robinson Group,6000045,362.47
DFID,DFID,20/04/2011,Air fares,Stabilisation Unit,Hogg Robinson Group,6000045,571.14
DFID,DFID,20/04/2011,Air fares,Stabilisation Unit,Hogg Robinson Group,6000045,100
DFID,DFID,20/04/2011,Air fares,Stabilisation Unit,Hogg Robinson Group,6000045,294.68
DFID,DFID,20/04/2011,Air fares,Stabilisation Unit,Hogg Robinson Group,6000045,407.47
DFID,DFID,20/04/2011,Air fares,Stabilisation Unit,Hogg Robinson Group,6000045,-303.37
DFID,DFID,20/04/2011,Air fares,Stabilisation Unit,Hogg Robinson Group,6000045,506.23
DFID,DFID,20/04/2011,Air fares,UN and Commonwealth Dept (UNCD),Hogg Robinson Group,6000045,-445.64
DFID,DFID,20/04/2011,Air fares,UN and Commonwealth Dept (UNCD),Hogg Robinson Group,6000045,-308.4
DFID,DFID,20/04/2011,Air fares,UN and Commonwealth Dept (UNCD),Hogg Robinson Group,6000045,275.3
DFID,DFID,20/04/2011,Air fares,UN and Commonwealth Dept (UNCD),Hogg Robinson Group,6000045,171.85
DFID,DFID,20/04/2011,Air fares,UN and Commonwealth Dept (UNCD),Hogg Robinson Group,6000045,308.4
DFID,DFID,20/04/2011,Air fares,UN and Commonwealth Dept (UNCD),Hogg Robinson Group,6000045,279.3
DFID,DFID,20/04/2011,Air fares,UN and Commonwealth Dept (UNCD),Hogg Robinson Group,6000045,113.77
DFID,DFID,20/04/2011,Air fares,UN and Commonwealth Dept (UNCD),Hogg Robinson Group,6000045,135.25
DFID,DFID,20/04/2011,Air fares,UN and Commonwealth Dept (UNCD),Hogg Robinson Group,6000045,"1,595.95"
DFID,DFID,20/04/2011,Air fares,UN and Commonwealth Dept (UNCD),Hogg Robinson Group,6000045,141.43
DFID,DFID,20/04/2011,Air fares,UN and Commonwealth Dept (UNCD),Hogg Robinson Group,6000045,90
DFID,DFID,20/04/2011,Air fares,UN and Commonwealth Dept (UNCD),Hogg Robinson Group,6000045,800.84
DFID,DFID,20/04/2011,Air fares,UN and Commonwealth Dept (UNCD),Hogg Robinson Group,6000045,89.85
DFID,DFID,20/04/2011,Air fares,UN and Commonwealth Dept (UNCD),Hogg Robinson Group,6000045,190.28
DFID,DFID,20/04/2011,Air fares,UN and Commonwealth Dept (UNCD),Hogg Robinson Group,6000045,409.3
DFID,DFID,20/04/2011,Air fares,UN and Commonwealth Dept (UNCD),Hogg Robinson Group,6000045,59.44
DFID,DFID,20/04/2011,Air fares,UN and Commonwealth Dept (UNCD),Hogg Robinson Group,6000045,520.2
DFID,DFID,20/04/2011,Air fares,UN and Commonwealth Dept (UNCD),Hogg Robinson Group,6000045,504
DFID,DFID,20/04/2011,Air fares,UN and Commonwealth Dept (UNCD),Hogg Robinson Group,6000045,207.43
DFID,DFID,20/04/2011,Air fares,UN and Commonwealth Dept (UNCD),Hogg Robinson Group,6000045,-929.95
DFID,DFID,20/04/2011,Air fares,Global Funds,Hogg Robinson Group,6000045,83.44
DFID,DFID,20/04/2011,Air fares,Africa Directorate,Hogg Robinson Group,6000045,89.85
DFID,DFID,20/04/2011,Air fares,Africa Directorate,Hogg Robinson Group,6000045,105.6
DFID,DFID,20/04/2011,Air fares,Africa Directorate,Hogg Robinson Group,6000045,507.2
DFID,DFID,20/04/2011,Air fares,Africa Directorate,Hogg Robinson Group,6000045,708.02
DFID,DFID,20/04/2011,Air fares,Africa Directorate,Hogg Robinson Group,6000045,182.8
DFID,DFID,20/04/2011,Air fares,HR Directors Office,Hogg Robinson Group,6000045,146.28
DFID,DFID,20/04/2011,Air fares,Employee Health and Wellbeing,Hogg Robinson Group,6000045,101.03
DFID,DFID,20/04/2011,Air fares,Employee Health and Wellbeing,Hogg Robinson Group,6000045,69.03
DFID,DFID,20/04/2011,Air fares,HR Advisory Group,Hogg Robinson Group,6000045,227.7
DFID,DFID,20/04/2011,Air fares,HR Advisory Group,Hogg Robinson Group,6000045,200.03
DFID,DFID,20/04/2011,Air fares,HR Advisory Group,Hogg Robinson Group,6000045,117.03
DFID,DFID,20/04/2011,Air fares,HR Advisory Group,Hogg Robinson Group,6000045,207.23
DFID,DFID,20/04/2011,Air fares,HR Advisory Group,Hogg Robinson Group,6000045,110.43
DFID,DFID,20/04/2011,Air fares,HR Advisory Group,Hogg Robinson Group,6000045,-91.07
DFID,DFID,20/04/2011,Air fares,HR Advisory Group,Hogg Robinson Group,6000045,93.25
DFID,DFID,20/04/2011,Air fares,HR Advisory Group,Hogg Robinson Group,6000045,178.43
DFID,DFID,20/04/2011,Air fares,HR Business Partners,Hogg Robinson Group,6000045,89.85
DFID,DFID,20/04/2011,Air fares,HR Operations,Hogg Robinson Group,6000045,97.83
DFID,DFID,20/04/2011,Air fares,HR DFID Initiatives,Hogg Robinson Group,6000045,107.3
DFID,DFID,20/04/2011,Air fares,Governance and Social Development,Hogg Robinson Group,6000045,159.03
DFID,DFID,20/04/2011,Air fares,Governance and Social Development,Hogg Robinson Group,6000045,319
DFID,DFID,20/04/2011,Air fares,Governance and Social Development,Hogg Robinson Group,6000045,"1,131.50"
DFID,DFID,20/04/2011,Air fares,Governance and Social Development,Hogg Robinson Group,6000045,"1,882.79"
DFID,DFID,20/04/2011,Air fares,Human Development,Hogg Robinson Group,6000045,303.3
DFID,DFID,20/04/2011,Air fares,Human Development,Hogg Robinson Group,6000045,"1,911.39"
DFID,DFID,20/04/2011,Air fares,Human Development,Hogg Robinson Group,6000045,454.7
DFID,DFID,20/04/2011,Air fares,Human Development,Hogg Robinson Group,6000045,121.43
DFID,DFID,20/04/2011,Air fares,Human Development,Hogg Robinson Group,6000045,764.75
DFID,DFID,20/04/2011,Air fares,Human Development,Hogg Robinson Group,6000045,206.75
DFID,DFID,20/04/2011,Air fares,Human Development,Hogg Robinson Group,6000045,206.75
DFID,DFID,20/04/2011,Air fares,Human Development,Hogg Robinson Group,6000045,-215.57
DFID,DFID,20/04/2011,Air fares,"Strategy, Estates Programme & Project Support",Hogg Robinson Group,6000045,117.43
DFID,DFID,20/04/2011,Air fares,"Strategy, Estates Programme & Project Support",Hogg Robinson Group,6000045,117.43
DFID,DFID,20/04/2011,Air fares,MENAD Yemen,Hogg Robinson Group,6000045,529.41
DFID,DFID,20/04/2011,Air fares,MENAD Yemen,Hogg Robinson Group,6000045,222
DFID,DFID,20/04/2011,Air fares,MENAD Yemen,Hogg Robinson Group,6000045,-220.3
DFID,DFID,20/04/2011,Air fares,Private Sector Department Admin,Hogg Robinson Group,6000045,546
DFID,DFID,20/04/2011,Air fares,Growth and Investment,Hogg Robinson Group,6000045,214.83
DFID,DFID,20/04/2011,Air fares,Growth and Investment,Hogg Robinson Group,6000045,250.28
DFID,DFID,20/04/2011,Air fares,Growth and Investment,Hogg Robinson Group,6000045,287.28
DFID,DFID,20/04/2011,Air fares,Growth and Investment,Hogg Robinson Group,6000045,119.43
DFID,DFID,20/04/2011,Air fares,Growth and Investment,Hogg Robinson Group,6000045,147.43
DFID,DFID,20/04/2011,Air fares,Growth and Investment,Hogg Robinson Group,6000045,224.83
DFID,DFID,20/04/2011,Air fares,Climate and Environment Group,Hogg Robinson Group,6000045,120
DFID,DFID,20/04/2011,Air fares,Climate and Environment Group,Hogg Robinson Group,6000045,144.96
DFID,DFID,20/04/2011,Air fares,DFID Ghana,Hogg Robinson Group,6000045,19
DFID,DFID,20/04/2011,Air fares,DFID Ghana,Hogg Robinson Group,6000045,90
DFID,DFID,20/04/2011,Air fares,DFID Ghana,Hogg Robinson Group,6000045,582.23
DFID,DFID,20/04/2011,Air fares,DFID Ghana,Hogg Robinson Group,6000045,582.23
DFID,DFID,20/04/2011,Air fares,DFID Ghana,Hogg Robinson Group,6000045,664.23
DFID,DFID,20/04/2011,Air fares,DFID Ghana,Hogg Robinson Group,6000045,582.23
DFID,DFID,20/04/2011,Air fares,DFID Malawi,Hogg Robinson Group,6000045,794.03
DFID,DFID,20/04/2011,Air fares,DFID Malawi,Hogg Robinson Group,6000045,643.03
DFID,DFID,20/04/2011,Air fares,DFID Malawi,Hogg Robinson Group,6000045,104.15
DFID,DFID,20/04/2011,Air fares,DFID Mozambique,Hogg Robinson Group,6000045,"1,039.83"
DFID,DFID,20/04/2011,Air fares,DFID Nigeria,Hogg Robinson Group,6000045,"1,075.30"
DFID,DFID,20/04/2011,Air fares,DFID Nigeria,Hogg Robinson Group,6000045,-545.87
DFID,DFID,20/04/2011,Air fares,DFID Nigeria,Hogg Robinson Group,6000045,787.42
DFID,DFID,20/04/2011,Air fares,DFID Nigeria,Hogg Robinson Group,6000045,-101.84
DFID,DFID,20/04/2011,Air fares,DFID Nigeria,Hogg Robinson Group,6000045,"1,075.30"
DFID,DFID,20/04/2011,Air fares,DFID Nigeria,Hogg Robinson Group,6000045,175
DFID,DFID,20/04/2011,Air fares,DFID Nigeria,Hogg Robinson Group,6000045,"1,075.30"
DFID,DFID,20/04/2011,Air fares,,Hogg Robinson Group,6000045,116.03
DFID,DFID,20/04/2011,Air fares,Procurement Department,Hogg Robinson Group,6000045,"1,007.14"
DFID,DFID,20/04/2011,Air fares,Procurement Department,Hogg Robinson Group,6000045,-821.9
DFID,DFID,20/04/2011,Air fares,DFID Zimbabwe,Hogg Robinson Group,6000045,371.11
DFID,DFID,20/04/2011,Air fares,Africa Regional Department,Hogg Robinson Group,6000045,95.03
DFID,DFID,20/04/2011,Air fares,Africa Regional Department,Hogg Robinson Group,6000045,88.71
DFID,DFID,20/04/2011,Air fares,Africa Regional Department,Hogg Robinson Group,6000045,117.3
DFID,DFID,20/04/2011,Air fares,DFID Uganda,Hogg Robinson Group,6000045,566.5
DFID,DFID,20/04/2011,Air fares,DFID Afghanistan,Hogg Robinson Group,6000045,104.15
DFID,DFID,20/04/2011,Air fares,DFID Afghanistan,Hogg Robinson Group,6000045,"1,198.80"
DFID,DFID,20/04/2011,Air fares,DFID Afghanistan,Hogg Robinson Group,6000045,81.9
DFID,DFID,20/04/2011,Air fares,DFID Afghanistan,Hogg Robinson Group,6000045,"1,042.72"
DFID,DFID,20/04/2011,Air fares,DFID Afghanistan,Hogg Robinson Group,6000045,"1,435.72"
DFID,DFID,20/04/2011,Air fares,DFID Southern Africa,Hogg Robinson Group,6000045,885.2
DFID,DFID,20/04/2011,Air fares,DFID Pakistan,Hogg Robinson Group,6000045,-318.47
DFID,DFID,20/04/2011,Air fares,DFID Pakistan,Hogg Robinson Group,6000045,472.79
DFID,DFID,20/04/2011,Air fares,DFID Pakistan,Hogg Robinson Group,6000045,818.12
DFID,DFID,20/04/2011,Air fares,DFID Pakistan,Hogg Robinson Group,6000045,"1,614.98"
DFID,DFID,20/04/2011,Air fares,DFID Pakistan,Hogg Robinson Group,6000045,552.79
DFID,DFID,20/04/2011,Air fares,DFID Pakistan,Hogg Robinson Group,6000045,124.44
DFID,DFID,20/04/2011,Air fares,DFID Pakistan,Hogg Robinson Group,6000045,352.79
DFID,DFID,20/04/2011,Air fares,DFID Pakistan,Hogg Robinson Group,6000045,"2,674.18"
DFID,DFID,20/04/2011,Air fares,DFID Pakistan,Hogg Robinson Group,6000045,663.35
DFID,DFID,20/04/2011,Air fares,DFID Pakistan,Hogg Robinson Group,6000045,55.44
DFID,DFID,20/04/2011,Air fares,DFID Pakistan,Hogg Robinson Group,6000045,155.98
DFID,DFID,20/04/2011,Air fares,DFID Pakistan,Hogg Robinson Group,6000045,552.79
DFID,DFID,20/04/2011,Air fares,DFID Pakistan,Hogg Robinson Group,6000045,685.6
DFID,DFID,20/04/2011,Air fares,DFID Pakistan,Hogg Robinson Group,6000045,493.86
DFID,DFID,20/04/2011,Air fares,Stabilisation Unit,Hogg Robinson Group,6000045,"1,662.03"
DFID,DFID,20/04/2011,Air fares,Stabilisation Unit,Hogg Robinson Group,6000045,245.6
DFID,DFID,20/04/2011,Air fares,Stabilisation Unit,Hogg Robinson Group,6000045,"1,086.33"
DFID,DFID,20/04/2011,Air fares,Stabilisation Unit,Hogg Robinson Group,6000045,"1,662.03"
DFID,DFID,20/04/2011,Air fares,Stabilisation Unit,Hogg Robinson Group,6000045,"1,662.03"
DFID,DFID,20/04/2011,Air fares,Stabilisation Unit,Hogg Robinson Group,6000045,421.8
DFID,DFID,20/04/2011,Air fares,Stabilisation Unit,Hogg Robinson Group,6000045,136.3
DFID,DFID,20/04/2011,Air fares,Stabilisation Unit,Hogg Robinson Group,6000045,421.8
DFID,DFID,20/04/2011,Air fares,Stabilisation Unit,Hogg Robinson Group,6000045,419.13
DFID,DFID,20/04/2011,Air fares,Information Systems,Hogg Robinson Group,6000045,48.74
DFID,DFID,20/04/2011,Air fares,Information Systems,Hogg Robinson Group,6000045,78.85
DFID,DFID,20/04/2011,Air fares,Knowledge and Information Team,Hogg Robinson Group,6000045,195.62
DFID,DFID,20/04/2011,Air fares,DFID Bangladesh,Hogg Robinson Group,6000045,878.59
DFID,DFID,20/04/2011,Air fares,DFID Indonesia,Hogg Robinson Group,6000045,"2,378.26"
DFID,DFID,20/04/2011,Air fares,DFID China,Hogg Robinson Group,6000045,"1,746.63"
DFID,DFID,20/04/2011,Air fares,MENAD Iraq,Hogg Robinson Group,6000045,344.56
DFID,DFID,20/04/2011,Air fares,MENAD Iraq,Hogg Robinson Group,6000045,349.86
DFID,DFID,20/04/2011,Air fares,MENAD Iraq,Hogg Robinson Group,6000045,699.13
DFID,DFID,20/04/2011,Air fares,MENAD Iraq,Hogg Robinson Group,6000045,342.96
DFID,DFID,20/04/2011,Air fares,MENAD Iraq,Hogg Robinson Group,6000045,"1,096.50"
DFID,DFID,20/04/2011,Air fares,MENAD Iraq,Hogg Robinson Group,6000045,436.7
DFID,DFID,20/04/2011,Air fares,MENAD Iraq,Hogg Robinson Group,6000045,156.5
DFID,DFID,20/04/2011,Air fares,MENAD Iraq,Hogg Robinson Group,6000045,313.5
DFID,DFID,20/04/2011,Air fares,DFID Kyrgyz Republic,Hogg Robinson Group,6000045,215.54
DFID,DFID,20/04/2011,Air fares,DFID Kyrgyz Republic,Hogg Robinson Group,6000045,668.24
DFID,DFID,20/04/2011,Air fares,DFID Kyrgyz Republic,Hogg Robinson Group,6000045,668.24
DFID,DFID,20/04/2011,Air fares,MENAD Yemen,Hogg Robinson Group,6000045,886.44
DFID,DFID,20/04/2011,Air fares,DFID Ghana,Hogg Robinson Group,6000045,486.41
DFID,DFID,20/04/2011,Air fares,DFID Ghana,Hogg Robinson Group,6000045,527.19
DFID,DFID,20/04/2011,Air fares,DFID Ghana,Hogg Robinson Group,6000045,527.19
DFID,DFID,20/04/2011,Air fares,DFID Ghana,Hogg Robinson Group,6000045,486.41
DFID,DFID,20/04/2011,Air fares,DFID Afghanistan,Hogg Robinson Group,6000045,327.96
DFID,DFID,20/04/2011,Air fares,DFID Afghanistan,Hogg Robinson Group,6000045,"2,724.72"
DFID,DFID,20/04/2011,Air fares,DFID Nepal,Hogg Robinson Group,6000045,100
DFID,DFID,20/04/2011,Air fares,Human Development,Hogg Robinson Group,6000045,344.7
DFID,DFID,20/04/2011,Air fares,Climate and Environment Group,Hogg Robinson Group,6000045,"1,269.80"
DFID,DFID,20/04/2011,Air fares,Africa Directorate,Hogg Robinson Group,6000045,"2,381.90"
DFID,DFID,20/04/2011,Air fares,Africa Directorate,Hogg Robinson Group,6000045,"2,422.10"
DFID,DFID,20/04/2011,Air fares,Africa Directorate,Hogg Robinson Group,6000045,653.6
DFID,DFID,20/04/2011,Air fares,HR Operations,Hogg Robinson Group,6000045,30.75
DFID,DFID,20/04/2011,Air fares,DFID Nigeria,Hogg Robinson Group,6000045,-148.66
DFID,DFID,20/04/2011,Air fares,DFID Nigeria,Hogg Robinson Group,6000045,595.19
DFID,DFID,20/04/2011,Air fares,European Union,Hogg Robinson Group,6000045,148.2
DFID,DFID,20/04/2011,Air fares,European Union,Hogg Robinson Group,6000045,89.3
DFID,DFID,20/04/2011,Air fares,Stabilisation Unit,Hogg Robinson Group,6000045,-592.2
DFID,DFID,20/04/2011,Air fares,Stabilisation Unit,Hogg Robinson Group,6000045,-649.51
DFID,DFID,20/04/2011,Air fares,Stabilisation Unit,Hogg Robinson Group,6000045,"2,498.89"
DFID,DFID,20/04/2011,Air fares,Stabilisation Unit,Hogg Robinson Group,6000045,"2,498.89"
DFID,DFID,20/04/2011,Air fares,"Conflict, Humanitarian and Security",Hogg Robinson Group,6000045,60
DFID,DFID,20/04/2011,Air fares,"Conflict, Humanitarian and Security",Hogg Robinson Group,6000045,65
DFID,DFID,20/04/2011,Air fares,"Conflict, Humanitarian and Security",Hogg Robinson Group,6000045,219.68
DFID,DFID,20/04/2011,Hotels - Accommodation only,DFID Sudan,Hogg Robinson Group,6000045,271.31
DFID,DFID,20/04/2011,Hotels - Accommodation only,DFID Pakistan,Hogg Robinson Group,6000045,475.99
DFID,DFID,20/04/2011,Hotels - Accommodation only,MENAD Corporate & Regional,Hogg Robinson Group,6000045,173.07
DFID,DFID,20/04/2011,Hotels - Accommodation only,Overseas Territories Department,Hogg Robinson Group,6000045,221.17
DFID,DFID,20/04/2011,Hotels - Accommodation only,Overseas Territories Department,Hogg Robinson Group,6000045,158.74
DFID,DFID,20/04/2011,Hotels - Accommodation only,Overseas Territories Department,Hogg Robinson Group,6000045,426.88
DFID,DFID,20/04/2011,Hotels - Accommodation only,Overseas Territories Department,Hogg Robinson Group,6000045,115.41
DFID,DFID,20/04/2011,Hotels - Accommodation only,Overseas Territories Department,Hogg Robinson Group,6000045,121.91
DFID,DFID,20/04/2011,Hotels - Accommodation only,Africa Regional Department,Hogg Robinson Group,6000045,234.47
DFID,DFID,20/04/2011,Hotels - Accommodation only,DFID Uganda,Hogg Robinson Group,6000045,267.23
DFID,DFID,20/04/2011,Hotels - Accommodation only,DFID Nigeria,Hogg Robinson Group,6000045,302.02
DFID,DFID,20/04/2011,Hotels - Accommodation only,International Directors Office,Hogg Robinson Group,6000045,302.02
DFID,DFID,20/04/2011,Hotels - Accommodation only,International Directors Office,Hogg Robinson Group,6000045,117.81
DFID,DFID,20/04/2011,Hotels - Accommodation only,International Directors Office,Hogg Robinson Group,6000045,158.74
DFID,DFID,20/04/2011,Hotels - Accommodation only,International Directors Office,Hogg Robinson Group,6000045,429.95
DFID,DFID,20/04/2011,Hotels - Accommodation only,International Directors Office,Hogg Robinson Group,6000045,224.24
DFID,DFID,20/04/2011,Hotels - Accommodation only,International Directors Office,Hogg Robinson Group,6000045,293.02
DFID,DFID,20/04/2011,Hotels - Accommodation only,Trade Policy Unit,Hogg Robinson Group,6000045,74
DFID,DFID,20/04/2011,Hotels - Accommodation only,Internal Audit Group,Hogg Robinson Group,6000045,143.4
DFID,DFID,20/04/2011,Hotels - Accommodation only,Internal Audit Group,Hogg Robinson Group,6000045,143.4
DFID,DFID,20/04/2011,Hotels - Accommodation only,Internal Audit Group,Hogg Robinson Group,6000045,143.4
DFID,DFID,20/04/2011,Hotels - Accommodation only,Internal Audit Group,Hogg Robinson Group,6000045,143.4
DFID,DFID,20/04/2011,Hotels - Accommodation only,Internal Audit Group,Hogg Robinson Group,6000045,143.4
DFID,DFID,20/04/2011,Hotels - Accommodation only,Internal Audit Group,Hogg Robinson Group,6000045,150.55
DFID,DFID,20/04/2011,Hotels - Accommodation only,Internal Audit Group,Hogg Robinson Group,6000045,113.71
DFID,DFID,20/04/2011,Hotels - Accommodation only,Internal Audit Group,Hogg Robinson Group,6000045,63.36
DFID,DFID,20/04/2011,Hotels - Accommodation only,Internal Audit Group,Hogg Robinson Group,6000045,132.52
DFID,DFID,20/04/2011,Hotels - Accommodation only,Internal Audit Group,Hogg Robinson Group,6000045,132.52
DFID,DFID,20/04/2011,Hotels - Accommodation only,Internal Audit Group,Hogg Robinson Group,6000045,514.36
DFID,DFID,20/04/2011,Hotels - Accommodation only,Internal Audit Group,Hogg Robinson Group,6000045,143.4
DFID,DFID,20/04/2011,Hotels - Accommodation only,Finance and Performance,Hogg Robinson Group,6000045,143.4
DFID,DFID,20/04/2011,Hotels - Accommodation only,Finance and Performance,Hogg Robinson Group,6000045,143.4
DFID,DFID,20/04/2011,Hotels - Accommodation only,Information Systems,Hogg Robinson Group,6000045,113.71
DFID,DFID,20/04/2011,Hotels - Accommodation only,Information Systems,Hogg Robinson Group,6000045,74
DFID,DFID,20/04/2011,Hotels - Accommodation only,Information Systems,Hogg Robinson Group,6000045,302.02
DFID,DFID,20/04/2011,Hotels - Accommodation only,Information Systems,Hogg Robinson Group,6000045,"1,032.72"
DFID,DFID,20/04/2011,Hotels - Accommodation only,Information Systems,Hogg Robinson Group,6000045,"1,032.72"
DFID,DFID,20/04/2011,Hotels - Accommodation only,Information Systems,Hogg Robinson Group,6000045,132.52
DFID,DFID,20/04/2011,Hotels - Accommodation only,Information Systems,Hogg Robinson Group,6000045,168.97
DFID,DFID,20/04/2011,Hotels - Accommodation only,Information Systems,Hogg Robinson Group,6000045,182.34
DFID,DFID,20/04/2011,Hotels - Accommodation only,Information Systems,Hogg Robinson Group,6000045,144.42
DFID,DFID,20/04/2011,Hotels - Accommodation only,Information Systems,Hogg Robinson Group,6000045,347.05
DFID,DFID,20/04/2011,Hotels - Accommodation only,Information Systems,Hogg Robinson Group,6000045,169.05
DFID,DFID,20/04/2011,Hotels - Accommodation only,Information Systems,Hogg Robinson Group,6000045,306.12
DFID,DFID,20/04/2011,Hotels - Accommodation only,Information Systems,Hogg Robinson Group,6000045,181.26
DFID,DFID,20/04/2011,Hotels - Accommodation only,Information Systems,Hogg Robinson Group,6000045,152.6
DFID,DFID,20/04/2011,Hotels - Accommodation only,Information Systems,Hogg Robinson Group,6000045,84.04
DFID,DFID,20/04/2011,Hotels - Accommodation only,Information Systems,Hogg Robinson Group,6000045,"1,032.72"
DFID,DFID,20/04/2011,Hotels - Accommodation only,Value for Money,Hogg Robinson Group,6000045,307.14
DFID,DFID,20/04/2011,Hotels - Accommodation only,Value for Money,Hogg Robinson Group,6000045,293.02
DFID,DFID,20/04/2011,Hotels - Accommodation only,Office Services Department,Hogg Robinson Group,6000045,94.27
DFID,DFID,20/04/2011,Hotels - Accommodation only,Research and Evidence,Hogg Robinson Group,6000045,150.55
DFID,DFID,20/04/2011,Hotels - Accommodation only,Research and Evidence,Hogg Robinson Group,6000045,431.78
DFID,DFID,20/04/2011,Hotels - Accommodation only,Research and Evidence,Hogg Robinson Group,6000045,158.74
DFID,DFID,20/04/2011,Hotels - Accommodation only,Research and Evidence,Hogg Robinson Group,6000045,143.4
DFID,DFID,20/04/2011,Hotels - Accommodation only,Research and Evidence,Hogg Robinson Group,6000045,84.04
DFID,DFID,20/04/2011,Hotels - Accommodation only,Research and Evidence,Hogg Robinson Group,6000045,74
DFID,DFID,20/04/2011,Hotels - Accommodation only,Research and Evidence,Hogg Robinson Group,6000045,74
DFID,DFID,20/04/2011,Hotels - Accommodation only,Research and Evidence,Hogg Robinson Group,6000045,429.95
DFID,DFID,20/04/2011,Hotels - Accommodation only,Research and Evidence,Hogg Robinson Group,6000045,271.31
DFID,DFID,20/04/2011,Hotels - Accommodation only,Research and Evidence,Hogg Robinson Group,6000045,143.4
DFID,DFID,20/04/2011,Hotels - Accommodation only,Research and Evidence,Hogg Robinson Group,6000045,429.95
DFID,DFID,20/04/2011,Hotels - Accommodation only,Evaluation Dept,Hogg Robinson Group,6000045,113.71
DFID,DFID,20/04/2011,Hotels - Accommodation only,Evaluation Dept,Hogg Robinson Group,6000045,271.31
DFID,DFID,20/04/2011,Hotels - Accommodation only,Civil Society Team,Hogg Robinson Group,6000045,158.74
DFID,DFID,20/04/2011,Hotels - Accommodation only,Civil Society Team,Hogg Robinson Group,6000045,84.04
DFID,DFID,20/04/2011,Hotels - Accommodation only,Knowledge and Information Team,Hogg Robinson Group,6000045,158.74
DFID,DFID,20/04/2011,Hotels - Accommodation only,Knowledge and Information Team,Hogg Robinson Group,6000045,89.15
DFID,DFID,20/04/2011,Hotels - Accommodation only,Knowledge and Information Team,Hogg Robinson Group,6000045,119.44
DFID,DFID,20/04/2011,Hotels - Accommodation only,Knowledge and Information Team,Hogg Robinson Group,6000045,-89.15
DFID,DFID,20/04/2011,Hotels - Accommodation only,Knowledge and Information Team,Hogg Robinson Group,6000045,97.33
DFID,DFID,20/04/2011,Hotels - Accommodation only,Strategic Communications Team,Hogg Robinson Group,6000045,152.6
DFID,DFID,20/04/2011,Hotels - Accommodation only,PRD Cabinet,Hogg Robinson Group,6000045,154.24
DFID,DFID,20/04/2011,Hotels - Accommodation only,Stabilisation Unit,Hogg Robinson Group,6000045,143.18
DFID,DFID,20/04/2011,Hotels - Accommodation only,Stabilisation Unit,Hogg Robinson Group,6000045,143.18
DFID,DFID,20/04/2011,Hotels - Accommodation only,Stabilisation Unit,Hogg Robinson Group,6000045,179.21
DFID,DFID,20/04/2011,Hotels - Accommodation only,UN and Commonwealth Dept (UNCD),Hogg Robinson Group,6000045,164.89
DFID,DFID,20/04/2011,Hotels - Accommodation only,Global Funds,Hogg Robinson Group,6000045,429.95
DFID,DFID,20/04/2011,Hotels - Accommodation only,Global Funds,Hogg Robinson Group,6000045,271.31
DFID,DFID,20/04/2011,Hotels - Accommodation only,Global Funds,Hogg Robinson Group,6000045,286.67
DFID,DFID,20/04/2011,Hotels - Accommodation only,UN and Commonwealth Dept (UNCD),Hogg Robinson Group,6000045,148.1
DFID,DFID,20/04/2011,Hotels - Accommodation only,HR Directors Office,Hogg Robinson Group,6000045,98.36
DFID,DFID,20/04/2011,Hotels - Accommodation only,HR Directors Office,Hogg Robinson Group,6000045,98.36
DFID,DFID,20/04/2011,Hotels - Accommodation only,HR Directors Office,Hogg Robinson Group,6000045,353.18
DFID,DFID,20/04/2011,Hotels - Accommodation only,Employee Health and Wellbeing,Hogg Robinson Group,6000045,94.27
DFID,DFID,20/04/2011,Hotels - Accommodation only,Employee Health and Wellbeing,Hogg Robinson Group,6000045,94.27
DFID,DFID,20/04/2011,Hotels - Accommodation only,Employee Health and Wellbeing,Hogg Robinson Group,6000045,94.27
DFID,DFID,20/04/2011,Hotels - Accommodation only,Employee Health and Wellbeing,Hogg Robinson Group,6000045,557.86
DFID,DFID,20/04/2011,Hotels - Accommodation only,Employee Health and Wellbeing,Hogg Robinson Group,6000045,154.24
DFID,DFID,20/04/2011,Hotels - Accommodation only,Employee Health and Wellbeing,Hogg Robinson Group,6000045,300.62
DFID,DFID,20/04/2011,Hotels - Accommodation only,HR Advisory Group,Hogg Robinson Group,6000045,116.78
DFID,DFID,20/04/2011,Hotels - Accommodation only,HR Advisory Group,Hogg Robinson Group,6000045,143.4
DFID,DFID,20/04/2011,Hotels - Accommodation only,HR Advisory Group,Hogg Robinson Group,6000045,124.98
DFID,DFID,20/04/2011,Hotels - Accommodation only,HR Advisory Group,Hogg Robinson Group,6000045,286.67
DFID,DFID,20/04/2011,Hotels - Accommodation only,HR Advisory Group,Hogg Robinson Group,6000045,128.04
DFID,DFID,20/04/2011,Hotels - Accommodation only,HR Advisory Group,Hogg Robinson Group,6000045,143.4
DFID,DFID,20/04/2011,Hotels - Accommodation only,HR Advisory Group,Hogg Robinson Group,6000045,143.4
DFID,DFID,20/04/2011,Hotels - Accommodation only,HR Advisory Group,Hogg Robinson Group,6000045,143.4
DFID,DFID,20/04/2011,Hotels - Accommodation only,HR Advisory Group,Hogg Robinson Group,6000045,113.71
DFID,DFID,20/04/2011,Hotels - Accommodation only,HR Advisory Group,Hogg Robinson Group,6000045,285.65
DFID,DFID,20/04/2011,Hotels - Accommodation only,HR Advisory Group,Hogg Robinson Group,6000045,88.12
DFID,DFID,20/04/2011,Hotels - Accommodation only,HR Business Partners,Hogg Robinson Group,6000045,264.16
DFID,DFID,20/04/2011,Hotels - Accommodation only,HR Business Partners,Hogg Robinson Group,6000045,261.08
DFID,DFID,20/04/2011,Hotels - Accommodation only,HR Business Partners,Hogg Robinson Group,6000045,97.34
DFID,DFID,20/04/2011,Hotels - Accommodation only,HR Business Partners,Hogg Robinson Group,6000045,97.34
DFID,DFID,20/04/2011,Hotels - Accommodation only,HR Business Partners,Hogg Robinson Group,6000045,261.08
DFID,DFID,20/04/2011,Hotels - Accommodation only,HR Business Partners,Hogg Robinson Group,6000045,128.04
DFID,DFID,20/04/2011,Hotels - Accommodation only,HR DFID Initiatives,Hogg Robinson Group,6000045,286.67
DFID,DFID,20/04/2011,Hotels - Accommodation only,Governance and Social Development,Hogg Robinson Group,6000045,293.02
DFID,DFID,20/04/2011,Hotels - Accommodation only,"Strategy, Estates Programme & Project Support",Hogg Robinson Group,6000045,152.6
DFID,DFID,20/04/2011,Hotels - Accommodation only,MENAD Yemen,Hogg Robinson Group,6000045,"2,004.96"
DFID,DFID,20/04/2011,Hotels - Accommodation only,MENAD Yemen,Hogg Robinson Group,6000045,"1,538.29"
DFID,DFID,20/04/2011,Hotels - Accommodation only,MENAD Yemen,Hogg Robinson Group,6000045,"5,652.36"
DFID,DFID,20/04/2011,Hotels - Accommodation only,Corporate Hub,Hogg Robinson Group,6000045,286.67
DFID,DFID,20/04/2011,Hotels - Accommodation only,Growth and Investment,Hogg Robinson Group,6000045,96.32
DFID,DFID,20/04/2011,Hotels - Accommodation only,Growth and Investment,Hogg Robinson Group,6000045,193.33
DFID,DFID,20/04/2011,Hotels - Accommodation only,Growth and Investment,Hogg Robinson Group,6000045,143.4
DFID,DFID,20/04/2011,Hotels - Accommodation only,Growth and Investment,Hogg Robinson Group,6000045,267.23
DFID,DFID,20/04/2011,Hotels - Accommodation only,Growth and Investment,Hogg Robinson Group,6000045,158.74
DFID,DFID,20/04/2011,Hotels - Accommodation only,Growth and Investment,Hogg Robinson Group,6000045,495.45
DFID,DFID,20/04/2011,Hotels - Accommodation only,Growth and Investment,Hogg Robinson Group,6000045,96.32
DFID,DFID,20/04/2011,Hotels - Accommodation only,DFID Ghana,Hogg Robinson Group,6000045,150.55
DFID,DFID,20/04/2011,Hotels - Accommodation only,Procurement Department,Hogg Robinson Group,6000045,158.74
DFID,DFID,20/04/2011,Hotels - Accommodation only,Procurement Department,Hogg Robinson Group,6000045,170.21
DFID,DFID,20/04/2011,Hotels - Accommodation only,Procurement Department,Hogg Robinson Group,6000045,170.21
DFID,DFID,20/04/2011,Hotels - Accommodation only,Procurement Department,Hogg Robinson Group,6000045,113.71
DFID,DFID,20/04/2011,Hotels - Accommodation only,DFID Sierra Leone and Liberia,Hogg Robinson Group,6000045,143.4
DFID,DFID,20/04/2011,Hotels - Accommodation only,DFID Zimbabwe,Hogg Robinson Group,6000045,173.07
DFID,DFID,20/04/2011,Hotels - Accommodation only,DFID Zimbabwe,Hogg Robinson Group,6000045,143.4
DFID,DFID,20/04/2011,Hotels - Accommodation only,DFID Zimbabwe,Hogg Robinson Group,6000045,302.02
DFID,DFID,20/04/2011,Hotels - Accommodation only,DFID Zimbabwe,Hogg Robinson Group,6000045,143.4
DFID,DFID,20/04/2011,Hotels - Accommodation only,DFID Rwanda,Hogg Robinson Group,6000045,512.84
DFID,DFID,20/04/2011,Hotels - Accommodation only,DFID Tanzania,Hogg Robinson Group,6000045,271.31
DFID,DFID,20/04/2011,Hotels - Accommodation only,DFID Ethiopia,Hogg Robinson Group,6000045,"2,011.09"
DFID,DFID,20/04/2011,Hotels - Accommodation only,DFID Ethiopia,Hogg Robinson Group,6000045,286.67
DFID,DFID,20/04/2011,Hotels - Accommodation only,DFID India,Hogg Robinson Group,6000045,114.74
DFID,DFID,20/04/2011,Hotels - Accommodation only,DFID India,Hogg Robinson Group,6000045,171.02
DFID,DFID,20/04/2011,Hotels - Accommodation only,DFID Nepal,Hogg Robinson Group,6000045,972.65
DFID,DFID,20/04/2011,Hotels - Accommodation only,DFID Pakistan,Hogg Robinson Group,6000045,875.12
DFID,DFID,20/04/2011,Hotels - Accommodation only,Research and Evidence,Hogg Robinson Group,6000045,97.34
DFID,DFID,20/04/2011,Hotels - Accommodation only,DFID Bangladesh,Hogg Robinson Group,6000045,271.31
DFID,DFID,20/04/2011,Hotels - Accommodation only,Knowledge and Information Team,Hogg Robinson Group,6000045,286.67
DFID,DFID,20/04/2011,Hotels - Accommodation only,DFID Kyrgyz Republic,Hogg Robinson Group,6000045,429.95
DFID,DFID,20/04/2011,Hotels - Accommodation only,Value for Money,Hogg Robinson Group,6000045,124.98
DFID,DFID,20/04/2011,Hotels - Accommodation only,Kosovo Department,Hogg Robinson Group,6000045,588.57
DFID,DFID,20/04/2011,Hotels - Accommodation only,Kosovo Department,Hogg Robinson Group,6000045,588.57
DFID,DFID,20/04/2011,Hotels - Accommodation only,Kosovo Department,Hogg Robinson Group,6000045,588.57
DFID,DFID,20/04/2011,Hotels - Accommodation only,Knowledge and Information Team,Hogg Robinson Group,6000045,143.4
DFID,DFID,20/04/2011,Hotels - Accommodation only,DFID Tanzania,Hogg Robinson Group,6000045,557.86
DFID,DFID,20/04/2011,Hotels - Accommodation only,DFID Nigeria,Hogg Robinson Group,6000045,866.53
DFID,DFID,20/04/2011,Hotels - Accommodation only,European Union,Hogg Robinson Group,6000045,102.46
DFID,DFID,20/04/2011,Hotels - Accommodation only,"Conflict, Humanitarian and Security",Hogg Robinson Group,6000045,143.4
DFID,DFID,20/04/2011,Hotels - Accommodation only,"Conflict, Humanitarian and Security",Hogg Robinson Group,6000045,158.74
DFID,DFID,20/04/2011,Rail Transport,Country Operations Group,Hogg Robinson Group,6000045,143.74
DFID,DFID,20/04/2011,Rail Transport,Africa Regional Department,Hogg Robinson Group,6000045,124.58
DFID,DFID,20/04/2011,Rail Transport,Africa Regional Department,Hogg Robinson Group,6000045,41.31
DFID,DFID,20/04/2011,Rail Transport,DFID Afghanistan,Hogg Robinson Group,6000045,40.08
DFID,DFID,20/04/2011,Rail Transport,Overseas Territories Department,Hogg Robinson Group,6000045,66.11
DFID,DFID,20/04/2011,Rail Transport,Overseas Territories Department,Hogg Robinson Group,6000045,66.11
DFID,DFID,20/04/2011,Rail Transport,Overseas Territories Department,Hogg Robinson Group,6000045,-79.58
DFID,DFID,20/04/2011,Rail Transport,Overseas Territories Department,Hogg Robinson Group,6000045,98.91
DFID,DFID,20/04/2011,Rail Transport,Overseas Territories Department,Hogg Robinson Group,6000045,124.58
DFID,DFID,20/04/2011,Rail Transport,Overseas Territories Department,Hogg Robinson Group,6000045,47.91
DFID,DFID,20/04/2011,Rail Transport,Overseas Territories Department,Hogg Robinson Group,6000045,108.08
